Workbook

Sheet Topics
A1: Topics | B1: Sheet Name (link to jump)
A2: Point Estimate and Sampling Error | B2: Sample
A3: Samples | B3: All Possible Samples
A4: Simple Random Sample | B4: Simple Random Sample
A5: Sampling Distribution of Xbar Conclusion 1: E(Xbar) = Mew Conclusion 2: Plot of SDOXbar is Normal Shaped #2 leads to Central Limit Theorem Standard Error | B5: SDofXbar (1)
B6: SDofXbar(2)
A7: VBA for Listing all Combinations | B7: Combinations
A8: Standard Error Correction Factor | B8: SE & Correction Factor
A9: As sample size incraease, probability that Xbar is in interval increases. | B9: n and Prob
A10: Use of Central Limit Theorem &Sampling Distribution of Xbar | B10: Ex(1)
B11: Ex(2)
B12: Ex(3)
A13: Sampling Distribution of Pbar | B13: Pbar
B14: Pbar(2)

Sheet Detailed Topic List
A1: Video43: | B1: Excel 2013 Statistical Analysis #43: Simple Random Sampling in Excel: Process & Theory
A2: Number | B2: Topic In Video and minute mark in Video. | C2: Time In Video | R2: Text
A3: =ROWS(A3:A$3) -> 1 | B3: =TRIM(REPLACE(R3,1,SEARCH(")",R3)+1,"")) -> Chapter explanation | C3: =TRIM(LEFT(R3,SEARCH(")",R3))) -> (00:12) | R3: (00:12) Chapter explanation
A4: =ROWS(A$3:A4) -> 2 | B4: =TRIM(REPLACE(R4,1,SEARCH(")",R4)+1,"")) -> Discussion about Samples, Point Estimates and Sampling Error | C4: =TRIM(LEFT(R4,SEARCH(")",R4))) -> (01:57) | R4: (01:57) Discussion about Samples, Point Estimates and Sampling Error
A5: =ROWS(A$3:A5) -> 3 | B5: Why take samples rather than use all the population items? | C5: (03:50) | R5: (03:50) Why take samples rather than use all the population items?
A6: =ROWS(A$3:A6) -> 4 | B6: What do we use samples for? Answering Research Questions! | C6: (05:10) | R6: (05:10) What do we use samples for? Answering Research Questions!
A7: =ROWS(A$3:A7) -> 5 | B7: Learn about Sample Population and Target Population | C7: (06:01) | R7: (06:01) Learn about Sample Population and Target Population
A8: =ROWS(A$3:A8) -> 6 | B8: What is a Frame? Frame = List of items in population | C8: (08:58) | R8: (08:58) What is a Frame? Frame = List of items in population
A9: =ROWS(A$3:A9) -> 7 | B9: Simple Random Sampling: use when you have a finite population where you can create a frame. | C9: (10:58) | R9: (10:58) Simple Random Sampling: use when you have a finite population where you can create a frame.
A10: =ROWS(A$3:A10) -> 8 | B10: Random Sampling: use when you have a finite population or on-going process where you cannot create a frame. Two important points must hold true before selecting n items in a random way: 1) All items must be from same population (Samples = Target) and 2) Items must be selected Independently (without bias) | C10: (11:33) | R10: (11:33) Random Sampling: use when you have a finite population or on-going process where you cannot create a frame. Two important points must hold true before selecting n items in a random way: 1) All items must be from same population (Samples = Target) and 2) Items must be selected Independently (without bias)
A11: =ROWS(A$3:A11) -> 9 | B11: Define Simple Random Sampling and do a few tests in Excel to prove to ourselves that the definition makes sense. We will look at one sample and the sampling error, then we will list all possible samples and then calculate the probability that we could get any one sample. | C11: (13:25) | R11: (13:25) Define Simple Random Sampling and do a few tests in Excel to prove to ourselves that the definition makes sense. We will look at one sample and the sampling error, then we will list all possible samples and then calculate the probability that we could get any one sample.
A12: =ROWS(A$3:A12) -> 10 | B12: Use VLOOKUP to list all numbers for all possible samples | C12: (16:20) | R12: (16:20) Use VLOOKUP to list all numbers for all possible samples
A13: =ROWS(A$3:A13) -> 11 | B13: Calculate Sample Mean, Xbar, for every one of the possible samples | C13: (17:58) | R13: (17:58) Calculate Sample Mean, Xbar, for every one of the possible samples
A14: =ROWS(A$3:A14) -> 12 | B14: Calculate probability of each sample (part of definition of Simple Random Sample) | C14: (18:18) | R14: (18:18) Calculate probability of each sample (part of definition of Simple Random Sample)
A15: =ROWS(A$3:A15) -> 13 | B15: Introduction to RAND function | C15: (19:30) | R15: (19:30) Introduction to RAND function
A16: =ROWS(A$3:A16) -> 14 | B16: Create Simple Random Sample using RAND Excel function (0 greater than or equal to 15 digit Number less than 1), the Sort Feature and Copy & Paste. | C16: (20:36) | R16: (20:36) Create Simple Random Sample using RAND Excel function (0 greater than or equal to 15 digit Number less than 1), the Sort Feature and Copy & Paste.
A17: =ROWS(A$3:A17) -> 15 | B17: Create Simple Random Sample using RAND, SMALL and VLOOKUPO Excel functions | C17: (23:12) | R17: (23:12) Create Simple Random Sample using RAND, SMALL and VLOOKUPO Excel functions
A18: =ROWS(A$3:A18) -> 16 | B18: Conclusion | C18: (25:53) | R18: (25:53) Conclusion
A20: Video44: | B20: Excel 2013 Statistical Analysis #44: Sampling Distribution of Xbar and the Central Limit Theorem
A21: Number | B21: Topic In Video and minute mark in Video. | C21: Time In Video | R21: Text
A22: =ROWS(A$22:A22) -> 1 | B22: =TRIM(REPLACE(R22,1,SEARCH(")",R22)+1,"")) -> Example 1: Create Sampling Distribution of Xbar (Sampling Distribution of Sample Mean ) to learn: 1) Population Mean = Expected Value of Xbar, 2) Sampling Distribution of Xbar is normally Distributed, and 3) Variation is less for Sampling Distribution of Xbar | C22: =TRIM(LEFT(R22,SEARCH(")",R22))) -> (00:12) | R22: (00:12) Example 1: Create Sampling Distribution of Xbar (Sampling Distribution of Sample Mean ) to learn: 1) Population Mean = Expected Value of Xbar, 2) Sampling Distribution of Xbar is normally Distributed, and 3) Variation is less for Sampling Distribution of Xbar
A23: =ROWS(A$22:A23) -> 2 | B23: =TRIM(REPLACE(R23,1,SEARCH(")",R23)+1,"")) -> Calculate Expected Value Xbar or Mean of all the Means or Mew sub Xbar. | C23: =TRIM(LEFT(R23,SEARCH(")",R23))) -> (03:16) | R23: (03:16) Calculate Expected Value Xbar or Mean of all the Means or Mew sub Xbar.
A24: =ROWS(A$22:A24) -> 3 | B24: Create Histograms for Population data and Xbar data so discover the Sampling Distribution of Xbar is Normally Distributed and that there is less spread in the data in the Sampling Distribution of Xbar | C24: (05:18) | R24: (05:18) Create Histograms for Population data and Xbar data so discover the Sampling Distribution of Xbar is Normally Distributed and that there is less spread in the data in the Sampling Distribution of Xbar
A25: =ROWS(A$22:A25) -> 4 | B25: Discussion of Central Limit Theorem | C25: (11:30) | R25: (11:30) Discussion of Central Limit Theorem
A26: =ROWS(A$22:A26) -> 5 | B26: Example 2: Create Sampling Distribution of Xbar (Sampling Distribution of Sample Mean )to learn: 1) Population Mean = Expected Value of Xbar, 2) Sampling Distribution of Xbar is normally Distributed, and 3) Variation is less for Sampling Distribution of Xbar | C26: (14:00) | R26: (14:00) Example 2: Create Sampling Distribution of Xbar (Sampling Distribution of Sample Mean )to learn: 1) Population Mean = Expected Value of Xbar, 2) Sampling Distribution of Xbar is normally Distributed, and 3) Variation is less for Sampling Distribution of Xbar
A27: =ROWS(A$22:A27) -> 6 | B27: VBA code for listing all samples from Mr Excel Message Board | C27: (14:15) | R27: (14:15) VBA code for listing all samples from Mr Excel Message Board
A28: =ROWS(A$22:A28) -> 7 | B28: Discussion of Standard Error, Standard Deviation of the Sampling Distribution of Xbar | C28: (21:46) | R28: (21:46) Discussion of Standard Error, Standard Deviation of the Sampling Distribution of Xbar
A29: =ROWS(A$22:A29) -> 8 | B29: Central Limit Theorem in action Example 1: Test to see if insurance agent claim that mean policy cost is $824 | C29: (24:55) | R29: (24:55) Central Limit Theorem in action Example 1: Test to see if insurance agent claim that mean policy cost is $824
A30: =ROWS(A$22:A30) -> 9 | B30: Investigate Finite Population Correction Factor for Standard Error, Standard Deviation of the Sampling Distribution of Xbar | C30: (31:40) | R30: (31:40) Investigate Finite Population Correction Factor for Standard Error, Standard Deviation of the Sampling Distribution of Xbar
A31: =ROWS(A$22:A31) -> 10 | B31: Investigate the relationship between size of sample, n, Standard Error (Standard Deviation of the Sampling Distribution of Xbar), and probability | C31: (34:18) | R31: (34:18) Investigate the relationship between size of sample, n, Standard Error (Standard Deviation of the Sampling Distribution of Xbar), and probability
A32: =ROWS(A$22:A32) -> 11 | B32: Central Limit Theorem in action Example 2: Gas Prices in state of Washington | C32: (37:38) | R32: (37:38) Central Limit Theorem in action Example 2: Gas Prices in state of Washington
A33: =ROWS(A$22:A33) -> 12 | B33: Central Limit Theorem in action Example 3: Test to see if Cereal Filling Machine is Filling Accurately. | C33: (40:36) | R33: (40:36) Central Limit Theorem in action Example 3: Test to see if Cereal Filling Machine is Filling Accurately.
A34: =ROWS(A$22:A34) -> 13 | B34: Conclusion and summary of topics in video | C34: (43:52) | R34: (43:52) Conclusion and summary of topics in video
A36: Video45: | B36: Excel 2013 Statistical Analysis #45: Sampling Distribution of Pbar (Binomial Sample Proportion)
A37: Number | B37: Topic In Video and minute mark in Video. | C37: Time In Video | R37: Text
A38: =ROWS(A$38:A38) -> 1 | B38: =TRIM(REPLACE(R38,1,SEARCH(")",R38)+1,"")) -> Discussion of Pbar and Sampling Distribution of Pbar (Sampling Distribution of Sample Proportion) Formulas for 1) Expected Value Pbar, 2) Standard Deviation of Sampling Distribution of Pbar, 3) Rule to check if Normal Distiribution can be used to approximate the Binomial Distribution. | C38: =TRIM(LEFT(R38,SEARCH(")",R38))) -> (00:12) | R38: (00:12) Discussion of Pbar and Sampling Distribution of Pbar (Sampling Distribution of Sample Proportion) Formulas for 1) Expected Value Pbar, 2) Standard Deviation of Sampling Distribution of Pbar, 3) Rule to check if Normal Distiribution can be used to approximate the Binomial Distribution.
A39: =ROWS(A$38:A39) -> 2 | B39: =TRIM(REPLACE(R39,1,SEARCH(")",R39)+1,"")) -> Excel example 1: Proportion of Americans who balance there checkbook. Make a probabilistic statement about the likelihood that we could take a sample and get a Pbar with a given margin of error. Using NORM.DIST function. | C39: =TRIM(LEFT(R39,SEARCH(")",R39))) -> (02:14) | R39: (02:14) Excel example 1: Proportion of Americans who balance there checkbook. Make a probabilistic statement about the likelihood that we could take a sample and get a Pbar with a given margin of error. Using NORM.DIST function.
A40: =ROWS(A$38:A40) -> 3 | B40: Excel example 1: Proportion insurance claims settled within one week. Make a probabilistic statement about the likelihood that we could take a sample and get a Pbar with a given margin of error. Using NORM.DIST function. | C40: (07:28) | R40: (07:28) Excel example 1: Proportion insurance claims settled within one week. Make a probabilistic statement about the likelihood that we could take a sample and get a Pbar with a given margin of error. Using NORM.DIST function.

Sheet Keyboards
A1: Primary Key | B1: Action | C1: Keyboard Short Cut | D1: Category
A2: 1 | B2: Move the Active Worksheet up or down | C2: Ctrl + Page Up/Page Down | D2: Navigation
A3: 2 | B3: Put content in Cell and move selected Cell down | C3: Enter | D3: Entering Data in a Cell
A4: 3 | B4: Put content in Cell and keep Cell selected | C4: Ctrl + Enter | D4: Entering Data in a Cell
A5: 4 | B5: Undo | C5: Ctrl + Z | D5: Basic
A6: 5 | B6: Copy | C6: Ctrl + C | D6: Basic
A7: 6 | B7: Paste | C7: Ctrl + V | D7: Basic
A8: 7 | B8: Cut | C8: Ctrl + X | D8: Basic
A9: 8 | B9: Bold | C9: Ctrl + B | D9: Basic
A10: 9 | B10: Put Cell in Edit Mode | C10: F2 | D10: Formula Edit Mode Keys
A11: 10 | B11: Arrow to point to a formula Cell Reference | C11: Arrow Keys | D11: Formula Edit Mode Keys
A12: 11 | B12: SUM function | C12: Alt + = | D12: Formula Edit Mode Keys
A13: 12 | B13: Delete Cell content | C13: Delete | D13: Basic
A14: 13 | B14: Lock Cell Reference (make Absolute) | C14: F4 | D14: Formula Edit Mode Keys
A15: 14 | B15: Put content in Cell and move selected Cell to right | C15: Tab | D15: Entering Data in a Cell
A16: 15 | B16: Put content in Cell and move selected Cell to left | C16: Shift + Tab | D16: Entering Data in a Cell
A17: 16 | B17: Jump to bottom of data set (Current Range) | C17: Ctrl + Arrow | D17: Navigation
A18: 17 | B18: Select to bottom of data set (Current Range) | C18: Ctrl + Shift + Enter | D18: Formula Edit Mode Keys
A19: 18 | B19: Put content in Cell and move selected Cell up | C19: Shift + Enter | D19: Entering Data in a Cell
A20: 19 | B20: Jump Back to Active Cell | C20: Ctrl + Backspace | D20: Formula Edit Mode Keys
A21: 20 | B21: Open Create PivotTable dialog box | C21: Alt, N, V | D21: PivotTable
A22: 21 | B22: Format Chart Element with Task Pane | C22: Ctrl + 1 | D22: Chart
A23: 22 | B23: Open Format Cells dialog box | C23: Ctrl + 1 | D23: Format Cells
A24: 23 | B24: Jump to Cell A1 | C24: Ctrl + Home | D24: Navigation
A25: 24 | B25: Jump to last Cell used | C25: Ctrl + End | D25: Navigation
A26: 25 | B26: Open Control Panel | C26: Window + Pause/Break | D26: Window Key
A27: 26 | B27: Show Desktop | C27: Window + D or Window + M | D27: Window Key
A28: 27 | B28: Select Whole Table (Select Current Region) | C28: Ctrl + * (on Number Pad) or Ctrl + Shift + 8 | D28: Selection
A29: 28 | B29: Select Ranges not next to each other (noncontiguous ranges) | C29: Ctrl + Mouse Click | D29: Selection
A30: 29 | B30: Open Print Options and Print Preview view | C30: Ctrl + P | D30: Basic
A31: 30 | B31: Close Print Options and Print Preview view | C31: Esc | D31: Basic
A32: 31 | B32: New Workbook File | C32: Ctrl + N | D32: Basic
A33: 32 | B33: Save As Dialog Box | C33: F12 | D33: Basic
A34: 33 | B34: Find and Replace | C34: Ctrl + Home | D34: Basic
A35: 34

Sheet Notes
A1: Chapter 7:
A2: Population:
A3: All elements of interest
A4: Sample:
A5: A subset of the population
A6: Why do we sample instead of look at whole population?
A7: 1) Some populations are impossible to check
A8: Can’t count all the fish in the ocean
A9: 2) The cost of studying all the items in a population
A10: General Mills hires firm to test a new cereal:
A11: Sample test: cost ≈ $40,000
A12: Population test: cost ≈ $1,000,000,000
A13: 3) Contacting the whole population would often be time-consuming
A14: Political polls can be completed in one or two days
A15: Polling all the USA voters would take nearly 200 years!
A16: 4) The destructive nature of certain tests
A17: Test each bottle of wine?!!?
A18: Testing all seeds from Burpee è there’d be none left
A19: 5] The sample results are usually adequate
A20: Consumer price index constructed from a sample is an excellent estimate for a consumer price index that could be constructed from the population
A22: Why do we need sample data?
A23: We select samples to collect data to answer research question about a population
A24: What do community college presidents think of the new federal proposal to rate colleges?
A25: Is the filling machine filling accurately?
A26: Do Highline College students think that advising should be mandatory?
A27: What is the mean annual accounting salary in Seattle?
A29: Samples are only estimates:
A30: In point estimation we use the data from the sample to compute a value of a sample statistic that serves as an estimate of a population parameter.
A31: We refer to Xbar as the point estimator of the population mean = m = mew.
A32: We refer to s as the point estimator of the population standard deviation = s = sigma.
A33: We refer to Pbar as the point estimator of the population mean p.
A35: What about Sample Error?
A36: Is the Xbar (Sample Mean) and µ (population mean, mew) always equal?
A37: Almost never!
A38: If Xbar (Sample Mean) and µ (population mean, mew) are not equal, is this okay?
A39: It depends.
A40: We will build a model to check to see if our Xbar is a "reasonable" estimate for the population mean!! :)
A42: Random Variable:
A43: Numerical Description of the outcome of an experiment
A44: If we consider the process of selecting a “Random Sample” as an experiment, the Xbar is the numerical description of the outcome of the experiment.
A45: Thus Xbar is the random variable.
A47: If the population is so big, how do we know where to go and get sample data?
A48: We must be careful!!
A49: We have to make sure that the Samples Population is the same as the Target Population.
A51: Sampled Population:
A52: Population from which the sample is drawn
A53: Target Population:
A54: Population we want to make an inference about
A56: Sampled Population and Target Population are not always the same!
A57: Example 1: If your goal was to gather data about students attending South Community College:
A58: If you took a sample from a College Registration List, Sampled Population and Target Population are the same
A59: If you took a sample from people eating at the Culinary Arts restaurant at South Community College you might get some people who are:
A60: students at South (Target Pop)
A61: and
A62: some who are not students at South (NOT Target Pop).
A63: The Sampled Population would be people who eat at Culinary Arts Restaurant.
A64: Sampled Population NOT EQUAL TO Target Population
A65: Example 2: If you take a sample from only matinée movie-goers and you want to make inferences about all movie goers your
A66: Sampled Population (matinée) is different than your Target Population (all movie goers): they are not the same.
A67: Conclusion: When a sample is used to make inferences about the population, make sure that the sampled and target population are in close agreement.
A68: This is not a mathematical calculation, it is a judgment call.
A70: Frame:
A71: List of all elements in the population
A72: List of elements that sample will be selected from.
A73: Frames cannot always be created
A75: Finite Population
A76: A population where we can create a Frame
A77: Examples:
A78: List of student names at a college
A79: List of Sales Invoices
A80: “Sampling from a Finite Population”: Use “Simple Random Sampling” method to select a sample
A81: Infinite Population
A82: A population where we can NOT create a Frame
A83: Examples:
A84: Population too big (like all the fish in the sea)
A85: Take a sample of cereal box weights from a cereal box filling machine
A86: Customers entering a store
A87: “Sampling from an Infinite Population or Process”: Use “Random Sampling” method to select a sample
A89: Frame that CAN be constructed:
A90: Take sample at Highline Community College to see how many people have iPods
A91: Sampled Population = List of registered students
A92: Frame = List of registered students
A93: The sampled population has a finite number of elements
A94: This is called “Sampling from a Finite Population”. Use “Simple Random Sampling” method to select a sample
A95: Frame that CANNOT be constructed:
A96: Population is too big (like counting all the fish in the sea)
A97: Take a sample of cereal box weights from a cereal box filling machine
A98: Sampled Population = conceptual population of all boxes that could have been filled at that particular point in time.
A99: In this sense, the sampled population is considered infinite.
A100: Frame = impossible to construct frame from infinite population because all the elements are not present
A101: The sampled population has a conceptually infinite number of elements
A102: This is called “Sampling from an infinite Population or Process”. Use “Random Sampling” method to select a sample
A103: “Random Sampling” is the same as “Simple Random Sampling”, except for two assumptions have to hold true (more later)
A105: Processes (Sampling from an infinite Population):
A106: Examples of processes:
A107: Machine fills boxes of cereal
A108: Machine fills bags of lettuce
A109: Machines make bolts and screws for airplanes
A110: Router makes boomerangs
A111: Transactions occur at bank
A112: Calls arrive at Highline help desk
A113: Customers entering store
A114: All are viewed as coming from a process generating elements from a conceptually infinite population
A115: How a sample can help to decide whether the process is working properly:
A116: Processes not working properly (like machine filling too much) will produce
A117: sample statistics that are not close (statistically significant) to the population parameter
A118: Processes working properly (like machine filling just right) will produce
A119: sample statistics that are close (statistically insignificant) to the population parameter
A121: Simple Random Sample (for Finite Populations)
A122: Textbook: A simple random sample of size n from a finite population of size N is a sample selected such that
A123: each possible sample of size n has the same probability of being selected
A124: Each sample element has the same probability of being selected, (if TRUE, then each sample has the same chance)
A125: Think of: Uniform Distribution
A126: You have a frame and you can randomly select from frame.
A127: How to select a sample:
A128: Example 1: Select any n units in a random way
A129: Book method:
A130: Step 1: Assign Random Number to each element in population
A131: Step 2: Select “n” elements that have the “n” smallest (or largest) random numbers
A132: Using Excel’s RAND or RANDBETWEEN functions (each follows a Uniform Distribution between 0 and 1)
A133: Example 2:
A134: RAND, SMALL and VLOOKUP functions can automat the Simple Random Sample
A135: RAND function generates Radom numbers between 0 and 1 with 15 significant digits and generate these numbers based on a Uniform Distribution
A136: Example 3: Names of classmates in a hat, mix up names, select until sample size, “n” is reached
A138: Random Sample (for Infinite Population)
A139: These must hold true:
A140: 1) Each element selected comes from same population (Sampled and Targeted Populations are the same).
A141: 2) Each element is selected independently: to prevent selection bias (prevent all from similar group, similar attitudes, or choosing to get desired result)
A142: Used for Infinite Populations or Populations where it is not feasible to list all elements
A143: How to select a sample:
A144: Select any n units in a random way
A145: Examples:
A146: Machines filling boxes or bags, choose sample from same point in time
A147: This is done to make sure that each element selected in selected from the same population.
A148: People arriving at a restaurant, choose customer directly after customer who uses coupon (McDonald’s did this to simulate a random selection).
A149: This is done to make sure that each element is selected independently (without bias)
A151: Probability Sample
A152: Each possible sample has a known probability of selection and a random process is used to select the elements for the sample.
A153: Good because we have techniques to help us understand if our sample is “good”, reasonable – more later…
A154: Examples:
A155: 1) Simple Random Sample taken (for Finite populations)
A156: 2) Random Sample (for Infinite population)
A157: 3) Stratified Random Sampling (allows smaller sample size and lower cost)
A158: Population divided into mutually exclusive strata where elements in each strata are similar
A159: Each element in the strata are similar (location, age, department, major)
A160: Works best when the variation among the elements in each strata is relatively small.
A161: 4) Cluster Sampling
A162: Elements in clusters are not a like – each cluster is like a min population
A163: Helps to reduce cost.
A164: 5) Systematic Sampling
A165: Like with invoices or other ordered populations.
A167: Non-probability Sampling
A168: Not good because we can’t calculate how reasonable the sample results are
A169: Convenience Sampling
A170: Judgment Sampling
A172: Leading up to the Central Limit Theorem:
A173: If all samples of a particular size are selected from any population, the sampling distribution of the sample mean Xbar is approximately normal distribution.
A174: This approximation improves with larger samples
A176: Sampling Distribution of Xbar (SDofXbar)
A177: The sampling Distribution of Xbar is the probability distribution of all possible values of sample mean Xbar.
A178: Sample Mean of Sampling Distribution of Xbar = E(Xbar) = m = Pop Mean!!!! Called Unbiased point estimator
A179: Standard Deviation of SDofXbar = sXbar = Standard Error = (s/SQRT(n))*SQRT((N-n)/(n-1)), Don’t need SQRT((N-n)/(n-1)) if population is finite AND n/N <= 0.05
A180: If Pop is Finite AND n/N > 0.05, then use the Finite Population Correction Factor: SQRT((N-n)/(n-1))
A181: As sample size increases, Standard Error will decrease, and thus provide a higher probability that Xbar will fall within a specified distance of the population mean.
A182: Book assumes all problems use s/SQRT(n), unless otherwise stated
A183: The Sampling Distribution can be used to provide probability information about how close the sample statistic is to the population parameter
A185: Sampling Distribution of Pbar (SDofPbar)
A186: Sample Proportion = point estimator of Population Proportion = Pbar = x/n
A187: x = the number of elements in the population that posses the characteristic of interest = binomial variable (bi = 2, nominal = nominal variable)
A188: n = sample size
A189: The sampling Distribution of Pbar is the probability distribution of all possible values of sample proportion Pbar
A190: Sample Proportion of Sampling Distribution of Pbar = E(Pbar) =p = Pop Proportion!! Called Unbiased point estimator
A191: Standard Deviation of SDofPbar = sPbar = Standard Error = SQRT(p*(1-p)/n)*SQRT((N-n)/(n-1)), Don’t need SQRT((N-n)/(n-1)) if pop is finite AND n/N <= 0.05
A192: If n/N > 0.05, then use the Finite Population Correction Factor: SQRT((N-n)/(n-1))
A193: As sample size increases, Standard Error will decrease, and thus provide a higher probability that Pbar will fall within a specified distance of the population mean.
A194: Book assumes all problems use SQRT(p*(1-p)/n), unless otherwise stated
A195: The sampling Distribution of Pbar (and Binomial Distribution) can be approximated by a normal distribution whenever n*p>=5 AND n*(1-p) >=5
A197: Standard Error
A198: Standard Error stands for the Standard Deviation of a point estimator
A199: Examples:
A200: Standard Error of the Mean = sXbar = "Standard Error"
A201: Standard Error of the Proportion = sPbar = "Standard Error"
A202: Central Limit Theorem:
A203: In selecting random samples of size n from a population, the sampling distribution of the sample mean Xbar
A204: can be approximated by a normal distribution as the sample size becomes large
A205: If population distribution is symmetrical but not normal, the distribution will converge toward normal when n > 10
A206: Skewed or thick-tailed distributions converge toward normal when n > 30
A207: Heavily skew distributions converge n > 50
A209: Use of Central Limit Theorem:
A210: We can reason about the Sampling Distribution of Xbar with absolutely no information about the shape of the original distribution from which the sample is taken
A211: This means that:
A212: We can take one sample and compare it to the Standard Normal Curve (NORM.S.DIST) or Normal Curve (NORM.DIST) to see if our sample result is reasonable.
A213: If the sample mean seems reasonable, the original process or claim is reasonable
A214: If the sample mean does not seem reasonable, the original process or claim is not reasonable
A215: The Sampling Distribution can be used to provide probability information about how close the sample statistic is to the population parameter
A217: Statistical Inference:
A218: The process of using data obtained from a sample to make estimates or test hypotheses about characteristics of the population (like mean).
A219: Draw reasonable conclusions about population from statistics
A221: Infer:
A222: Conclude from evidence

Sheet Sample
A1: Population (Pop) = all the items: | F1: Sample = subset of all Pop items:
A3: Sales Rep | B3: Sales | F3: Sales Rep | G3: Sales
A4: Jo | B4: 185 | F4: =A6 -> Chin | G4: =B6 -> 210
A5: Sioux | B5: 250 | F5: =A10 -> Kip | G5: =B10 -> 370
A6: Chin | B6: 210 | F6: =A4 -> Jo | G6: =B4 -> 185
A7: Sheliadawn | B7: 310
A8: Gigi | B8: 298 | F8: Sample Size = n = | I8: 3
A9: Tyrone | B9: 402 | F9: Sample Mean = Xbar = Point Esimator of Pop Mean =
A10: Kip | B10: 370
F11: Sample Error = Xbar - Mew (µ)
A12: Pop Size = N = | D12: =COUNTA(A4:A10) -> 7
A13: Pop Mean = Mew = µ = | D13: =AVERAGE(B4:B10) -> 289.2857143
A14: Pop Standard Deviation = Sigma = s = | D14: =_xlfn.STDEV.P(B4:B10) -> 74.09398334

Sheet Sample (an)
A1: Population (Pop) = all the items: | F1: Sample = subset of all Pop items:
A3: Sales Rep | B3: Sales | F3: Sales Rep | G3: Sales
A4: Jo | B4: 185 | F4: =A6 -> Chin | G4: =B6 -> 210
A5: Sioux | B5: 250 | F5: =A10 -> Kip | G5: =B10 -> 370
A6: Chin | B6: 210 | F6: =A4 -> Jo | G6: =B4 -> 185
A7: Sheliadawn | B7: 310
A8: Gigi | B8: 298 | F8: Sample Size = n = | I8: 3
A9: Tyrone | B9: 402 | F9: Sample Mean = Xbar = Point Esimator of Pop Mean = | I9: =AVERAGE(G4:G6) -> 255
A10: Kip | B10: 370
F11: Sample Error = Xbar - Mew (µ) | I11: =I9-D13 -> -34.28571429
A12: Pop Size = N = | D12: =COUNTA(A4:A10) -> 7
A13: Pop Mean = Mew = µ = | D13: =AVERAGE(B4:B10) -> 289.2857143
A14: Pop Standard Deviation = Sigma = s = | D14: =_xlfn.STDEV.P(B4:B10) -> 74.09398334

Sheet Each Sample Prob Same (hidden)
A1: Elements in Population: | C1: n = Pop Size | D1: ="Sample Size = "&D2 -> Sample Size = 2 | E1: Combinations of Samples
A2: Jo | C2: =COUNTA(A2:A6) -> 5 | D2: 2 | E2: =COMBIN(C2,D2) -> 10
A3: Tyrone
A4: Sioux | C4: Sample # | D4: Element 1 | E4: Element 2 | F4: p(X)
A5: Sue | C5: 1 | D5: =$A$2 -> Jo | E5: =A3 -> Tyrone
A6: Chin | C6: 2 | D6: Jo | E6: Sioux
C7: 3 | D7: Jo | E7: Sue
C8: 4 | D8: Jo | E8: Chin
C9: 5 | D9: =$A$3 -> Tyrone | E9: =A4 -> Sioux
C10: 6 | D10: Tyrone | E10: Sue
C11: 7 | D11: Tyrone | E11: Chin
C12: 8 | D12: =$A$4 -> Sioux | E12: =A5 -> Sue
C13: 9 | D13: Sioux | E13: Chin
C14: 10 | D14: =A5 -> Sue | E14: =A6 -> Chin

Sheet Each Sample Prob Same (an) (hidden)
A1: Elements in Population: | C1: n = Pop Size | D1: ="Sample Size = "&D2 -> Sample Size = 2 | E1: Combinations of Samples
A2: Jo | C2: =COUNTA(A2:A6) -> 5 | D2: 2 | E2: =COMBIN(C2,D2) -> 10
A3: Tyrone
A4: Sioux | C4: Sample # | D4: Element 1 | E4: Element 2 | F4: p(X)
A5: Sue | C5: 1 | D5: =$A$2 -> Jo | E5: =A3 -> Tyrone | F5: =1/$E$2 -> 0.1
A6: Chin | C6: 2 | D6: Jo | E6: Sioux | F6: =1/$E$2 -> 0.1
C7: 3 | D7: Jo | E7: Sue | F7: 0.1
C8: 4 | D8: Jo | E8: Chin | F8: 0.1
C9: 5 | D9: =$A$3 -> Tyrone | E9: =A4 -> Sioux | F9: 0.1
C10: 6 | D10: Tyrone | E10: Sue | F10: 0.1
C11: 7 | D11: Tyrone | E11: Chin | F11: 0.1
C12: 8 | D12: =$A$4 -> Sioux | E12: =A5 -> Sue | F12: 0.1
C13: 9 | D13: Sioux | E13: Chin | F13: 0.1
C14: 10 | D14: =A5 -> Sue | E14: =A6 -> Chin | F14: 0.1

Sheet All Possible Samples
A1: Pop Size = N = | C1: =COUNTA(A6:A12) -> 7
A2: Sample Size = n = | C2: 3
A3: Number of Samples Possible: | C3: =COMBIN(C1,C2) -> 35 | L3: =RAND() -> 0.1493277759
A5: Sales Rep | B5: Sales | D5: Sales Rep 1 | E5: Sales Rep 2 | F5: Sales Rep 3 | G5: Sales 1 | H5: Sales 2 | I5: Sales 3 | J5: Xbar | K5: P(Sample)
A6: Jo | B6: 185 | D6: Jo | E6: Sioux | F6: Chin
A7: Sioux | B7: 250 | D7: Jo | E7: Sioux | F7: Sheliadawn
A8: Chin | B8: 210 | D8: Jo | E8: Sioux | F8: Gigi
A9: Sheliadawn | B9: 310 | D9: Jo | E9: Sioux | F9: Tyrone
A10: Gigi | B10: 298 | D10: Jo | E10: Sioux | F10: Kip
A11: Tyrone | B11: 402 | D11: Jo | E11: Chin | F11: Sheliadawn
A12: Kip | B12: 370 | D12: Jo | E12: Chin | F12: Gigi
D13: Jo | E13: Chin | F13: Tyrone
D14: Jo | E14: Chin | F14: Kip
D15: Jo | E15: Sheliadawn | F15: Gigi
D16: Jo | E16: Sheliadawn | F16: Tyrone
D17: Jo | E17: Sheliadawn | F17: Kip
D18: Jo | E18: Gigi | F18: Tyrone
D19: Jo | E19: Gigi | F19: Kip
D20: Jo | E20: Tyrone | F20: Kip
D21: Sioux | E21: Chin | F21: Sheliadawn
D22: Sioux | E22: Chin | F22: Gigi
D23: Sioux | E23: Chin | F23: Tyrone
D24: Sioux | E24: Chin | F24: Kip
D25: Sioux | E25: Sheliadawn | F25: Gigi
D26: Sioux | E26: Sheliadawn | F26: Tyrone
D27: Sioux | E27: Sheliadawn | F27: Kip
D28: Sioux | E28: Gigi | F28: Tyrone
D29: Sioux | E29: Gigi | F29: Kip
D30: Sioux | E30: Tyrone | F30: Kip
D31: Chin | E31: Sheliadawn | F31: Gigi
D32: Chin | E32: Sheliadawn | F32: Tyrone
D33: Chin | E33: Sheliadawn | F33: Kip
D34: Chin | E34: Gigi | F34: Tyrone
D35: Chin | E35: Gigi | F35: Kip
D36: Chin | E36: Tyrone | F36: Kip
D37: Sheliadawn | E37: Gigi | F37: Tyrone
D38: Sheliadawn | E38: Gigi | F38: Kip
D39: Sheliadawn | E39: Tyrone | F39: Kip
D40: Gigi | E40: Tyrone | F40: Kip
K41: =SUM(K6:K40) -> 0

Sheet All Possible Samples (an)
A1: Pop Size = N = | C1: =COUNTA(A6:A12) -> 7
A2: Sample Size = n = | C2: 3
A3: Number of Samples Possible: | C3: =COMBIN(C1,C2) -> 35 | L3: =RAND() -> 0.7158279812
A5: Sales Rep | B5: Sales | D5: Sales Rep 1 | E5: Sales Rep 2 | F5: Sales Rep 3 | G5: Sales 1 | H5: Sales 2 | I5: Sales 3 | J5: Xbar | K5: P(Sample)
A6: Jo | B6: 185 | D6: Jo | E6: Sioux | F6: Chin | G6: =VLOOKUP(D6,$A$6:$B$12,2,0) -> 185 | H6: =VLOOKUP(E6,$A$6:$B$12,2,0) -> 250 | I6: 210 | J6: =AVERAGE(G6:I6) -> 215 | K6: =1/$C$3 -> 0.02857142857
A7: Sioux | B7: 250 | D7: Jo | E7: Sioux | F7: Sheliadawn | G7: =VLOOKUP(D7,$A$6:$B$12,2,0) -> 185 | H7: 250 | I7: 310 | J7: =AVERAGE(G7:I7) -> 248.3333333 | K7: =1/$C$3 -> 0.02857142857
A8: Chin | B8: 210 | D8: Jo | E8: Sioux | F8: Gigi | G8: 185 | H8: 250 | I8: 298 | J8: 244.3333333 | K8: 0.02857142857
A9: Sheliadawn | B9: 310 | D9: Jo | E9: Sioux | F9: Tyrone | G9: 185 | H9: 250 | I9: 402 | J9: 279 | K9: 0.02857142857
A10: Gigi | B10: 298 | D10: Jo | E10: Sioux | F10: Kip | G10: 185 | H10: 250 | I10: 370 | J10: 268.3333333 | K10: 0.02857142857
A11: Tyrone | B11: 402 | D11: Jo | E11: Chin | F11: Sheliadawn | G11: 185 | H11: 210 | I11: 310 | J11: 235 | K11: 0.02857142857
A12: Kip | B12: 370 | D12: Jo | E12: Chin | F12: Gigi | G12: 185 | H12: 210 | I12: 298 | J12: 231 | K12: 0.02857142857
D13: Jo | E13: Chin | F13: Tyrone | G13: 185 | H13: 210 | I13: 402 | J13: 265.6666667 | K13: 0.02857142857
D14: Jo | E14: Chin | F14: Kip | G14: 185 | H14: 210 | I14: 370 | J14: 255 | K14: 0.02857142857
D15: Jo | E15: Sheliadawn | F15: Gigi | G15: 185 | H15: 310 | I15: 298 | J15: 264.3333333 | K15: 0.02857142857
D16: Jo | E16: Sheliadawn | F16: Tyrone | G16: 185 | H16: 310 | I16: 402 | J16: 299 | K16: 0.02857142857
D17: Jo | E17: Sheliadawn | F17: Kip | G17: 185 | H17: 310 | I17: 370 | J17: 288.3333333 | K17: 0.02857142857
D18: Jo | E18: Gigi | F18: Tyrone | G18: 185 | H18: 298 | I18: 402 | J18: 295 | K18: 0.02857142857
D19: Jo | E19: Gigi | F19: Kip | G19: 185 | H19: 298 | I19: 370 | J19: 284.3333333 | K19: 0.02857142857
D20: Jo | E20: Tyrone | F20: Kip | G20: 185 | H20: 402 | I20: 370 | J20: 319 | K20: 0.02857142857
D21: Sioux | E21: Chin | F21: Sheliadawn | G21: 250 | H21: 210 | I21: 310 | J21: 256.6666667 | K21: 0.02857142857
D22: Sioux | E22: Chin | F22: Gigi | G22: 250 | H22: 210 | I22: 298 | J22: 252.6666667 | K22: 0.02857142857
D23: Sioux | E23: Chin | F23: Tyrone | G23: 250 | H23: 210 | I23: 402 | J23: 287.3333333 | K23: 0.02857142857
D24: Sioux | E24: Chin | F24: Kip | G24: 250 | H24: 210 | I24: 370 | J24: 276.6666667 | K24: 0.02857142857
D25: Sioux | E25: Sheliadawn | F25: Gigi | G25: 250 | H25: 310 | I25: 298 | J25: 286 | K25: 0.02857142857
D26: Sioux | E26: Sheliadawn | F26: Tyrone | G26: 250 | H26: 310 | I26: 402 | J26: 320.6666667 | K26: 0.02857142857
D27: Sioux | E27: Sheliadawn | F27: Kip | G27: 250 | H27: 310 | I27: 370 | J27: 310 | K27: 0.02857142857
D28: Sioux | E28: Gigi | F28: Tyrone | G28: 250 | H28: 298 | I28: 402 | J28: 316.6666667 | K28: 0.02857142857
D29: Sioux | E29: Gigi | F29: Kip | G29: 250 | H29: 298 | I29: 370 | J29: 306 | K29: 0.02857142857
D30: Sioux | E30: Tyrone | F30: Kip | G30: 250 | H30: 402 | I30: 370 | J30: 340.6666667 | K30: 0.02857142857
D31: Chin | E31: Sheliadawn | F31: Gigi | G31: 210 | H31: 310 | I31: 298 | J31: 272.6666667 | K31: 0.02857142857
D32: Chin | E32: Sheliadawn | F32: Tyrone | G32: 210 | H32: 310 | I32: 402 | J32: 307.3333333 | K32: 0.02857142857
D33: Chin | E33: Sheliadawn | F33: Kip | G33: 210 | H33: 310 | I33: 370 | J33: 296.6666667 | K33: 0.02857142857
D34: Chin | E34: Gigi | F34: Tyrone | G34: 210 | H34: 298 | I34: 402 | J34: 303.3333333 | K34: 0.02857142857
D35: Chin | E35: Gigi | F35: Kip | G35: 210 | H35: 298 | I35: 370 | J35: 292.6666667 | K35: 0.02857142857
D36: Chin | E36: Tyrone | F36: Kip | G36: 210 | H36: 402 | I36: 370 | J36: 327.3333333 | K36: 0.02857142857
D37: Sheliadawn | E37: Gigi | F37: Tyrone | G37: 310 | H37: 298 | I37: 402 | J37: 336.6666667 | K37: 0.02857142857
D38: Sheliadawn | E38: Gigi | F38: Kip | G38: 310 | H38: 298 | I38: 370 | J38: 326 | K38: 0.02857142857
D39: Sheliadawn | E39: Tyrone | F39: Kip | G39: 310 | H39: 402 | I39: 370 | J39: 360.6666667 | K39: 0.02857142857
D40: Gigi | E40: Tyrone | F40: Kip | G40: 298 | H40: 402 | I40: 370 | J40: 356.6666667 | K40: 0.02857142857
K41: =SUM(K6:K40) -> 1

Sheet Simple Random Sample
A1: Finite Population Frame: | E1: Sample Size = n = | F1: 3
A3: Selecting Simple Random Sample Method #1:
A5: RAND | B5: Sales Rep | C5: Sales | E5: Sales Rep | F5: Sales
B6: Sioux | C6: 250
B7: Jo | C7: 185
B8: Chin | C8: 210
B9: Sheliadawn | C9: 310
B10: Gigi | C10: 298 | E10: Xbar
B11: Kip | C11: 370
B12: Tyrone | C12: 402
A14: Our Rule:
A15: 1) Add new column with RAND function to our proper data set
A16: 2) Click on Sort A to Z button 5 times.
A17: 3) Copy and paste top 3 records
A19: Note: RAND:
A20: 1) Generates a 15 digit number between 0 and 1 using a uniform distribution. RAND generates: 0 <= Number < 1.
A21: 2) RAND is a volatile function, which means it recalculates after any action you make in Excel (like hit Enter)
A22: 3) F9 key tells RAND function to recalculate.
A24: Finite Population Frame: | E24: Sample Size = n = | F24: 3
A26: Selecting Simple Random Sample Method #2: | G26: VLOOKUP to get record
G27: 2 | H27: 3
A28: RAND | B28: Sales Rep | C28: Sales | E28: Number | F28: SMALL | G28: Sales Rep | H28: Sales
A29: =RAND() -> 0.8492996239 | B29: Sheliadawn | C29: 310 | E29: 1
A30: 0.02633018827 | B30: Chin | C30: 210 | E30: 2
A31: 0.1173183814 | B31: Gigi | C31: 298 | E31: 3
A32: 0.02481183969 | B32: Tyrone | C32: 402
A33: 0.9830856688 | B33: Sioux | C33: 250 | G33: Xbar
A34: 0.5369817264 | B34: Jo | C34: 185 | G34: Mew = µ =
A35: 0.09468363092 | B35: Kip | C35: 370 | G35: Sampling Error
A37: Our Rule:
A38: 1) Add new column with RAND function to our proper data set
A39: 2) Use Small to get 1, 2, 3 smallest RAND values
A40: 3) Use VLOOKUP to get records associated with each smallest RAND value
A41: 4) Click F9 5 times.
A42: 5) Copy and paste top 3 records

Sheet Simple Random Sample (an)
A1: Finite Population Frame: | E1: Sample Size = n = | F1: 3
A3: Selecting Simple Random Sample Method #1:
A5: RAND | B5: Sales Rep | C5: Sales | E5: Sales Rep | F5: Sales
A6: =RAND() -> 0.5411248964 | B6: Sioux | C6: 250 | E6: Sioux | F6: 250
A7: 0.6231393407 | B7: Jo | C7: 185 | E7: Jo | F7: 185
A8: 0.4696853216 | B8: Chin | C8: 210 | E8: Chin | F8: 210
A9: 0.1713746617 | B9: Sheliadawn | C9: 310
A10: 0.822371498 | B10: Gigi | C10: 298 | E10: Xbar | F10: =AVERAGE(F6:F8) -> 215
A11: 0.4403801666 | B11: Kip | C11: 370
A12: 0.1521351912 | B12: Tyrone | C12: 402
A14: Our Rule:
A15: 1) Add new column with RAND function to our proper data set
A16: 2) Click on Sort A to Z button 5 times.
A17: 3) Copy and paste top 3 records
A19: Note: RAND:
A20: 1) Generates a 15 digit number between 0 and 1 using a uniform distribution. RAND generates: 0 <= Number < 1.
A21: 2) RAND is a volatile function, which means it recalculates after any action you make in Excel (like hit Enter)
A22: 3) F9 key tells RAND function to recalculate.
A24: Finite Population Frame: | E24: Sample Size = n = | F24: 3
A26: Selecting Simple Random Sample Method #2: | G26: VLOOKUP to get record
G27: 2 | H27: 3
A28: RAND | B28: Sales Rep | C28: Sales | E28: Number | F28: SMALL | G28: Sales Rep | H28: Sales
A29: =RAND() -> 0.07997158845 | B29: Sheliadawn | C29: 310 | E29: 1 | F29: =SMALL($A$29:$A$35,E29) -> 0.07997158845 | G29: =VLOOKUP(F29,$A$29:$C$35,2,0) -> Sheliadawn | H29: =VLOOKUP(F29,$A$29:$C$35,3,0) -> 310
A30: 0.09749795764 | B30: Chin | C30: 210 | E30: 2 | F30: =SMALL($A$29:$A$35,E30) -> 0.09749795764 | G30: =VLOOKUP(F30,$A$29:$C$35,2,0) -> Chin | H30: =VLOOKUP(F30,$A$29:$C$35,3,0) -> 210
A31: 0.9750598874 | B31: Gigi | C31: 298 | E31: 3 | F31: 0.2490663306 | G31: Kip | H31: 370
A32: 0.4952934415 | B32: Tyrone | C32: 402
A33: 0.4202719046 | B33: Sioux | C33: 250 | G33: Xbar | H33: =AVERAGE(H29:H31) -> 296.6666667
A34: 0.5074601775 | B34: Jo | C34: 185 | G34: Mew = µ = | H34: =AVERAGE(C29:C35) -> 289.2857143
A35: 0.2490663306 | B35: Kip | C35: 370 | G35: Sampling Error | H35: =H33-H34 -> 7.380952381
A37: Our Rule:
A38: 1) Add new column with RAND function to our proper data set
A39: 2) Use Small to get 1, 2, 3 smallest RAND values
A40: 3) Use VLOOKUP to get records associated with each smallest RAND value
A41: 4) Click F9 5 times.
A42: 5) Copy and paste top 3 records

Sheet SRS (hidden)
A1: RAND | B1: SalesRep | C1: Sales | E1: Sample Size, n | G1: Number | H1: Smallest RAND | I1: SalesRep | J1: Sales
A2: =RAND() -> 0.3009768025 | B2: Ashleigh | C2: 83064 | E2: 5 | G2: 1 | H2: =SMALL($A$2:$A$18,G2) -> 0.05448679704 | I2: =VLOOKUP($H2,$A$2:$C$18,COLUMNS($H2:I2),0) -> Garland | J2: =VLOOKUP($H2,$A$2:$C$18,COLUMNS($H2:J2),0) -> 36021
A3: 0.3222936255 | B3: Chauncey | C3: 43040 | G3: 2 | H3: =SMALL($A$2:$A$18,G3) -> 0.06082059893 | I3: =VLOOKUP($H3,$A$2:$C$18,COLUMNS($H3:I3),0) -> Kacey | J3: =VLOOKUP($H3,$A$2:$C$18,COLUMNS($H3:J3),0) -> 94450
A4: 0.3697640792 | B4: Chin | C4: 83768 | G4: 3 | H4: 0.06950198416 | I4: =VLOOKUP($H4,$A$2:$C$18,COLUMNS($H4:I4),0) -> Sheladawn | J4: =VLOOKUP($H4,$A$2:$C$18,COLUMNS($H4:J4),0) -> 100893
A5: 0.5031755168 | B5: Delila | C5: 101112 | G5: 4 | H5: 0.1447029821 | I5: =VLOOKUP($H5,$A$2:$C$18,COLUMNS($H5:I5),0) -> Gigi | J5: =VLOOKUP($H5,$A$2:$C$18,COLUMNS($H5:J5),0) -> 12030
A6: 0.4943945422 | B6: Elina | C6: 19868 | G6: 5 | H6: 0.158713636 | I6: =VLOOKUP($H6,$A$2:$C$18,COLUMNS($H6:I6),0) -> Pham | J6: =VLOOKUP($H6,$A$2:$C$18,COLUMNS($H6:J6),0) -> 36016
A7: 0.05448679704 | B7: Garland | C7: 36021
A8: 0.1447029821 | B8: Gigi | C8: 12030 | I8: Xbar | J8: =AVERAGE(J2:J6) -> 55882
A9: 0.4693620037 | B9: Gregoria | C9: 65219 | I9: Pop Mean | J9: =AVERAGE(C2:C18) -> 64706
A10: 0.06082059893 | B10: Kacey | C10: 94450 | I10: Sampling Error | J10: =J8-J9 -> -8824
A11: 0.3209085323 | B11: Kenia | C11: 97051
A12: 0.7219486119 | B12: Kip | C12: 50249
A13: 0.5665108986 | B13: Paige | C13: 117461
A14: 0.158713636 | B14: Pham | C14: 36016
A15: 0.8874427462 | B15: Reuben | C15: 41696
A16: 0.7635086834 | B16: Roslyn | C16: 84732
A17: 0.06950198416 | B17: Sheladawn | C17: 100893
A18: 0.6234960425 | B18: Tyrone | C18: 33332

Sheet SDofXbar (1)
A1: Pop Size = N = | C1: =COUNTA(A6:A12) -> 7 | M1: Increment | N1: 25
A2: Sample Size = n = | C2: 3 | P2: Frequency | Q2: Frequency
A3: Number of Samples Possible: | C3: =COMBIN(C1,C2) -> 35 | M3: Lower | N3: Upper | O3: Category | P3: Population Distibution | Q3: Sampling Distribution of Xbar
M4: 100 | N4: =M4+$N$1 -> 125 | O4: =M4&" up to "&N4 -> 100 up to 125
A5: Sales Rep | B5: Sales = x | D5: Sales Rep 1 | E5: Sales Rep 2 | F5: Sales Rep 3 | G5: Sales 1 | H5: Sales 2 | I5: Sales 3 | J5: Sample Mean Xbar (Random Variable Xbar) | K5: P(Sample) | M5: =N4 -> 125 | N5: 150 | O5: 125 up to 150
A6: Jo | B6: 185 | D6: Jo | E6: Sioux | F6: Chin | G6: =VLOOKUP(D6,$A$6:$B$12,2,0) -> 185 | H6: =VLOOKUP(E6,$A$6:$B$12,2,0) -> 250 | I6: =VLOOKUP(F6,$A$6:$B$12,2,0) -> 210 | J6: =AVERAGE(G6:I6) -> 215 | K6: =1/$C$3 -> 0.02857142857 | M6: 150 | N6: 175 | O6: 150 up to 175
A7: Sioux | B7: 250 | D7: Jo | E7: Sioux | F7: Sheliadawn | G7: 185 | H7: 250 | I7: 310 | J7: 248.3333333 | K7: 0.02857142857 | M7: 175 | N7: 200 | O7: 175 up to 200
A8: Chin | B8: 210 | D8: Jo | E8: Sioux | F8: Gigi | G8: 185 | H8: 250 | I8: 298 | J8: 244.3333333 | K8: 0.02857142857 | M8: 200 | N8: 225 | O8: 200 up to 225
A9: Sheliadawn | B9: 310 | D9: Jo | E9: Sioux | F9: Tyrone | G9: 185 | H9: 250 | I9: 402 | J9: 279 | K9: 0.02857142857 | M9: 225 | N9: 250 | O9: 225 up to 250
A10: Gigi | B10: 298 | D10: Jo | E10: Sioux | F10: Kip | G10: 185 | H10: 250 | I10: 370 | J10: 268.3333333 | K10: 0.02857142857 | M10: 250 | N10: 275 | O10: 250 up to 275
A11: Tyrone | B11: 402 | D11: Jo | E11: Chin | F11: Sheliadawn | G11: 185 | H11: 210 | I11: 310 | J11: 235 | K11: 0.02857142857 | M11: 275 | N11: 300 | O11: 275 up to 300
A12: Kip | B12: 370 | D12: Jo | E12: Chin | F12: Gigi | G12: 185 | H12: 210 | I12: 298 | J12: 231 | K12: 0.02857142857 | M12: 300 | N12: 325 | O12: 300 up to 325
D13: Jo | E13: Chin | F13: Tyrone | G13: 185 | H13: 210 | I13: 402 | J13: 265.6666667 | K13: 0.02857142857 | M13: 325 | N13: 350 | O13: 325 up to 350
A14: Pop Mean = µ = | D14: Jo | E14: Chin | F14: Kip | G14: 185 | H14: 210 | I14: 370 | J14: 255 | K14: 0.02857142857 | M14: 350 | N14: 375 | O14: 350 up to 375
A15: Mean of all the Means = | D15: Jo | E15: Sheliadawn | F15: Gigi | G15: 185 | H15: 310 | I15: 298 | J15: 264.3333333 | K15: 0.02857142857 | M15: 375 | N15: 400 | O15: 375 up to 400
A16: Expected Value (Xbar) = | D16: Jo | E16: Sheliadawn | F16: Tyrone | G16: 185 | H16: 310 | I16: 402 | J16: 299 | K16: 0.02857142857 | M16: 400 | N16: 425 | O16: 400 up to 425
A17: E(Xbar) = | D17: Jo | E17: Sheliadawn | F17: Kip | G17: 185 | H17: 310 | I17: 370 | J17: 288.3333333 | K17: 0.02857142857
A18: µXbar = | D18: Jo | E18: Gigi | F18: Tyrone | G18: 185 | H18: 298 | I18: 402 | J18: 295 | K18: 0.02857142857
D19: Jo | E19: Gigi | F19: Kip | G19: 185 | H19: 298 | I19: 370 | J19: 284.3333333 | K19: 0.02857142857
A20: Conclusion #1: µ = E(Xbar) | D20: Jo | E20: Tyrone | F20: Kip | G20: 185 | H20: 402 | I20: 370 | J20: 319 | K20: 0.02857142857
D21: Sioux | E21: Chin | F21: Sheliadawn | G21: 250 | H21: 210 | I21: 310 | J21: 256.6666667 | K21: 0.02857142857
D22: Sioux | E22: Chin | F22: Gigi | G22: 250 | H22: 210 | I22: 298 | J22: 252.6666667 | K22: 0.02857142857
A23: Pop Size = N = | D23: Sioux | E23: Chin | F23: Tyrone | G23: 250 | H23: 210 | I23: 402 | J23: 287.3333333 | K23: 0.02857142857
A24: Sample Size = n = | D24: Sioux | E24: Chin | F24: Kip | G24: 250 | H24: 210 | I24: 370 | J24: 276.6666667 | K24: 0.02857142857
A25: Pop SD = Sigma = | D25: Sioux | E25: Sheliadawn | F25: Gigi | G25: 250 | H25: 310 | I25: 298 | J25: 286 | K25: 0.02857142857
A26: E(Xbar) Sigma = | D26: Sioux | E26: Sheliadawn | F26: Tyrone | G26: 250 | H26: 310 | I26: 402 | J26: 320.6666667 | K26: 0.02857142857
A27: If n/N >0.05, Must use SQRT((N-n)/(N-1)) | D27: Sioux | E27: Sheliadawn | F27: Kip | G27: 250 | H27: 310 | I27: 370 | J27: 310 | K27: 0.02857142857
A28: n/N | D28: Sioux | E28: Gigi | F28: Tyrone | G28: 250 | H28: 298 | I28: 402 | J28: 316.6666667 | K28: 0.02857142857
A29: Standard Error = Sigma/SQRT(n)*SQRT((N-n)/(N-1)) | D29: Sioux | E29: Gigi | F29: Kip | G29: 250 | H29: 298 | I29: 370 | J29: 306 | K29: 0.02857142857
D30: Sioux | E30: Tyrone | F30: Kip | G30: 250 | H30: 402 | I30: 370 | J30: 340.6666667 | K30: 0.02857142857
D31: Chin | E31: Sheliadawn | F31: Gigi | G31: 210 | H31: 310 | I31: 298 | J31: 272.6666667 | K31: 0.02857142857
D32: Chin | E32: Sheliadawn | F32: Tyrone | G32: 210 | H32: 310 | I32: 402 | J32: 307.3333333 | K32: 0.02857142857
D33: Chin | E33: Sheliadawn | F33: Kip | G33: 210 | H33: 310 | I33: 370 | J33: 296.6666667 | K33: 0.02857142857
D34: Chin | E34: Gigi | F34: Tyrone | G34: 210 | H34: 298 | I34: 402 | J34: 303.3333333 | K34: 0.02857142857
D35: Chin | E35: Gigi | F35: Kip | G35: 210 | H35: 298 | I35: 370 | J35: 292.6666667 | K35: 0.02857142857 | M35: Conclusion #2: Sampling Distribution of Sample Means Tends to be: Normally Distributed Less Spread In Data
D36: Chin | E36: Tyrone | F36: Kip | G36: 210 | H36: 402 | I36: 370 | J36: 327.3333333 | K36: 0.02857142857
D37: Sheliadawn | E37: Gigi | F37: Tyrone | G37: 310 | H37: 298 | I37: 402 | J37: 336.6666667 | K37: 0.02857142857 | M37: Leads to:
D38: Sheliadawn | E38: Gigi | F38: Kip | G38: 310 | H38: 298 | I38: 370 | J38: 326 | K38: 0.02857142857
D39: Sheliadawn | E39: Tyrone | F39: Kip | G39: 310 | H39: 402 | I39: 370 | J39: 360.6666667 | K39: 0.02857142857
D40: Gigi | E40: Tyrone | F40: Kip | G40: 298 | H40: 402 | I40: 370 | J40: 356.6666667 | K40: 0.02857142857
K41: =SUM(K6:K40) -> 1

Sheet SDofXbar (an)
A1: Pop Size = N = | C1: =COUNTA(A6:A12) -> 7 | M1: Increment | N1: 25
A2: Sample Size = n = | C2: 3 | P2: Frequency | Q2: Frequency
A3: Number of Samples Possible: | C3: =COMBIN(C1,C2) -> 35 | M3: Lower | N3: Upper | O3: Category | P3: Population Distibution | Q3: Sampling Distribution of Xbar | U3: Pop Size = N = | AA3: =COUNT(B6:B12) -> 7
M4: 100 | N4: =M4+$N$1 -> 125 | O4: =M4&" up to "&N4 -> 100 up to 125 | P4: =COUNTIFS($B$6:$B$12,">="&M4,$B$6:$B$12,"<"&N4) -> 0 | Q4: =COUNTIFS($J$6:$J$40,">="&M4,$J$6:$J$40,"<"&N4) -> 0 | U4: Sample Size = n = | AA4: =COUNTA(G6:I6) -> 3
A5: Sales Rep | B5: Sales = x | D5: Sales Rep 1 | E5: Sales Rep 2 | F5: Sales Rep 3 | G5: Sales 1 | H5: Sales 2 | I5: Sales 3 | J5: Sample Mean Xbar (Random Variable Xbar) | K5: P(Sample) | M5: =N4 -> 125 | N5: 150 | O5: 125 up to 150 | P5: =COUNTIFS($B$6:$B$12,">="&M5,$B$6:$B$12,"<"&N5) -> 0 | Q5: =COUNTIFS($J$6:$J$40,">="&M5,$J$6:$J$40,"<"&N5) -> 0 | U5: Pop SD = Sigma = | AA5: =_xlfn.STDEV.P(B6:B12) -> 74.09398334
A6: Jo | B6: 185 | D6: Jo | E6: Sioux | F6: Chin | G6: =VLOOKUP(D6,$A$6:$B$12,2,0) -> 185 | H6: 250 | I6: 210 | J6: =AVERAGE(G6:I6) -> 215 | K6: =1/$C$3 -> 0.02857142857 | M6: 150 | N6: 175 | O6: 150 up to 175 | P6: 0 | Q6: 0 | U6: E(Xbar) Sigma = | AA6: =_xlfn.STDEV.P(J6:J40) -> 34.92823871
A7: Sioux | B7: 250 | D7: Jo | E7: Sioux | F7: Sheliadawn | G7: 185 | H7: 250 | I7: 310 | J7: 248.3333333 | K7: 0.02857142857 | M7: 175 | N7: 200 | O7: 175 up to 200 | P7: 1 | Q7: 0 | U7: Standard Error = Sigma/SQRT(n)*SQRT((N-n)/(N-1)) | AA7: =AA5/SQRT(AA4)*SQRT((AA3-AA4)/(AA3-1)) -> 34.92823871
A8: Chin | B8: 210 | D8: Jo | E8: Sioux | F8: Gigi | G8: 185 | H8: 250 | I8: 298 | J8: 244.3333333 | K8: 0.02857142857 | M8: 200 | N8: 225 | O8: 200 up to 225 | P8: 1 | Q8: 1
A9: Sheliadawn | B9: 310 | D9: Jo | E9: Sioux | F9: Tyrone | G9: 185 | H9: 250 | I9: 402 | J9: 279 | K9: 0.02857142857 | M9: 225 | N9: 250 | O9: 225 up to 250 | P9: 0 | Q9: 4
A10: Gigi | B10: 298 | D10: Jo | E10: Sioux | F10: Kip | G10: 185 | H10: 250 | I10: 370 | J10: 268.3333333 | K10: 0.02857142857 | M10: 250 | N10: 275 | O10: 250 up to 275 | P10: 1 | Q10: 7
A11: Tyrone | B11: 402 | D11: Jo | E11: Chin | F11: Sheliadawn | G11: 185 | H11: 210 | I11: 310 | J11: 235 | K11: 0.02857142857 | M11: 275 | N11: 300 | O11: 275 up to 300 | P11: 1 | Q11: 10
A12: Kip | B12: 370 | D12: Jo | E12: Chin | F12: Gigi | G12: 185 | H12: 210 | I12: 298 | J12: 231 | K12: 0.02857142857 | M12: 300 | N12: 325 | O12: 300 up to 325 | P12: 1 | Q12: 7
D13: Jo | E13: Chin | F13: Tyrone | G13: 185 | H13: 210 | I13: 402 | J13: 265.6666667 | K13: 0.02857142857 | M13: 325 | N13: 350 | O13: 325 up to 350 | P13: 0 | Q13: 4
A14: Pop Mean = µ = | B14: =AVERAGE(B6:B12) -> 289.2857143 | D14: Jo | E14: Chin | F14: Kip | G14: 185 | H14: 210 | I14: 370 | J14: 255 | K14: 0.02857142857 | M14: 350 | N14: 375 | O14: 350 up to 375 | P14: 1 | Q14: 2
A15: Mean of all the Means = | D15: Jo | E15: Sheliadawn | F15: Gigi | G15: 185 | H15: 310 | I15: 298 | J15: 264.3333333 | K15: 0.02857142857 | M15: 375 | N15: 400 | O15: 375 up to 400 | P15: 0 | Q15: 0
A16: Expected Value (Xbar) = | D16: Jo | E16: Sheliadawn | F16: Tyrone | G16: 185 | H16: 310 | I16: 402 | J16: 299 | K16: 0.02857142857 | M16: 400 | N16: 425 | O16: 400 up to 425 | P16: 1 | Q16: 0
A17: E(Xbar) = | D17: Jo | E17: Sheliadawn | F17: Kip | G17: 185 | H17: 310 | I17: 370 | J17: 288.3333333 | K17: 0.02857142857
A18: µXbar = | B18: =AVERAGE(J6:J40) -> 289.2857143 | D18: Jo | E18: Gigi | F18: Tyrone | G18: 185 | H18: 298 | I18: 402 | J18: 295 | K18: 0.02857142857
D19: Jo | E19: Gigi | F19: Kip | G19: 185 | H19: 298 | I19: 370 | J19: 284.3333333 | K19: 0.02857142857
A20: Conclusion #1: µ = E(Xbar) | D20: Jo | E20: Tyrone | F20: Kip | G20: 185 | H20: 402 | I20: 370 | J20: 319 | K20: 0.02857142857
D21: Sioux | E21: Chin | F21: Sheliadawn | G21: 250 | H21: 210 | I21: 310 | J21: 256.6666667 | K21: 0.02857142857
D22: Sioux | E22: Chin | F22: Gigi | G22: 250 | H22: 210 | I22: 298 | J22: 252.6666667 | K22: 0.02857142857
A23: Pop Size = N = | B23: =COUNT(B6:B12) -> 7 | D23: Sioux | E23: Chin | F23: Tyrone | G23: 250 | H23: 210 | I23: 402 | J23: 287.3333333 | K23: 0.02857142857
A24: Sample Size = n = | B24: =COUNT(G6:I6) -> 3 | D24: Sioux | E24: Chin | F24: Kip | G24: 250 | H24: 210 | I24: 370 | J24: 276.6666667 | K24: 0.02857142857
A25: Pop SD = Sigma = | B25: =_xlfn.STDEV.P(B6:B12) -> 74.09398334 | D25: Sioux | E25: Sheliadawn | F25: Gigi | G25: 250 | H25: 310 | I25: 298 | J25: 286 | K25: 0.02857142857
A26: E(Xbar) Sigma = | B26: =_xlfn.STDEV.P(J6:J40) -> 34.92823871 | D26: Sioux | E26: Sheliadawn | F26: Tyrone | G26: 250 | H26: 310 | I26: 402 | J26: 320.6666667 | K26: 0.02857142857
A27: If n/N >0.05, Must use SQRT((N-n)/(N-1)) | D27: Sioux | E27: Sheliadawn | F27: Kip | G27: 250 | H27: 310 | I27: 370 | J27: 310 | K27: 0.02857142857
A28: n/N | B28: =B24/B23 -> 0.4285714286 | D28: Sioux | E28: Gigi | F28: Tyrone | G28: 250 | H28: 298 | I28: 402 | J28: 316.6666667 | K28: 0.02857142857
A29: Standard Error = Sigma/SQRT(n)*SQRT((N-n)/(N-1)) | B29: =B25/SQRT(B24)*SQRT((B23-B24)/(B23-1)) -> 34.92823871 | D29: Sioux | E29: Gigi | F29: Kip | G29: 250 | H29: 298 | I29: 370 | J29: 306 | K29: 0.02857142857
D30: Sioux | E30: Tyrone | F30: Kip | G30: 250 | H30: 402 | I30: 370 | J30: 340.6666667 | K30: 0.02857142857
D31: Chin | E31: Sheliadawn | F31: Gigi | G31: 210 | H31: 310 | I31: 298 | J31: 272.6666667 | K31: 0.02857142857
D32: Chin | E32: Sheliadawn | F32: Tyrone | G32: 210 | H32: 310 | I32: 402 | J32: 307.3333333 | K32: 0.02857142857
D33: Chin | E33: Sheliadawn | F33: Kip | G33: 210 | H33: 310 | I33: 370 | J33: 296.6666667 | K33: 0.02857142857
D34: Chin | E34: Gigi | F34: Tyrone | G34: 210 | H34: 298 | I34: 402 | J34: 303.3333333 | K34: 0.02857142857
D35: Chin | E35: Gigi | F35: Kip | G35: 210 | H35: 298 | I35: 370 | J35: 292.6666667 | K35: 0.02857142857 | M35: Conclusion #2: Sampling Distribution of Sample Means Tends to be: Normally Distributed Less Spread In Data
D36: Chin | E36: Tyrone | F36: Kip | G36: 210 | H36: 402 | I36: 370 | J36: 327.3333333 | K36: 0.02857142857
D37: Sheliadawn | E37: Gigi | F37: Tyrone | G37: 310 | H37: 298 | I37: 402 | J37: 336.6666667 | K37: 0.02857142857 | M37: Leads to:
D38: Sheliadawn | E38: Gigi | F38: Kip | G38: 310 | H38: 298 | I38: 370 | J38: 326 | K38: 0.02857142857
D39: Sheliadawn | E39: Tyrone | F39: Kip | G39: 310 | H39: 402 | I39: 370 | J39: 360.6666667 | K39: 0.02857142857
D40: Gigi | E40: Tyrone | F40: Kip | G40: 298 | H40: 402 | I40: 370 | J40: 356.6666667 | K40: 0.02857142857
K41: =SUM(K6:K40) -> 1

Sheet Combinations
A1: Population Names | C1: Sample Size = n
A2: Ashleigh | C2: 5
A3: Chauncey
A4: Chin | C4: Pop Size = N
A5: Delila | C5: =COUNTA(A2:A18) -> 17
A6: Elina
A7: Garland | C7: Combinations
A8: Gigi
A9: Gregoria
A10: Kacey | K10: http://www.mrexcel.com/forum/showthread.php?t=277924
A11: Kenia
A12: Kip
A13: Paige
A14: Pham
A15: Reuben
A16: Roslyn
A17: Sheladawn
A18: Tyrone

Sheet SDofXbar(2)
A1: Population Data: | F1: List All Possible Samples: | R1: Increment | S1: 10000 | AN1: Pop Mean = m | AO1: y | AQ1: Xbar | AR1: y
U2: Frequency | V2: Frequency | AN2: =AVERAGE(AN5:AN21) -> 64706 | AO2: 0.4 | AQ2: =AVERAGE(AQ5:AQ6192) -> 64706 | AR2: 0.2
A3: SalesRep | B3: Sales = x | D3: Sample Size, n | F3: Name 1 | G3: Name 2 | H3: Name 3 | I3: Name 4 | J3: Name 5 | K3: Sales 1 | L3: Sales 2 | M3: Sales 3 | N3: Sales 4 | O3: Sales 5 | P3: Sample Mean Xbar (Random Variable x) | R3: Lower | S3: Upper | T3: Label | U3: Population Distibution | V3: Sampling Distribution of Xbar
A4: Ashleigh | B4: 83064 | D4: 5 | R4: 0 | S4: =R4+$S$1 -> 10000 | T4: =TEXT(R4,"0, K")&" up to "&TEXT(S4,"0, K") -> 0 K up to 10 K | AN4: Pop x | AO4: Pop. Data Points | AQ4: Xbar X | AR4: Xbar Data Points
A5: Chauncey | B5: 43040 | R5: =S4 -> 10000 | S5: =R5+$S$1 -> 20000 | T5: =TEXT(R5,"0, K")&" up to "&TEXT(S5,"0, K") -> 10 K up to 20 K | AN5: 83064 | AO5: 0.5 | AQ5: 66170.4 | AR5: 0.3
A6: Chin | B6: 83768 | D6: Population Size, N | R6: =S5 -> 20000 | S6: =R6+$S$1 -> 30000 | T6: =TEXT(R6,"0, K")&" up to "&TEXT(S6,"0, K") -> 20 K up to 30 K | AN6: 43040 | AO6: 0.5 | AQ6: 69401 | AR6: 0.3
A7: Delila | B7: 101112 | D7: =COUNTA(A4:A20) -> 17 | R7: 30000 | S7: 40000 | T7: 30 K up to 40 K | AN7: 83768 | AO7: 0.5 | AQ7: 64602.8 | AR7: 0.3
A8: Elina | B8: 19868 | R8: 40000 | S8: 50000 | T8: 40 K up to 50 K | AN8: 101112 | AO8: 0.5 | AQ8: 75240.6 | AR8: 0.3
A9: Garland | B9: 36021 | D9: Max | R9: 50000 | S9: 60000 | T9: 50 K up to 60 K | AN9: 19868 | AO9: 0.5 | AQ9: 81086.8 | AR9: 0.3
A10: Gigi | B10: 12030 | D10: =MAX(B4:B20) -> 117461 | R10: 60000 | S10: 70000 | T10: 60 K up to 70 K | AN10: 36021 | AO10: 0.5 | AQ10: 81607 | AR10: 0.3
A11: Gregoria | B11: 65219 | R11: =S10 -> 70000 | S11: =R11+$S$1 -> 80000 | T11: =TEXT(R11,"0, K")&" up to "&TEXT(S11,"0, K") -> 70 K up to 80 K | AN11: 12030 | AO11: 0.5 | AQ11: 72246.6 | AR11: 0.3
A12: Kacey | B12: 94450 | D12: Min | R12: 80000 | S12: 90000 | T12: =TEXT(R12,"0, K")&" up to "&TEXT(S12,"0, K") -> 80 K up to 90 K | AN12: 65219 | AO12: 0.5 | AQ12: 85689 | AR12: 0.3
A13: Kenia | B13: 97051 | D13: =MIN(B4:B20) -> 12030 | R13: 90000 | S13: 100000 | T13: 90 K up to 100 K | AN13: 94450 | AO13: 0.5 | AQ13: 69400 | AR13: 0.3
A14: Kip | B14: 50249 | R14: 100000 | S14: 110000 | T14: 100 K up to 110 K | AN14: 97051 | AO14: 0.5 | AQ14: 68863.2 | AR14: 0.3
A15: Paige | B15: 117461 | D15: Combinations | R15: =S14 -> 110000 | S15: =R15+$S$1 -> 120000 | T15: =TEXT(R15,"0, K")&" up to "&TEXT(S15,"0, K") -> 110 K up to 120 K | AN15: 50249 | AO15: 0.5 | AQ15: 70536 | AR15: 0.3
A16: Pham | B16: 36016 | D16: =COMBIN(D7,D4) -> 6188 | AN16: 117461 | AO16: 0.5 | AQ16: 79143.2 | AR16: 0.3
A17: Reuben | B17: 33332 | AN17: 36016 | AO17: 0.5 | AQ17: 82375.4 | AR17: 0.3
A18: Roslyn | B18: 41696 | D18: Pop. Mean = m | AN18: 33332 | AO18: 0.5 | AQ18: 53152.2 | AR18: 0.3
A19: Sheladawn | B19: 84732 | AN19: 41696 | AO19: 0.5 | AQ19: 48354 | AR19: 0.3
A20: Tyrone | B20: 100893 | AN20: 84732 | AO20: 0.5 | AQ20: 58991.8 | AR20: 0.3
D21: E(Xbar) = µXbar = | AN21: 100893 | AO21: 0.5 | AQ21: 64838 | AR21: 0.3
A22: This is called "unbiased" ==> | AQ22: 65358.2 | AR22: 0.3
A23: Because point estimator = pop parameter | AQ23: 55997.8 | AR23: 0.3
AQ24: 69440.2 | AR24: 0.3
AQ25: 53151.2 | AR25: 0.3
AQ26: 52614.4 | AR26: 0.3
AQ27: 54287.2 | AR27: 0.3
AQ28: 62894.4 | AR28: 0.3
AQ29: 66126.6 | AR29: 0.3
AQ30: 51584.6 | AR30: 0.3
AQ31: 62222.4 | AR31: 0.3
AQ32: 68068.6 | AR32: 0.3
AQ33: 68588.8 | AR33: 0.3
AQ34: 59228.4 | AR34: 0.3
AQ35: 72670.8 | AR35: 0.3
AQ36: 56381.8 | AR36: 0.3
AQ37: 55845 | AR37: 0.3
AQ38: 57517.8 | AR38: 0.3
AQ39: 66125 | AR39: 0.3
AQ40: 69357.2 | AR40: 0.3
AQ41: 57424.2 | AR41: 0.3
AQ42: 63270.4 | AR42: 0.3
AQ43: 63790.6 | AR43: 0.3
AQ44: 54430.2 | AR44: 0.3
AQ45: 67872.6 | AR45: 0.3
AQ46: 51583.6 | AR46: 0.3
AQ47: 51046.8 | AR47: 0.3
AQ48: 52719.6 | AR48: 0.3
AQ49: 61326.8 | AR49: 0.3
AQ50: 64559 | AR50: 0.3
AQ51: 73908.2 | AR51: 0.3
AQ52: 74428.4 | AR52: 0.3
AQ53: 65068 | AR53: 0.3
AQ54: 78510.4 | AR54: 0.3
AQ55: 62221.4 | AR55: 0.3
AQ56: 61684.6 | AR56: 0.3
AQ57: 63357.4 | AR57: 0.3
AQ58: 71964.6 | AR58: 0.3
AQ59: 75196.8 | AR59: 0.3
AQ60: 80274.6 | AR60: 0.3
AQ61: 70914.2 | AR61: 0.3
AQ62: 84356.6 | AR62: 0.3
AQ63: 68067.6 | AR63: 0.3
AQ64: 67530.8 | AR64: 0.3
AQ65: 69203.6 | AR65: 0.3
AQ66: 77810.8 | AR66: 0.3
AQ67: 81043 | AR67: 0.3
AQ68: 71434.4 | AR68: 0.3
AQ69: 84876.8 | AR69: 0.3
AQ70: 68587.8 | AR70: 0.3
AQ71: 68051 | AR71: 0.3
AQ72: 69723.8 | AR72: 0.3
AQ73: 78331 | AR73: 0.3
AQ74: 81563.2 | AR74: 0.3
AQ75: 75516.4 | AR75: 0.3
AQ76: 59227.4 | AR76: 0.3
AQ77: 58690.6 | AR77: 0.3
AQ78: 60363.4 | AR78: 0.3
AQ79: 68970.6 | AR79: 0.3
AQ80: 72202.8 | AR80: 0.3
AQ81: 72669.8 | AR81: 0.3
AQ82: 72133 | AR82: 0.3
AQ83: 73805.8 | AR83: 0.3
AQ84: 82413 | AR84: 0.3
AQ85: 85645.2 | AR85: 0.3
AQ86: 55844 | AR86: 0.3
AQ87: 57516.8 | AR87: 0.3
AQ88: 66124 | AR88: 0.3
AQ89: 69356.2 | AR89: 0.3
AQ90: 56980 | AR90: 0.3
AQ91: 65587.2 | AR91: 0.3
AQ92: 68819.4 | AR92: 0.3
AQ93: 67260 | AR93: 0.3
AQ94: 70492.2 | AR94: 0.3
AQ95: 79099.4 | AR95: 0.3
AQ96: 56621 | AR96: 0.3
AQ97: 51822.8 | AR97: 0.3
AQ98: 62460.6 | AR98: 0.3
AQ99: 68306.8 | AR99: 0.3
AQ100: 68827 | AR100: 0.3
AQ101: 59466.6 | AR101: 0.3
AQ102: 72909 | AR102: 0.3
AQ103: 56620 | AR103: 0.3
AQ104: 56083.2 | AR104: 0.3
AQ105: 57756 | AR105: 0.3
AQ106: 66363.2 | AR106: 0.3
AQ107: 69595.4 | AR107: 0.3
AQ108: 55053.4 | AR108: 0.3
AQ109: 65691.2 | AR109: 0.3
AQ110: 71537.4 | AR110: 0.3
AQ111: 72057.6 | AR111: 0.3
AQ112: 62697.2 | AR112: 0.3
AQ113: 76139.6 | AR113: 0.3
AQ114: 59850.6 | AR114: 0.3
AQ115: 59313.8 | AR115: 0.3
AQ116: 60986.6 | AR116: 0.3
AQ117: 69593.8 | AR117: 0.3
AQ118: 72826 | AR118: 0.3
AQ119: 60893 | AR119: 0.3
AQ120: 66739.2 | AR120: 0.3
AQ121: 67259.4 | AR121: 0.3
AQ122: 57899 | AR122: 0.3
AQ123: 71341.4 | AR123: 0.3
AQ124: 55052.4 | AR124: 0.3
AQ125: 54515.6 | AR125: 0.3
AQ126: 56188.4 | AR126: 0.3
AQ127: 64795.6 | AR127: 0.3
AQ128: 68027.8 | AR128: 0.3
AQ129: 77377 | AR129: 0.3
AQ130: 77897.2 | AR130: 0.3
AQ131: 68536.8 | AR131: 0.3
AQ132: 81979.2 | AR132: 0.3
AQ133: 65690.2 | AR133: 0.3
AQ134: 65153.4 | AR134: 0.3
AQ135: 66826.2 | AR135: 0.3
AQ136: 75433.4 | AR136: 0.3
AQ137: 78665.6 | AR137: 0.3
AQ138: 83743.4 | AR138: 0.3
AQ139: 74383 | AR139: 0.3
AQ140: 87825.4 | AR140: 0.3
AQ141: 71536.4 | AR141: 0.3
AQ142: 70999.6 | AR142: 0.3
AQ143: 72672.4 | AR143: 0.3
AQ144: 81279.6 | AR144: 0.3
AQ145: 84511.8 | AR145: 0.3
AQ146: 74903.2 | AR146: 0.3
AQ147: 88345.6 | AR147: 0.3
AQ148: 72056.6 | AR148: 0.3
AQ149: 71519.8 | AR149: 0.3
AQ150: 73192.6 | AR150: 0.3
AQ151: 81799.8 | AR151: 0.3
AQ152: 85032 | AR152: 0.3
AQ153: 78985.2 | AR153: 0.3
AQ154: 62696.2 | AR154: 0.3
AQ155: 62159.4 | AR155: 0.3
AQ156: 63832.2 | AR156: 0.3
AQ157: 72439.4 | AR157: 0.3
AQ158: 75671.6 | AR158: 0.3
AQ159: 76138.6 | AR159: 0.3
AQ160: 75601.8 | AR160: 0.3
AQ161: 77274.6 | AR161: 0.3
AQ162: 85881.8 | AR162: 0.3
AQ163: 89114 | AR163: 0.3
AQ164: 59312.8 | AR164: 0.3
AQ165: 60985.6 | AR165: 0.3
AQ166: 69592.8 | AR166: 0.3
AQ167: 72825 | AR167: 0.3
AQ168: 60448.8 | AR168: 0.3
AQ169: 69056 | AR169: 0.3
AQ170: 72288.2 | AR170: 0.3
AQ171: 70728.8 | AR171: 0.3
AQ172: 73961 | AR172: 0.3
AQ173: 82568.2 | AR173: 0.3
AQ174: 38804.6 | AR174: 0.3
AQ175: 49442.4 | AR175: 0.3
AQ176: 55288.6 | AR176: 0.3
AQ177: 55808.8 | AR177: 0.3
AQ178: 46448.4 | AR178: 0.3
AQ179: 59890.8 | AR179: 0.3
AQ180: 43601.8 | AR180: 0.3
AQ181: 43065 | AR181: 0.3
AQ182: 44737.8 | AR182: 0.3
AQ183: 53345 | AR183: 0.3
AQ184: 56577.2 | AR184: 0.3
AQ185: 44644.2 | AR185: 0.3
AQ186: 50490.4 | AR186: 0.3
AQ187: 51010.6 | AR187: 0.3
AQ188: 41650.2 | AR188: 0.3
AQ189: 55092.6 | AR189: 0.3
AQ190: 38803.6 | AR190: 0.3
AQ191: 38266.8 | AR191: 0.3
AQ192: 39939.6 | AR192: 0.3
AQ193: 48546.8 | AR193: 0.3
AQ194: 51779 | AR194: 0.3
AQ195: 61128.2 | AR195: 0.3
AQ196: 61648.4 | AR196: 0.3
AQ197: 52288 | AR197: 0.3
AQ198: 65730.4 | AR198: 0.3
AQ199: 49441.4 | AR199: 0.3
AQ200: 48904.6 | AR200: 0.3
... 2050 more rows

Sheet SDofXbar(2an)
A1: Population Data: | F1: List All Possible Samples: | R1: Increment | S1: 10000 | AN1: Pop Mean = m | AO1: y | AQ1: Xbar | AR1: y
U2: Frequency | V2: Frequency | AN2: =AVERAGE(AN5:AN21) -> 64706 | AO2: 0.4 | AQ2: =AVERAGE(AQ5:AQ6192) -> 64706 | AR2: 0.2
A3: SalesRep | B3: Sales = x | D3: Sample Size, n | F3: Name 1 | G3: Name 2 | H3: Name 3 | I3: Name 4 | J3: Name 5 | K3: Hours 1 | L3: Hours 2 | M3: Hours 3 | N3: Hours 4 | O3: Hours 5 | P3: Sample Mean Xbar (Random Variable x) | R3: Lower | S3: Upper | T3: Label | U3: Population Distibution | V3: Sampling Distribution of Xbar | Y3: Pop Size = N = | AE3: =COUNT(B4:B20) -> 17
A4: Ashleigh | B4: 83064 | D4: 5 | F4: Ashleigh | G4: Chauncey | H4: Chin | I4: Delila | J4: Elina | K4: =VLOOKUP(F4,$A$4:$B$20,2) -> 83064 | L4: =VLOOKUP(G4,$A$4:$B$20,2) -> 43040 | M4: 83768 | N4: 101112 | O4: 19868 | P4: =AVERAGE(K4:O4) -> 66170.4 | R4: 0 | S4: =R4+$S$1 -> 10000 | T4: =TEXT(R4,"0, K")&" up to "&TEXT(S4,"0, K") -> 0 K up to 10 K | U4: =COUNTIFS($B$4:$B$20,">="&$R4,$B$4:$B$20,"<"&$S4) -> 0 | V4: =COUNTIFS($P$4:$P$6191,">="&$R4,$P$4:$P$6191,"<"&$S4) -> 0 | Y4: Sample Size = n = | AE4: =COUNTA(K4:O4) -> 5 | AN4: Pop x | AO4: Pop. Data Points | AQ4: Xbar X | AR4: Xbar Data Points
A5: Chauncey | B5: 43040 | F5: Ashleigh | G5: Chauncey | H5: Chin | I5: Delila | J5: Garland | K5: =VLOOKUP(F5,$A$4:$B$20,2) -> 83064 | L5: 43040 | M5: 83768 | N5: 101112 | O5: 36021 | P5: =AVERAGE(K5:O5) -> 69401 | R5: =S4 -> 10000 | S5: =R5+$S$1 -> 20000 | T5: =TEXT(R5,"0, K")&" up to "&TEXT(S5,"0, K") -> 10 K up to 20 K | U5: =COUNTIFS($B$4:$B$20,">="&$R5,$B$4:$B$20,"<"&$S5) -> 2 | V5: =COUNTIFS($P$4:$P$6191,">="&$R5,$P$4:$P$6191,"<"&$S5) -> 0 | Y5: Pop SD = Sigma = | AE5: =_xlfn.STDEV.P(B4:B20) -> 31691.46403 | AN5: 83064 | AO5: 0.5 | AQ5: 66170.4 | AR5: 0.3
A6: Chin | B6: 83768 | D6: Population Size, N | F6: Ashleigh | G6: Chauncey | H6: Chin | I6: Delila | J6: Gigi | K6: 83064 | L6: 43040 | M6: 83768 | N6: 101112 | O6: 12030 | P6: 64602.8 | R6: =S5 -> 20000 | S6: =R6+$S$1 -> 30000 | T6: =TEXT(R6,"0, K")&" up to "&TEXT(S6,"0, K") -> 20 K up to 30 K | U6: 0 | V6: 8 | Y6: E(Xbar) Sigma = | AE6: =_xlfn.STDEV.P(P4:P6191) -> 12274.05124 | AN6: 43040 | AO6: 0.5 | AQ6: 69401 | AR6: 0.3
A7: Delila | B7: 101112 | D7: =COUNTA(A4:A20) -> 17 | F7: Ashleigh | G7: Chauncey | H7: Chin | I7: Delila | J7: Gregoria | K7: 83064 | L7: 43040 | M7: 83768 | N7: 101112 | O7: 65219 | P7: 75240.6 | R7: 30000 | S7: 40000 | T7: 30 K up to 40 K | U7: 3 | V7: 114 | Y7: Standard Error = Sigma/SQRT(n)*SQRT((N-n)/(N-1)) | AE7: =AE5/SQRT(AE4)*SQRT((AE3-AE4)/(AE3-1)) -> 12274.05124 | AN7: 83768 | AO7: 0.5 | AQ7: 64602.8 | AR7: 0.3
A8: Elina | B8: 19868 | F8: Ashleigh | G8: Chauncey | H8: Chin | I8: Delila | J8: Kacey | K8: 83064 | L8: 43040 | M8: 83768 | N8: 101112 | O8: 94450 | P8: 81086.8 | R8: 40000 | S8: 50000 | T8: 40 K up to 50 K | U8: 2 | V8: 627 | AN8: 101112 | AO8: 0.5 | AQ8: 75240.6 | AR8: 0.3
A9: Garland | B9: 36021 | D9: Max | F9: Ashleigh | G9: Chauncey | H9: Chin | I9: Delila | J9: Kenia | K9: 83064 | L9: 43040 | M9: 83768 | N9: 101112 | O9: 97051 | P9: 81607 | R9: 50000 | S9: 60000 | T9: 50 K up to 60 K | U9: 1 | V9: 1479 | AN9: 19868 | AO9: 0.5 | AQ9: 81086.8 | AR9: 0.3
A10: Gigi | B10: 12030 | D10: =MAX(B4:B20) -> 117461 | F10: Ashleigh | G10: Chauncey | H10: Chin | I10: Delila | J10: Kip | K10: 83064 | L10: 43040 | M10: 83768 | N10: 101112 | O10: 50249 | P10: 72246.6 | R10: 60000 | S10: 70000 | T10: 60 K up to 70 K | U10: 1 | V10: 1853 | AN10: 36021 | AO10: 0.5 | AQ10: 81607 | AR10: 0.3
A11: Gregoria | B11: 65219 | F11: Ashleigh | G11: Chauncey | H11: Chin | I11: Delila | J11: Paige | K11: 83064 | L11: 43040 | M11: 83768 | N11: 101112 | O11: 117461 | P11: 85689 | R11: =S10 -> 70000 | S11: =R11+$S$1 -> 80000 | T11: =TEXT(R11,"0, K")&" up to "&TEXT(S11,"0, K") -> 70 K up to 80 K | U11: 0 | V11: 1420 | AN11: 12030 | AO11: 0.5 | AQ11: 72246.6 | AR11: 0.3
A12: Kacey | B12: 94450 | D12: Min | F12: Ashleigh | G12: Chauncey | H12: Chin | I12: Delila | J12: Pham | K12: 83064 | L12: 43040 | M12: 83768 | N12: 101112 | O12: 36016 | P12: 69400 | R12: 80000 | S12: 90000 | T12: =TEXT(R12,"0, K")&" up to "&TEXT(S12,"0, K") -> 80 K up to 90 K | U12: 3 | V12: 588 | AN12: 65219 | AO12: 0.5 | AQ12: 85689 | AR12: 0.3
A13: Kenia | B13: 97051 | D13: =MIN(B4:B20) -> 12030 | F13: Ashleigh | G13: Chauncey | H13: Chin | I13: Delila | J13: Reuben | K13: 83064 | L13: 43040 | M13: 83768 | N13: 101112 | O13: 33332 | P13: 68863.2 | R13: 90000 | S13: 100000 | T13: 90 K up to 100 K | U13: 2 | V13: 96 | AN13: 94450 | AO13: 0.5 | AQ13: 69400 | AR13: 0.3
A14: Kip | B14: 50249 | F14: Ashleigh | G14: Chauncey | H14: Chin | I14: Delila | J14: Roslyn | K14: 83064 | L14: 43040 | M14: 83768 | N14: 101112 | O14: 41696 | P14: 70536 | R14: 100000 | S14: 110000 | T14: 100 K up to 110 K | U14: 2 | V14: 3 | AN14: 97051 | AO14: 0.5 | AQ14: 68863.2 | AR14: 0.3
A15: Paige | B15: 117461 | D15: Combinations | F15: Ashleigh | G15: Chauncey | H15: Chin | I15: Delila | J15: Sheladawn | K15: 83064 | L15: 43040 | M15: 83768 | N15: 101112 | O15: 84732 | P15: 79143.2 | R15: =S14 -> 110000 | S15: =R15+$S$1 -> 120000 | T15: =TEXT(R15,"0, K")&" up to "&TEXT(S15,"0, K") -> 110 K up to 120 K | U15: 1 | V15: 0 | AN15: 50249 | AO15: 0.5 | AQ15: 70536 | AR15: 0.3
A16: Pham | B16: 36016 | D16: =COMBIN(D7,D4) -> 6188 | F16: Ashleigh | G16: Chauncey | H16: Chin | I16: Delila | J16: Tyrone | K16: 83064 | L16: 43040 | M16: 83768 | N16: 101112 | O16: 100893 | P16: 82375.4 | AN16: 117461 | AO16: 0.5 | AQ16: 79143.2 | AR16: 0.3
A17: Reuben | B17: 33332 | F17: Ashleigh | G17: Chauncey | H17: Chin | I17: Elina | J17: Garland | K17: 83064 | L17: 43040 | M17: 83768 | N17: 19868 | O17: 36021 | P17: 53152.2 | AN17: 36016 | AO17: 0.5 | AQ17: 82375.4 | AR17: 0.3
A18: Roslyn | B18: 41696 | D18: Pop. Mean = m | F18: Ashleigh | G18: Chauncey | H18: Chin | I18: Elina | J18: Gigi | K18: 83064 | L18: 43040 | M18: 83768 | N18: 19868 | O18: 12030 | P18: 48354 | AN18: 33332 | AO18: 0.5 | AQ18: 53152.2 | AR18: 0.3
A19: Sheladawn | B19: 84732 | F19: Ashleigh | G19: Chauncey | H19: Chin | I19: Elina | J19: Gregoria | K19: 83064 | L19: 43040 | M19: 83768 | N19: 19868 | O19: 65219 | P19: 58991.8 | AN19: 41696 | AO19: 0.5 | AQ19: 48354 | AR19: 0.3
A20: Tyrone | B20: 100893 | F20: Ashleigh | G20: Chauncey | H20: Chin | I20: Elina | J20: Kacey | K20: 83064 | L20: 43040 | M20: 83768 | N20: 19868 | O20: 94450 | P20: 64838 | AN20: 84732 | AO20: 0.5 | AQ20: 58991.8 | AR20: 0.3
D21: E(Xbar) = µXbar = | F21: Ashleigh | G21: Chauncey | H21: Chin | I21: Elina | J21: Kenia | K21: 83064 | L21: 43040 | M21: 83768 | N21: 19868 | O21: 97051 | P21: 65358.2 | AN21: 100893 | AO21: 0.5 | AQ21: 64838 | AR21: 0.3
A22: This is called "unbiased" ==> | D22: =AVERAGE(P4:P6191) -> 64706 | F22: Ashleigh | G22: Chauncey | H22: Chin | I22: Elina | J22: Kip | K22: 83064 | L22: 43040 | M22: 83768 | N22: 19868 | O22: 50249 | P22: 55997.8 | AQ22: 65358.2 | AR22: 0.3
A23: Because point estimator = pop parameter | F23: Ashleigh | G23: Chauncey | H23: Chin | I23: Elina | J23: Paige | K23: 83064 | L23: 43040 | M23: 83768 | N23: 19868 | O23: 117461 | P23: 69440.2 | AQ23: 55997.8 | AR23: 0.3
D24: Pop SD | F24: Ashleigh | G24: Chauncey | H24: Chin | I24: Elina | J24: Pham | K24: 83064 | L24: 43040 | M24: 83768 | N24: 19868 | O24: 36016 | P24: 53151.2 | AQ24: 69440.2 | AR24: 0.3
D25: =_xlfn.STDEV.P(B4:B20) -> 31691.46403 | F25: Ashleigh | G25: Chauncey | H25: Chin | I25: Elina | J25: Reuben | K25: 83064 | L25: 43040 | M25: 83768 | N25: 19868 | O25: 33332 | P25: 52614.4 | AQ25: 53151.2 | AR25: 0.3
F26: Ashleigh | G26: Chauncey | H26: Chin | I26: Elina | J26: Roslyn | K26: 83064 | L26: 43040 | M26: 83768 | N26: 19868 | O26: 41696 | P26: 54287.2 | AQ26: 52614.4 | AR26: 0.3
D27: Xbar SD | F27: Ashleigh | G27: Chauncey | H27: Chin | I27: Elina | J27: Sheladawn | K27: 83064 | L27: 43040 | M27: 83768 | N27: 19868 | O27: 84732 | P27: 62894.4 | AQ27: 54287.2 | AR27: 0.3
D28: =_xlfn.STDEV.P(P4:P6191) -> 12274.05124 | F28: Ashleigh | G28: Chauncey | H28: Chin | I28: Elina | J28: Tyrone | K28: 83064 | L28: 43040 | M28: 83768 | N28: 19868 | O28: 100893 | P28: 66126.6 | AQ28: 62894.4 | AR28: 0.3
F29: Ashleigh | G29: Chauncey | H29: Chin | I29: Garland | J29: Gigi | K29: 83064 | L29: 43040 | M29: 83768 | N29: 36021 | O29: 12030 | P29: 51584.6 | AQ29: 66126.6 | AR29: 0.3
D30: Standard Error | F30: Ashleigh | G30: Chauncey | H30: Chin | I30: Garland | J30: Gregoria | K30: 83064 | L30: 43040 | M30: 83768 | N30: 36021 | O30: 65219 | P30: 62222.4 | AQ30: 51584.6 | AR30: 0.3
D31: =D25/SQRT(D4) -> 14172.85358 | F31: Ashleigh | G31: Chauncey | H31: Chin | I31: Garland | J31: Kacey | K31: 83064 | L31: 43040 | M31: 83768 | N31: 36021 | O31: 94450 | P31: 68068.6 | AQ31: 62222.4 | AR31: 0.3
F32: Ashleigh | G32: Chauncey | H32: Chin | I32: Garland | J32: Kenia | K32: 83064 | L32: 43040 | M32: 83768 | N32: 36021 | O32: 97051 | P32: 68588.8 | AQ32: 68068.6 | AR32: 0.3
F33: Ashleigh | G33: Chauncey | H33: Chin | I33: Garland | J33: Kip | K33: 83064 | L33: 43040 | M33: 83768 | N33: 36021 | O33: 50249 | P33: 59228.4 | AQ33: 68588.8 | AR33: 0.3
A34: *As n increases, Standard Error decreases, which means there is higher probability that Xbar falls within specified distance of Pop Mean | F34: Ashleigh | G34: Chauncey | H34: Chin | I34: Garland | J34: Paige | K34: 83064 | L34: 43040 | M34: 83768 | N34: 36021 | O34: 117461 | P34: 72670.8 | AQ34: 59228.4 | AR34: 0.3
F35: Ashleigh | G35: Chauncey | H35: Chin | I35: Garland | J35: Pham | K35: 83064 | L35: 43040 | M35: 83768 | N35: 36021 | O35: 36016 | P35: 56381.8 | AQ35: 72670.8 | AR35: 0.3
F36: Ashleigh | G36: Chauncey | H36: Chin | I36: Garland | J36: Reuben | K36: 83064 | L36: 43040 | M36: 83768 | N36: 36021 | O36: 33332 | P36: 55845 | AQ36: 56381.8 | AR36: 0.3
F37: Ashleigh | G37: Chauncey | H37: Chin | I37: Garland | J37: Roslyn | K37: 83064 | L37: 43040 | M37: 83768 | N37: 36021 | O37: 41696 | P37: 57517.8 | AQ37: 55845 | AR37: 0.3
F38: Ashleigh | G38: Chauncey | H38: Chin | I38: Garland | J38: Sheladawn | K38: 83064 | L38: 43040 | M38: 83768 | N38: 36021 | O38: 84732 | P38: 66125 | AQ38: 57517.8 | AR38: 0.3
F39: Ashleigh | G39: Chauncey | H39: Chin | I39: Garland | J39: Tyrone | K39: 83064 | L39: 43040 | M39: 83768 | N39: 36021 | O39: 100893 | P39: 69357.2 | AQ39: 66125 | AR39: 0.3
F40: Ashleigh | G40: Chauncey | H40: Chin | I40: Gigi | J40: Gregoria | K40: 83064 | L40: 43040 | M40: 83768 | N40: 12030 | O40: 65219 | P40: 57424.2 | AQ40: 69357.2 | AR40: 0.3
F41: Ashleigh | G41: Chauncey | H41: Chin | I41: Gigi | J41: Kacey | K41: 83064 | L41: 43040 | M41: 83768 | N41: 12030 | O41: 94450 | P41: 63270.4 | AQ41: 57424.2 | AR41: 0.3
F42: Ashleigh | G42: Chauncey | H42: Chin | I42: Gigi | J42: Kenia | K42: 83064 | L42: 43040 | M42: 83768 | N42: 12030 | O42: 97051 | P42: 63790.6 | AQ42: 63270.4 | AR42: 0.3
F43: Ashleigh | G43: Chauncey | H43: Chin | I43: Gigi | J43: Kip | K43: 83064 | L43: 43040 | M43: 83768 | N43: 12030 | O43: 50249 | P43: 54430.2 | AQ43: 63790.6 | AR43: 0.3
F44: Ashleigh | G44: Chauncey | H44: Chin | I44: Gigi | J44: Paige | K44: 83064 | L44: 43040 | M44: 83768 | N44: 12030 | O44: 117461 | P44: 67872.6 | AQ44: 54430.2 | AR44: 0.3
F45: Ashleigh | G45: Chauncey | H45: Chin | I45: Gigi | J45: Pham | K45: 83064 | L45: 43040 | M45: 83768 | N45: 12030 | O45: 36016 | P45: 51583.6 | AQ45: 67872.6 | AR45: 0.3
F46: Ashleigh | G46: Chauncey | H46: Chin | I46: Gigi | J46: Reuben | K46: 83064 | L46: 43040 | M46: 83768 | N46: 12030 | O46: 33332 | P46: 51046.8 | AQ46: 51583.6 | AR46: 0.3
F47: Ashleigh | G47: Chauncey | H47: Chin | I47: Gigi | J47: Roslyn | K47: 83064 | L47: 43040 | M47: 83768 | N47: 12030 | O47: 41696 | P47: 52719.6 | AQ47: 51046.8 | AR47: 0.3
F48: Ashleigh | G48: Chauncey | H48: Chin | I48: Gigi | J48: Sheladawn | K48: 83064 | L48: 43040 | M48: 83768 | N48: 12030 | O48: 84732 | P48: 61326.8 | AQ48: 52719.6 | AR48: 0.3
F49: Ashleigh | G49: Chauncey | H49: Chin | I49: Gigi | J49: Tyrone | K49: 83064 | L49: 43040 | M49: 83768 | N49: 12030 | O49: 100893 | P49: 64559 | AQ49: 61326.8 | AR49: 0.3
F50: Ashleigh | G50: Chauncey | H50: Chin | I50: Gregoria | J50: Kacey | K50: 83064 | L50: 43040 | M50: 83768 | N50: 65219 | O50: 94450 | P50: 73908.2 | AQ50: 64559 | AR50: 0.3
F51: Ashleigh | G51: Chauncey | H51: Chin | I51: Gregoria | J51: Kenia | K51: 83064 | L51: 43040 | M51: 83768 | N51: 65219 | O51: 97051 | P51: 74428.4 | AQ51: 73908.2 | AR51: 0.3
F52: Ashleigh | G52: Chauncey | H52: Chin | I52: Gregoria | J52: Kip | K52: 83064 | L52: 43040 | M52: 83768 | N52: 65219 | O52: 50249 | P52: 65068 | AQ52: 74428.4 | AR52: 0.3
F53: Ashleigh | G53: Chauncey | H53: Chin | I53: Gregoria | J53: Paige | K53: 83064 | L53: 43040 | M53: 83768 | N53: 65219 | O53: 117461 | P53: 78510.4 | AQ53: 65068 | AR53: 0.3
F54: Ashleigh | G54: Chauncey | H54: Chin | I54: Gregoria | J54: Pham | K54: 83064 | L54: 43040 | M54: 83768 | N54: 65219 | O54: 36016 | P54: 62221.4 | AQ54: 78510.4 | AR54: 0.3
F55: Ashleigh | G55: Chauncey | H55: Chin | I55: Gregoria | J55: Reuben | K55: 83064 | L55: 43040 | M55: 83768 | N55: 65219 | O55: 33332 | P55: 61684.6 | AQ55: 62221.4 | AR55: 0.3
F56: Ashleigh | G56: Chauncey | H56: Chin | I56: Gregoria | J56: Roslyn | K56: 83064 | L56: 43040 | M56: 83768 | N56: 65219 | O56: 41696 | P56: 63357.4 | AQ56: 61684.6 | AR56: 0.3
F57: Ashleigh | G57: Chauncey | H57: Chin | I57: Gregoria | J57: Sheladawn | K57: 83064 | L57: 43040 | M57: 83768 | N57: 65219 | O57: 84732 | P57: 71964.6 | AQ57: 63357.4 | AR57: 0.3
F58: Ashleigh | G58: Chauncey | H58: Chin | I58: Gregoria | J58: Tyrone | K58: 83064 | L58: 43040 | M58: 83768 | N58: 65219 | O58: 100893 | P58: 75196.8 | AQ58: 71964.6 | AR58: 0.3
F59: Ashleigh | G59: Chauncey | H59: Chin | I59: Kacey | J59: Kenia | K59: 83064 | L59: 43040 | M59: 83768 | N59: 94450 | O59: 97051 | P59: 80274.6 | AQ59: 75196.8 | AR59: 0.3
F60: Ashleigh | G60: Chauncey | H60: Chin | I60: Kacey | J60: Kip | K60: 83064 | L60: 43040 | M60: 83768 | N60: 94450 | O60: 50249 | P60: 70914.2 | AQ60: 80274.6 | AR60: 0.3
F61: Ashleigh | G61: Chauncey | H61: Chin | I61: Kacey | J61: Paige | K61: 83064 | L61: 43040 | M61: 83768 | N61: 94450 | O61: 117461 | P61: 84356.6 | AQ61: 70914.2 | AR61: 0.3
F62: Ashleigh | G62: Chauncey | H62: Chin | I62: Kacey | J62: Pham | K62: 83064 | L62: 43040 | M62: 83768 | N62: 94450 | O62: 36016 | P62: 68067.6 | AQ62: 84356.6 | AR62: 0.3
F63: Ashleigh | G63: Chauncey | H63: Chin | I63: Kacey | J63: Reuben | K63: 83064 | L63: 43040 | M63: 83768 | N63: 94450 | O63: 33332 | P63: 67530.8 | AQ63: 68067.6 | AR63: 0.3
F64: Ashleigh | G64: Chauncey | H64: Chin | I64: Kacey | J64: Roslyn | K64: 83064 | L64: 43040 | M64: 83768 | N64: 94450 | O64: 41696 | P64: 69203.6 | AQ64: 67530.8 | AR64: 0.3
F65: Ashleigh | G65: Chauncey | H65: Chin | I65: Kacey | J65: Sheladawn | K65: 83064 | L65: 43040 | M65: 83768 | N65: 94450 | O65: 84732 | P65: 77810.8 | AQ65: 69203.6 | AR65: 0.3
F66: Ashleigh | G66: Chauncey | H66: Chin | I66: Kacey | J66: Tyrone | K66: 83064 | L66: 43040 | M66: 83768 | N66: 94450 | O66: 100893 | P66: 81043 | AQ66: 77810.8 | AR66: 0.3
F67: Ashleigh | G67: Chauncey | H67: Chin | I67: Kenia | J67: Kip | K67: 83064 | L67: 43040 | M67: 83768 | N67: 97051 | O67: 50249 | P67: 71434.4 | AQ67: 81043 | AR67: 0.3
F68: Ashleigh | G68: Chauncey | H68: Chin | I68: Kenia | J68: Paige | K68: =VLOOKUP(F68,$A$4:$B$20,2) -> 83064 | L68: 43040 | M68: 83768 | N68: 97051 | O68: 117461 | P68: 84876.8 | AQ68: 71434.4 | AR68: 0.3
F69: Ashleigh | G69: Chauncey | H69: Chin | I69: Kenia | J69: Pham | K69: 83064 | L69: 43040 | M69: 83768 | N69: 97051 | O69: 36016 | P69: =AVERAGE(K69:O69) -> 68587.8 | AQ69: 84876.8 | AR69: 0.3
F70: Ashleigh | G70: Chauncey | H70: Chin | I70: Kenia | J70: Reuben | K70: 83064 | L70: 43040 | M70: 83768 | N70: 97051 | O70: 33332 | P70: 68051 | AQ70: 68587.8 | AR70: 0.3
F71: Ashleigh | G71: Chauncey | H71: Chin | I71: Kenia | J71: Roslyn | K71: 83064 | L71: 43040 | M71: 83768 | N71: 97051 | O71: 41696 | P71: 69723.8 | AQ71: 68051 | AR71: 0.3
F72: Ashleigh | G72: Chauncey | H72: Chin | I72: Kenia | J72: Sheladawn | K72: 83064 | L72: 43040 | M72: 83768 | N72: 97051 | O72: 84732 | P72: 78331 | AQ72: 69723.8 | AR72: 0.3
F73: Ashleigh | G73: Chauncey | H73: Chin | I73: Kenia | J73: Tyrone | K73: 83064 | L73: 43040 | M73: 83768 | N73: 97051 | O73: 100893 | P73: 81563.2 | AQ73: 78331 | AR73: 0.3
F74: Ashleigh | G74: Chauncey | H74: Chin | I74: Kip | J74: Paige | K74: 83064 | L74: 43040 | M74: 83768 | N74: 50249 | O74: 117461 | P74: 75516.4 | AQ74: 81563.2 | AR74: 0.3
F75: Ashleigh | G75: Chauncey | H75: Chin | I75: Kip | J75: Pham | K75: 83064 | L75: 43040 | M75: 83768 | N75: 50249 | O75: 36016 | P75: 59227.4 | AQ75: 75516.4 | AR75: 0.3
F76: Ashleigh | G76: Chauncey | H76: Chin | I76: Kip | J76: Reuben | K76: 83064 | L76: 43040 | M76: 83768 | N76: 50249 | O76: 33332 | P76: 58690.6 | AQ76: 59227.4 | AR76: 0.3
F77: Ashleigh | G77: Chauncey | H77: Chin | I77: Kip | J77: Roslyn | K77: 83064 | L77: 43040 | M77: 83768 | N77: 50249 | O77: 41696 | P77: 60363.4 | AQ77: 58690.6 | AR77: 0.3
F78: Ashleigh | G78: Chauncey | H78: Chin | I78: Kip | J78: Sheladawn | K78: 83064 | L78: 43040 | M78: 83768 | N78: 50249 | O78: 84732 | P78: 68970.6 | AQ78: 60363.4 | AR78: 0.3
F79: Ashleigh | G79: Chauncey | H79: Chin | I79: Kip | J79: Tyrone | K79: 83064 | L79: 43040 | M79: 83768 | N79: 50249 | O79: 100893 | P79: 72202.8 | AQ79: 68970.6 | AR79: 0.3
F80: Ashleigh | G80: Chauncey | H80: Chin | I80: Paige | J80: Pham | K80: 83064 | L80: 43040 | M80: 83768 | N80: 117461 | O80: 36016 | P80: 72669.8 | AQ80: 72202.8 | AR80: 0.3
F81: Ashleigh | G81: Chauncey | H81: Chin | I81: Paige | J81: Reuben | K81: 83064 | L81: 43040 | M81: 83768 | N81: 117461 | O81: 33332 | P81: 72133 | AQ81: 72669.8 | AR81: 0.3
F82: Ashleigh | G82: Chauncey | H82: Chin | I82: Paige | J82: Roslyn | K82: 83064 | L82: 43040 | M82: 83768 | N82: 117461 | O82: 41696 | P82: 73805.8 | AQ82: 72133 | AR82: 0.3
F83: Ashleigh | G83: Chauncey | H83: Chin | I83: Paige | J83: Sheladawn | K83: 83064 | L83: 43040 | M83: 83768 | N83: 117461 | O83: 84732 | P83: 82413 | AQ83: 73805.8 | AR83: 0.3
F84: Ashleigh | G84: Chauncey | H84: Chin | I84: Paige | J84: Tyrone | K84: 83064 | L84: 43040 | M84: 83768 | N84: 117461 | O84: 100893 | P84: 85645.2 | AQ84: 82413 | AR84: 0.3
F85: Ashleigh | G85: Chauncey | H85: Chin | I85: Pham | J85: Reuben | K85: 83064 | L85: 43040 | M85: 83768 | N85: 36016 | O85: 33332 | P85: 55844 | AQ85: 85645.2 | AR85: 0.3
F86: Ashleigh | G86: Chauncey | H86: Chin | I86: Pham | J86: Roslyn | K86: 83064 | L86: 43040 | M86: 83768 | N86: 36016 | O86: 41696 | P86: 57516.8 | AQ86: 55844 | AR86: 0.3
F87: Ashleigh | G87: Chauncey | H87: Chin | I87: Pham | J87: Sheladawn | K87: 83064 | L87: 43040 | M87: 83768 | N87: 36016 | O87: 84732 | P87: 66124 | AQ87: 57516.8 | AR87: 0.3
F88: Ashleigh | G88: Chauncey | H88: Chin | I88: Pham | J88: Tyrone | K88: 83064 | L88: 43040 | M88: 83768 | N88: 36016 | O88: 100893 | P88: 69356.2 | AQ88: 66124 | AR88: 0.3
F89: Ashleigh | G89: Chauncey | H89: Chin | I89: Reuben | J89: Roslyn | K89: 83064 | L89: 43040 | M89: 83768 | N89: 33332 | O89: 41696 | P89: 56980 | AQ89: 69356.2 | AR89: 0.3
F90: Ashleigh | G90: Chauncey | H90: Chin | I90: Reuben | J90: Sheladawn | K90: 83064 | L90: 43040 | M90: 83768 | N90: 33332 | O90: 84732 | P90: 65587.2 | AQ90: 56980 | AR90: 0.3
F91: Ashleigh | G91: Chauncey | H91: Chin | I91: Reuben | J91: Tyrone | K91: 83064 | L91: 43040 | M91: 83768 | N91: 33332 | O91: 100893 | P91: 68819.4 | AQ91: 65587.2 | AR91: 0.3
F92: Ashleigh | G92: Chauncey | H92: Chin | I92: Roslyn | J92: Sheladawn | K92: 83064 | L92: 43040 | M92: 83768 | N92: 41696 | O92: 84732 | P92: 67260 | AQ92: 68819.4 | AR92: 0.3
F93: Ashleigh | G93: Chauncey | H93: Chin | I93: Roslyn | J93: Tyrone | K93: 83064 | L93: 43040 | M93: 83768 | N93: 41696 | O93: 100893 | P93: 70492.2 | AQ93: 67260 | AR93: 0.3
F94: Ashleigh | G94: Chauncey | H94: Chin | I94: Sheladawn | J94: Tyrone | K94: 83064 | L94: 43040 | M94: 83768 | N94: 84732 | O94: 100893 | P94: 79099.4 | AQ94: 70492.2 | AR94: 0.3
F95: Ashleigh | G95: Chauncey | H95: Delila | I95: Elina | J95: Garland | K95: 83064 | L95: 43040 | M95: 101112 | N95: 19868 | O95: 36021 | P95: 56621 | AQ95: 79099.4 | AR95: 0.3
F96: Ashleigh | G96: Chauncey | H96: Delila | I96: Elina | J96: Gigi | K96: 83064 | L96: 43040 | M96: 101112 | N96: 19868 | O96: 12030 | P96: 51822.8 | AQ96: 56621 | AR96: 0.3
F97: Ashleigh | G97: Chauncey | H97: Delila | I97: Elina | J97: Gregoria | K97: 83064 | L97: 43040 | M97: 101112 | N97: 19868 | O97: 65219 | P97: 62460.6 | AQ97: 51822.8 | AR97: 0.3
F98: Ashleigh | G98: Chauncey | H98: Delila | I98: Elina | J98: Kacey | K98: 83064 | L98: 43040 | M98: 101112 | N98: 19868 | O98: 94450 | P98: 68306.8 | AQ98: 62460.6 | AR98: 0.3
F99: Ashleigh | G99: Chauncey | H99: Delila | I99: Elina | J99: Kenia | K99: 83064 | L99: 43040 | M99: 101112 | N99: 19868 | O99: 97051 | P99: 68827 | AQ99: 68306.8 | AR99: 0.3
F100: Ashleigh | G100: Chauncey | H100: Delila | I100: Elina | J100: Kip | K100: 83064 | L100: 43040 | M100: 101112 | N100: 19868 | O100: 50249 | P100: 59466.6 | AQ100: 68827 | AR100: 0.3
F101: Ashleigh | G101: Chauncey | H101: Delila | I101: Elina | J101: Paige | K101: 83064 | L101: 43040 | M101: 101112 | N101: 19868 | O101: 117461 | P101: 72909 | AQ101: 59466.6 | AR101: 0.3
F102: Ashleigh | G102: Chauncey | H102: Delila | I102: Elina | J102: Pham | K102: 83064 | L102: 43040 | M102: 101112 | N102: 19868 | O102: 36016 | P102: 56620 | AQ102: 72909 | AR102: 0.3
F103: Ashleigh | G103: Chauncey | H103: Delila | I103: Elina | J103: Reuben | K103: 83064 | L103: 43040 | M103: 101112 | N103: 19868 | O103: 33332 | P103: 56083.2 | AQ103: 56620 | AR103: 0.3
F104: Ashleigh | G104: Chauncey | H104: Delila | I104: Elina | J104: Roslyn | K104: 83064 | L104: 43040 | M104: 101112 | N104: 19868 | O104: 41696 | P104: 57756 | AQ104: 56083.2 | AR104: 0.3
F105: Ashleigh | G105: Chauncey | H105: Delila | I105: Elina | J105: Sheladawn | K105: 83064 | L105: 43040 | M105: 101112 | N105: 19868 | O105: 84732 | P105: 66363.2 | AQ105: 57756 | AR105: 0.3
F106: Ashleigh | G106: Chauncey | H106: Delila | I106: Elina | J106: Tyrone | K106: 83064 | L106: 43040 | M106: 101112 | N106: 19868 | O106: 100893 | P106: 69595.4 | AQ106: 66363.2 | AR106: 0.3
F107: Ashleigh | G107: Chauncey | H107: Delila | I107: Garland | J107: Gigi | K107: 83064 | L107: 43040 | M107: 101112 | N107: 36021 | O107: 12030 | P107: 55053.4 | AQ107: 69595.4 | AR107: 0.3
F108: Ashleigh | G108: Chauncey | H108: Delila | I108: Garland | J108: Gregoria | K108: 83064 | L108: 43040 | M108: 101112 | N108: 36021 | O108: 65219 | P108: 65691.2 | AQ108: 55053.4 | AR108: 0.3
F109: Ashleigh | G109: Chauncey | H109: Delila | I109: Garland | J109: Kacey | K109: 83064 | L109: 43040 | M109: 101112 | N109: 36021 | O109: 94450 | P109: 71537.4 | AQ109: 65691.2 | AR109: 0.3
F110: Ashleigh | G110: Chauncey | H110: Delila | I110: Garland | J110: Kenia | K110: 83064 | L110: 43040 | M110: 101112 | N110: 36021 | O110: 97051 | P110: 72057.6 | AQ110: 71537.4 | AR110: 0.3
F111: Ashleigh | G111: Chauncey | H111: Delila | I111: Garland | J111: Kip | K111: 83064 | L111: 43040 | M111: 101112 | N111: 36021 | O111: 50249 | P111: 62697.2 | AQ111: 72057.6 | AR111: 0.3
F112: Ashleigh | G112: Chauncey | H112: Delila | I112: Garland | J112: Paige | K112: 83064 | L112: 43040 | M112: 101112 | N112: 36021 | O112: 117461 | P112: 76139.6 | AQ112: 62697.2 | AR112: 0.3
F113: Ashleigh | G113: Chauncey | H113: Delila | I113: Garland | J113: Pham | K113: 83064 | L113: 43040 | M113: 101112 | N113: 36021 | O113: 36016 | P113: 59850.6 | AQ113: 76139.6 | AR113: 0.3
F114: Ashleigh | G114: Chauncey | H114: Delila | I114: Garland | J114: Reuben | K114: 83064 | L114: 43040 | M114: 101112 | N114: 36021 | O114: 33332 | P114: 59313.8 | AQ114: 59850.6 | AR114: 0.3
F115: Ashleigh | G115: Chauncey | H115: Delila | I115: Garland | J115: Roslyn | K115: 83064 | L115: 43040 | M115: 101112 | N115: 36021 | O115: 41696 | P115: 60986.6 | AQ115: 59313.8 | AR115: 0.3
F116: Ashleigh | G116: Chauncey | H116: Delila | I116: Garland | J116: Sheladawn | K116: 83064 | L116: 43040 | M116: 101112 | N116: 36021 | O116: 84732 | P116: 69593.8 | AQ116: 60986.6 | AR116: 0.3
F117: Ashleigh | G117: Chauncey | H117: Delila | I117: Garland | J117: Tyrone | K117: 83064 | L117: 43040 | M117: 101112 | N117: 36021 | O117: 100893 | P117: 72826 | AQ117: 69593.8 | AR117: 0.3
F118: Ashleigh | G118: Chauncey | H118: Delila | I118: Gigi | J118: Gregoria | K118: 83064 | L118: 43040 | M118: 101112 | N118: 12030 | O118: 65219 | P118: 60893 | AQ118: 72826 | AR118: 0.3
F119: Ashleigh | G119: Chauncey | H119: Delila | I119: Gigi | J119: Kacey | K119: =VLOOKUP(F119,$A$4:$B$20,2) -> 83064 | L119: 43040 | M119: 101112 | N119: 12030 | O119: 94450 | P119: 66739.2 | AQ119: 60893 | AR119: 0.3
F120: Ashleigh | G120: Chauncey | H120: Delila | I120: Gigi | J120: Kenia | K120: 83064 | L120: 43040 | M120: 101112 | N120: 12030 | O120: 97051 | P120: 67259.4 | AQ120: 66739.2 | AR120: 0.3
F121: Ashleigh | G121: Chauncey | H121: Delila | I121: Gigi | J121: Kip | K121: 83064 | L121: 43040 | M121: 101112 | N121: 12030 | O121: 50249 | P121: 57899 | AQ121: 67259.4 | AR121: 0.3
F122: Ashleigh | G122: Chauncey | H122: Delila | I122: Gigi | J122: Paige | K122: 83064 | L122: 43040 | M122: 101112 | N122: 12030 | O122: 117461 | P122: 71341.4 | AQ122: 57899 | AR122: 0.3
F123: Ashleigh | G123: Chauncey | H123: Delila | I123: Gigi | J123: Pham | K123: 83064 | L123: 43040 | M123: 101112 | N123: 12030 | O123: 36016 | P123: 55052.4 | AQ123: 71341.4 | AR123: 0.3
F124: Ashleigh | G124: Chauncey | H124: Delila | I124: Gigi | J124: Reuben | K124: 83064 | L124: 43040 | M124: 101112 | N124: 12030 | O124: 33332 | P124: 54515.6 | AQ124: 55052.4 | AR124: 0.3
F125: Ashleigh | G125: Chauncey | H125: Delila | I125: Gigi | J125: Roslyn | K125: 83064 | L125: 43040 | M125: 101112 | N125: 12030 | O125: 41696 | P125: 56188.4 | AQ125: 54515.6 | AR125: 0.3
F126: Ashleigh | G126: Chauncey | H126: Delila | I126: Gigi | J126: Sheladawn | K126: 83064 | L126: 43040 | M126: 101112 | N126: 12030 | O126: 84732 | P126: 64795.6 | AQ126: 56188.4 | AR126: 0.3
F127: Ashleigh | G127: Chauncey | H127: Delila | I127: Gigi | J127: Tyrone | K127: 83064 | L127: 43040 | M127: 101112 | N127: 12030 | O127: 100893 | P127: 68027.8 | AQ127: 64795.6 | AR127: 0.3
F128: Ashleigh | G128: Chauncey | H128: Delila | I128: Gregoria | J128: Kacey | K128: 83064 | L128: 43040 | M128: 101112 | N128: 65219 | O128: 94450 | P128: 77377 | AQ128: 68027.8 | AR128: 0.3
F129: Ashleigh | G129: Chauncey | H129: Delila | I129: Gregoria | J129: Kenia | K129: 83064 | L129: 43040 | M129: 101112 | N129: 65219 | O129: 97051 | P129: 77897.2 | AQ129: 77377 | AR129: 0.3
F130: Ashleigh | G130: Chauncey | H130: Delila | I130: Gregoria | J130: Kip | K130: 83064 | L130: 43040 | M130: 101112 | N130: 65219 | O130: 50249 | P130: 68536.8 | AQ130: 77897.2 | AR130: 0.3
F131: Ashleigh | G131: Chauncey | H131: Delila | I131: Gregoria | J131: Paige | K131: 83064 | L131: 43040 | M131: 101112 | N131: 65219 | O131: 117461 | P131: 81979.2 | AQ131: 68536.8 | AR131: 0.3
F132: Ashleigh | G132: Chauncey | H132: Delila | I132: Gregoria | J132: Pham | K132: 83064 | L132: 43040 | M132: 101112 | N132: 65219 | O132: 36016 | P132: 65690.2 | AQ132: 81979.2 | AR132: 0.3
F133: Ashleigh | G133: Chauncey | H133: Delila | I133: Gregoria | J133: Reuben | K133: 83064 | L133: 43040 | M133: 101112 | N133: 65219 | O133: 33332 | P133: =AVERAGE(K133:O133) -> 65153.4 | AQ133: 65690.2 | AR133: 0.3
F134: Ashleigh | G134: Chauncey | H134: Delila | I134: Gregoria | J134: Roslyn | K134: 83064 | L134: 43040 | M134: 101112 | N134: 65219 | O134: 41696 | P134: 66826.2 | AQ134: 65153.4 | AR134: 0.3
F135: Ashleigh | G135: Chauncey | H135: Delila | I135: Gregoria | J135: Sheladawn | K135: 83064 | L135: 43040 | M135: 101112 | N135: 65219 | O135: 84732 | P135: 75433.4 | AQ135: 66826.2 | AR135: 0.3
F136: Ashleigh | G136: Chauncey | H136: Delila | I136: Gregoria | J136: Tyrone | K136: 83064 | L136: 43040 | M136: 101112 | N136: 65219 | O136: 100893 | P136: 78665.6 | AQ136: 75433.4 | AR136: 0.3
F137: Ashleigh | G137: Chauncey | H137: Delila | I137: Kacey | J137: Kenia | K137: 83064 | L137: 43040 | M137: 101112 | N137: 94450 | O137: 97051 | P137: 83743.4 | AQ137: 78665.6 | AR137: 0.3
F138: Ashleigh | G138: Chauncey | H138: Delila | I138: Kacey | J138: Kip | K138: 83064 | L138: 43040 | M138: 101112 | N138: 94450 | O138: 50249 | P138: 74383 | AQ138: 83743.4 | AR138: 0.3
F139: Ashleigh | G139: Chauncey | H139: Delila | I139: Kacey | J139: Paige | K139: 83064 | L139: 43040 | M139: 101112 | N139: 94450 | O139: 117461 | P139: 87825.4 | AQ139: 74383 | AR139: 0.3
F140: Ashleigh | G140: Chauncey | H140: Delila | I140: Kacey | J140: Pham | K140: 83064 | L140: 43040 | M140: 101112 | N140: 94450 | O140: 36016 | P140: 71536.4 | AQ140: 87825.4 | AR140: 0.3
F141: Ashleigh | G141: Chauncey | H141: Delila | I141: Kacey | J141: Reuben | K141: 83064 | L141: 43040 | M141: 101112 | N141: 94450 | O141: 33332 | P141: 70999.6 | AQ141: 71536.4 | AR141: 0.3
F142: Ashleigh | G142: Chauncey | H142: Delila | I142: Kacey | J142: Roslyn | K142: 83064 | L142: 43040 | M142: 101112 | N142: 94450 | O142: 41696 | P142: 72672.4 | AQ142: 70999.6 | AR142: 0.3
F143: Ashleigh | G143: Chauncey | H143: Delila | I143: Kacey | J143: Sheladawn | K143: 83064 | L143: 43040 | M143: 101112 | N143: 94450 | O143: 84732 | P143: 81279.6 | AQ143: 72672.4 | AR143: 0.3
F144: Ashleigh | G144: Chauncey | H144: Delila | I144: Kacey | J144: Tyrone | K144: 83064 | L144: 43040 | M144: 101112 | N144: 94450 | O144: 100893 | P144: 84511.8 | AQ144: 81279.6 | AR144: 0.3
F145: Ashleigh | G145: Chauncey | H145: Delila | I145: Kenia | J145: Kip | K145: 83064 | L145: 43040 | M145: 101112 | N145: 97051 | O145: 50249 | P145: 74903.2 | AQ145: 84511.8 | AR145: 0.3
F146: Ashleigh | G146: Chauncey | H146: Delila | I146: Kenia | J146: Paige | K146: 83064 | L146: 43040 | M146: 101112 | N146: 97051 | O146: 117461 | P146: 88345.6 | AQ146: 74903.2 | AR146: 0.3
F147: Ashleigh | G147: Chauncey | H147: Delila | I147: Kenia | J147: Pham | K147: 83064 | L147: 43040 | M147: 101112 | N147: 97051 | O147: 36016 | P147: 72056.6 | AQ147: 88345.6 | AR147: 0.3
F148: Ashleigh | G148: Chauncey | H148: Delila | I148: Kenia | J148: Reuben | K148: 83064 | L148: 43040 | M148: 101112 | N148: 97051 | O148: 33332 | P148: 71519.8 | AQ148: 72056.6 | AR148: 0.3
F149: Ashleigh | G149: Chauncey | H149: Delila | I149: Kenia | J149: Roslyn | K149: 83064 | L149: 43040 | M149: 101112 | N149: 97051 | O149: 41696 | P149: 73192.6 | AQ149: 71519.8 | AR149: 0.3
F150: Ashleigh | G150: Chauncey | H150: Delila | I150: Kenia | J150: Sheladawn | K150: 83064 | L150: 43040 | M150: 101112 | N150: 97051 | O150: 84732 | P150: 81799.8 | AQ150: 73192.6 | AR150: 0.3
F151: Ashleigh | G151: Chauncey | H151: Delila | I151: Kenia | J151: Tyrone | K151: 83064 | L151: 43040 | M151: 101112 | N151: 97051 | O151: 100893 | P151: 85032 | AQ151: 81799.8 | AR151: 0.3
F152: Ashleigh | G152: Chauncey | H152: Delila | I152: Kip | J152: Paige | K152: 83064 | L152: 43040 | M152: 101112 | N152: 50249 | O152: 117461 | P152: 78985.2 | AQ152: 85032 | AR152: 0.3
F153: Ashleigh | G153: Chauncey | H153: Delila | I153: Kip | J153: Pham | K153: 83064 | L153: 43040 | M153: 101112 | N153: 50249 | O153: 36016 | P153: 62696.2 | AQ153: 78985.2 | AR153: 0.3
F154: Ashleigh | G154: Chauncey | H154: Delila | I154: Kip | J154: Reuben | K154: 83064 | L154: 43040 | M154: 101112 | N154: 50249 | O154: 33332 | P154: 62159.4 | AQ154: 62696.2 | AR154: 0.3
F155: Ashleigh | G155: Chauncey | H155: Delila | I155: Kip | J155: Roslyn | K155: 83064 | L155: 43040 | M155: 101112 | N155: 50249 | O155: 41696 | P155: 63832.2 | AQ155: 62159.4 | AR155: 0.3
F156: Ashleigh | G156: Chauncey | H156: Delila | I156: Kip | J156: Sheladawn | K156: 83064 | L156: 43040 | M156: 101112 | N156: 50249 | O156: 84732 | P156: 72439.4 | AQ156: 63832.2 | AR156: 0.3
F157: Ashleigh | G157: Chauncey | H157: Delila | I157: Kip | J157: Tyrone | K157: 83064 | L157: 43040 | M157: 101112 | N157: 50249 | O157: 100893 | P157: 75671.6 | AQ157: 72439.4 | AR157: 0.3
F158: Ashleigh | G158: Chauncey | H158: Delila | I158: Paige | J158: Pham | K158: 83064 | L158: 43040 | M158: 101112 | N158: 117461 | O158: 36016 | P158: 76138.6 | AQ158: 75671.6 | AR158: 0.3
F159: Ashleigh | G159: Chauncey | H159: Delila | I159: Paige | J159: Reuben | K159: 83064 | L159: 43040 | M159: 101112 | N159: 117461 | O159: 33332 | P159: 75601.8 | AQ159: 76138.6 | AR159: 0.3
F160: Ashleigh | G160: Chauncey | H160: Delila | I160: Paige | J160: Roslyn | K160: 83064 | L160: 43040 | M160: 101112 | N160: 117461 | O160: 41696 | P160: 77274.6 | AQ160: 75601.8 | AR160: 0.3
F161: Ashleigh | G161: Chauncey | H161: Delila | I161: Paige | J161: Sheladawn | K161: 83064 | L161: 43040 | M161: 101112 | N161: 117461 | O161: 84732 | P161: 85881.8 | AQ161: 77274.6 | AR161: 0.3
F162: Ashleigh | G162: Chauncey | H162: Delila | I162: Paige | J162: Tyrone | K162: 83064 | L162: 43040 | M162: 101112 | N162: 117461 | O162: 100893 | P162: 89114 | AQ162: 85881.8 | AR162: 0.3
F163: Ashleigh | G163: Chauncey | H163: Delila | I163: Pham | J163: Reuben | K163: 83064 | L163: 43040 | M163: 101112 | N163: 36016 | O163: 33332 | P163: 59312.8 | AQ163: 89114 | AR163: 0.3
F164: Ashleigh | G164: Chauncey | H164: Delila | I164: Pham | J164: Roslyn | K164: 83064 | L164: 43040 | M164: 101112 | N164: 36016 | O164: 41696 | P164: 60985.6 | AQ164: 59312.8 | AR164: 0.3
F165: Ashleigh | G165: Chauncey | H165: Delila | I165: Pham | J165: Sheladawn | K165: 83064 | L165: 43040 | M165: 101112 | N165: 36016 | O165: 84732 | P165: 69592.8 | AQ165: 60985.6 | AR165: 0.3
F166: Ashleigh | G166: Chauncey | H166: Delila | I166: Pham | J166: Tyrone | K166: 83064 | L166: 43040 | M166: 101112 | N166: 36016 | O166: 100893 | P166: 72825 | AQ166: 69592.8 | AR166: 0.3
F167: Ashleigh | G167: Chauncey | H167: Delila | I167: Reuben | J167: Roslyn | K167: 83064 | L167: 43040 | M167: 101112 | N167: 33332 | O167: 41696 | P167: 60448.8 | AQ167: 72825 | AR167: 0.3
F168: Ashleigh | G168: Chauncey | H168: Delila | I168: Reuben | J168: Sheladawn | K168: 83064 | L168: 43040 | M168: 101112 | N168: 33332 | O168: 84732 | P168: 69056 | AQ168: 60448.8 | AR168: 0.3
F169: Ashleigh | G169: Chauncey | H169: Delila | I169: Reuben | J169: Tyrone | K169: 83064 | L169: 43040 | M169: 101112 | N169: 33332 | O169: 100893 | P169: 72288.2 | AQ169: 69056 | AR169: 0.3
F170: Ashleigh | G170: Chauncey | H170: Delila | I170: Roslyn | J170: Sheladawn | K170: =VLOOKUP(F170,$A$4:$B$20,2) -> 83064 | L170: 43040 | M170: 101112 | N170: 41696 | O170: 84732 | P170: 70728.8 | AQ170: 72288.2 | AR170: 0.3
F171: Ashleigh | G171: Chauncey | H171: Delila | I171: Roslyn | J171: Tyrone | K171: 83064 | L171: 43040 | M171: 101112 | N171: 41696 | O171: 100893 | P171: 73961 | AQ171: 70728.8 | AR171: 0.3
F172: Ashleigh | G172: Chauncey | H172: Delila | I172: Sheladawn | J172: Tyrone | K172: 83064 | L172: 43040 | M172: 101112 | N172: 84732 | O172: 100893 | P172: 82568.2 | AQ172: 73961 | AR172: 0.3
F173: Ashleigh | G173: Chauncey | H173: Elina | I173: Garland | J173: Gigi | K173: 83064 | L173: 43040 | M173: 19868 | N173: 36021 | O173: 12030 | P173: 38804.6 | AQ173: 82568.2 | AR173: 0.3
F174: Ashleigh | G174: Chauncey | H174: Elina | I174: Garland | J174: Gregoria | K174: 83064 | L174: 43040 | M174: 19868 | N174: 36021 | O174: 65219 | P174: 49442.4 | AQ174: 38804.6 | AR174: 0.3
F175: Ashleigh | G175: Chauncey | H175: Elina | I175: Garland | J175: Kacey | K175: 83064 | L175: 43040 | M175: 19868 | N175: 36021 | O175: 94450 | P175: 55288.6 | AQ175: 49442.4 | AR175: 0.3
F176: Ashleigh | G176: Chauncey | H176: Elina | I176: Garland | J176: Kenia | K176: 83064 | L176: 43040 | M176: 19868 | N176: 36021 | O176: 97051 | P176: 55808.8 | AQ176: 55288.6 | AR176: 0.3
F177: Ashleigh | G177: Chauncey | H177: Elina | I177: Garland | J177: Kip | K177: 83064 | L177: 43040 | M177: 19868 | N177: 36021 | O177: 50249 | P177: 46448.4 | AQ177: 55808.8 | AR177: 0.3
F178: Ashleigh | G178: Chauncey | H178: Elina | I178: Garland | J178: Paige | K178: 83064 | L178: 43040 | M178: 19868 | N178: 36021 | O178: 117461 | P178: 59890.8 | AQ178: 46448.4 | AR178: 0.3
F179: Ashleigh | G179: Chauncey | H179: Elina | I179: Garland | J179: Pham | K179: 83064 | L179: 43040 | M179: 19868 | N179: 36021 | O179: 36016 | P179: 43601.8 | AQ179: 59890.8 | AR179: 0.3
F180: Ashleigh | G180: Chauncey | H180: Elina | I180: Garland | J180: Reuben | K180: 83064 | L180: 43040 | M180: 19868 | N180: 36021 | O180: 33332 | P180: 43065 | AQ180: 43601.8 | AR180: 0.3
F181: Ashleigh | G181: Chauncey | H181: Elina | I181: Garland | J181: Roslyn | K181: 83064 | L181: 43040 | M181: 19868 | N181: 36021 | O181: 41696 | P181: 44737.8 | AQ181: 43065 | AR181: 0.3
F182: Ashleigh | G182: Chauncey | H182: Elina | I182: Garland | J182: Sheladawn | K182: 83064 | L182: 43040 | M182: 19868 | N182: 36021 | O182: 84732 | P182: 53345 | AQ182: 44737.8 | AR182: 0.3
F183: Ashleigh | G183: Chauncey | H183: Elina | I183: Garland | J183: Tyrone | K183: 83064 | L183: 43040 | M183: 19868 | N183: 36021 | O183: 100893 | P183: 56577.2 | AQ183: 53345 | AR183: 0.3
F184: Ashleigh | G184: Chauncey | H184: Elina | I184: Gigi | J184: Gregoria | K184: 83064 | L184: 43040 | M184: 19868 | N184: 12030 | O184: 65219 | P184: 44644.2 | AQ184: 56577.2 | AR184: 0.3
F185: Ashleigh | G185: Chauncey | H185: Elina | I185: Gigi | J185: Kacey | K185: 83064 | L185: 43040 | M185: 19868 | N185: 12030 | O185: 94450 | P185: 50490.4 | AQ185: 44644.2 | AR185: 0.3
F186: Ashleigh | G186: Chauncey | H186: Elina | I186: Gigi | J186: Kenia | K186: 83064 | L186: 43040 | M186: 19868 | N186: 12030 | O186: 97051 | P186: 51010.6 | AQ186: 50490.4 | AR186: 0.3
F187: Ashleigh | G187: Chauncey | H187: Elina | I187: Gigi | J187: Kip | K187: 83064 | L187: 43040 | M187: 19868 | N187: 12030 | O187: 50249 | P187: 41650.2 | AQ187: 51010.6 | AR187: 0.3
F188: Ashleigh | G188: Chauncey | H188: Elina | I188: Gigi | J188: Paige | K188: 83064 | L188: 43040 | M188: 19868 | N188: 12030 | O188: 117461 | P188: 55092.6 | AQ188: 41650.2 | AR188: 0.3
F189: Ashleigh | G189: Chauncey | H189: Elina | I189: Gigi | J189: Pham | K189: 83064 | L189: 43040 | M189: 19868 | N189: 12030 | O189: 36016 | P189: 38803.6 | AQ189: 55092.6 | AR189: 0.3
F190: Ashleigh | G190: Chauncey | H190: Elina | I190: Gigi | J190: Reuben | K190: 83064 | L190: 43040 | M190: 19868 | N190: 12030 | O190: 33332 | P190: 38266.8 | AQ190: 38803.6 | AR190: 0.3
F191: Ashleigh | G191: Chauncey | H191: Elina | I191: Gigi | J191: Roslyn | K191: 83064 | L191: 43040 | M191: 19868 | N191: 12030 | O191: 41696 | P191: 39939.6 | AQ191: 38266.8 | AR191: 0.3
F192: Ashleigh | G192: Chauncey | H192: Elina | I192: Gigi | J192: Sheladawn | K192: 83064 | L192: 43040 | M192: 19868 | N192: 12030 | O192: 84732 | P192: 48546.8 | AQ192: 39939.6 | AR192: 0.3
F193: Ashleigh | G193: Chauncey | H193: Elina | I193: Gigi | J193: Tyrone | K193: 83064 | L193: 43040 | M193: 19868 | N193: 12030 | O193: 100893 | P193: 51779 | AQ193: 48546.8 | AR193: 0.3
F194: Ashleigh | G194: Chauncey | H194: Elina | I194: Gregoria | J194: Kacey | K194: 83064 | L194: 43040 | M194: 19868 | N194: 65219 | O194: 94450 | P194: 61128.2 | AQ194: 51779 | AR194: 0.3
F195: Ashleigh | G195: Chauncey | H195: Elina | I195: Gregoria | J195: Kenia | K195: 83064 | L195: 43040 | M195: 19868 | N195: 65219 | O195: 97051 | P195: 61648.4 | AQ195: 61128.2 | AR195: 0.3
F196: Ashleigh | G196: Chauncey | H196: Elina | I196: Gregoria | J196: Kip | K196: 83064 | L196: 43040 | M196: 19868 | N196: 65219 | O196: 50249 | P196: 52288 | AQ196: 61648.4 | AR196: 0.3
F197: Ashleigh | G197: Chauncey | H197: Elina | I197: Gregoria | J197: Paige | K197: 83064 | L197: 43040 | M197: 19868 | N197: 65219 | O197: 117461 | P197: =AVERAGE(K197:O197) -> 65730.4 | AQ197: 52288 | AR197: 0.3
F198: Ashleigh | G198: Chauncey | H198: Elina | I198: Gregoria | J198: Pham | K198: 83064 | L198: 43040 | M198: 19868 | N198: 65219 | O198: 36016 | P198: 49441.4 | AQ198: 65730.4 | AR198: 0.3
F199: Ashleigh | G199: Chauncey | H199: Elina | I199: Gregoria | J199: Reuben | K199: 83064 | L199: 43040 | M199: 19868 | N199: 65219 | O199: 33332 | P199: 48904.6 | AQ199: 49441.4 | AR199: 0.3
F200: Ashleigh | G200: Chauncey | H200: Elina | I200: Gregoria | J200: Roslyn | K200: 83064 | L200: 43040 | M200: 19868 | N200: 65219 | O200: 41696 | P200: 50577.4 | AQ200: 48904.6 | AR200: 0.3
... 2050 more rows

Sheet Ex1
A1: An insurance company claims that the average cost per year for a policy is $824.
A2: They issued 25,000 policies this year.
A3: The standard deviation for the population is $195.
A4: What is the probability of getting a sample mean within +/- $25? +/-$30?
A5: If you take a random sample and get a sample mean of
A6: $857 (n = 300), is the original claim reasonable?
A8: Mew | C8: Annual Auto Insurance Cost
A9: N
A10: Sigma
A11: Margin of error
A12: n | C12: =IF(B12="","","n is really big, so even through the pop. distribution may be highly skewed, the SD of Xbar will be Normal.") -> 
A13: n/N | C13: =IF(B13="","","less than 0.05, don't need SQRT((N-n)/(N-1))") -> 
A14: Standard Error | C14: Standard Deviation of Distribution of Xbar
A15: Xbar1
A16: Xbar2
A17: ="P("&ROUND(B8-B11,2)&" <= Xbar <= "&ROUND(B8+B11,2)&")" -> P(0 <= Xbar <= 0)
A19: Conclusion:
A20: ="The probability of selecting a sample of "&B12&" insurance policies and finding a sample mean between "&DOLLAR(B15,0)&" and "&DOLLAR(B16,0)&" is about "&TEXT(B17,"0%") -> The probability of selecting a sample of insurance policies and finding a sample mean between $0 and $0 is about 0%
A21: ="If the population mean really was "&DOLLAR(B8,0)&", then it seems unlikely that our sample of $857 would be possible." -> If the population mean really was $0, then it seems unlikely that our sample of $857 would be possible.
A22: The original claim does not seem reasonable.
A26: Xbar | B26: P(Xbar) | C26: =IF(B17="","","P("&ROUND(B8-B11,2)&" <= Xbar <= "&ROUND(B8+B11,2)&") = "&ROUND(_xlfn.NORM.DIST(B8+B11,B8,B10/SQRT(B12),1)-_xlfn.NORM.DIST(B8-B11,B8,B10/SQRT(B12),1),4)) -> 
A27: 784 | B27: =_xlfn.NORM.DIST(A27,$B$8,$B$10/SQRT($B$12),0) ->  | C27: =IF(AND(A27>=$B$8-$B$11,A27<=$B$8+$B$11),B27,"") -> 
A28: 784.5
A29: 785
A30: 785.5
A31: 786
A32: 786.5
A33: 787
A34: 787.5
A35: 788
A36: 788.5
A37: 789
A38: 789.5
A39: 790
A40: 790.5
A41: 791
A42: 791.5
A43: 792
A44: 792.5
A45: 793
A46: 793.5
A47: 794
A48: 794.5
A49: 795
A50: 795.5
A51: 796
A52: 796.5
A53: 797
A54: 797.5
A55: 798
A56: 798.5
A57: 799
A58: 799.5
A59: 800 | B59: =_xlfn.NORM.DIST(A59,$B$8,$B$10/SQRT($B$12),0) ->  | C59: =IF(AND(A59>=$B$8-$B$11,A59<=$B$8+$B$11),B59,"") -> 
A60: 800.5
A61: 801
A62: 801.5
A63: 802
A64: 802.5
A65: 803
A66: 803.5
A67: 804
A68: 804.5
A69: 805
A70: 805.5
A71: 806
A72: 806.5
A73: 807
A74: 807.5
A75: 808
A76: 808.5
A77: 809
A78: 809.5
A79: 810
A80: 810.5
A81: 811
A82: 811.5
A83: 812
A84: 812.5
A85: 813
A86: 813.5
A87: 814
A88: 814.5
A89: 815
A90: 815.5
A91: 816 | B91: =_xlfn.NORM.DIST(A91,$B$8,$B$10/SQRT($B$12),0) ->  | C91: =IF(AND(A91>=$B$8-$B$11,A91<=$B$8+$B$11),B91,"") -> 
A92: 816.5
A93: 817
A94: 817.5
A95: 818
A96: 818.5
A97: 819
A98: 819.5
A99: 820
A100: 820.5
A101: 821
A102: 821.5
A103: 822
A104: 822.5
A105: 823
A106: 823.5
A107: 824
A108: 824.5
A109: 825
A110: 825.5
A111: 826
A112: 826.5
A113: 827
A114: 827.5
A115: 828
A116: 828.5
A117: 829
A118: 829.5
A119: 830
A120: 830.5
A121: 831
A122: 831.5
A123: 832 | B123: =_xlfn.NORM.DIST(A123,$B$8,$B$10/SQRT($B$12),0) ->  | C123: =IF(AND(A123>=$B$8-$B$11,A123<=$B$8+$B$11),B123,"") -> 
A124: 832.5
A125: 833
A126: 833.5
A127: 834
A128: 834.5
A129: 835
A130: 835.5
A131: 836
A132: 836.5
A133: 837
A134: 837.5
A135: 838
A136: 838.5
A137: 839
A138: 839.5
A139: 840
A140: 840.5
A141: 841
A142: 841.5
A143: 842
A144: 842.5
A145: 843
A146: 843.5
A147: 844
A148: 844.5
A149: 845
A150: 845.5
A151: 846
A152: 846.5
A153: 847
A154: 847.5
A155: 848 | B155: =_xlfn.NORM.DIST(A155,$B$8,$B$10/SQRT($B$12),0) ->  | C155: =IF(AND(A155>=$B$8-$B$11,A155<=$B$8+$B$11),B155,"") -> 
A156: 848.5
A157: 849
A158: 849.5
A159: 850
A160: 850.5
A161: 851
A162: 851.5
A163: 852
A164: 852.5
A165: 853
A166: 853.5
A167: 854
A168: 854.5
A169: 855
A170: 855.5
A171: 856
A172: 856.5
A173: 857
A174: 857.5
A175: 858
A176: 858.5
A177: 859
A178: 859.5
A179: 860
A180: 860.5
A181: 861
A182: 861.5
A183: 862
A184: 862.5
A185: 863
A186: 863.5
A187: 864 | B187: =_xlfn.NORM.DIST(A187,$B$8,$B$10/SQRT($B$12),0) ->  | C187: =IF(AND(A187>=$B$8-$B$11,A187<=$B$8+$B$11),B187,"") -> 

Sheet Ex1 (an)
A1: An insurance company claims that the average cost per year for a policy is $824.
A2: They issued 25,000 policies this year.
A3: The standard deviation for the population is $195.
A4: What is the probability of getting a sample mean within +/- $25? +/-$30?
A5: If you take a random sample and get a sample mean of
A6: $857 (n = 300), is the original claim reasonable?
A8: Mew | B8: 824 | C8: Annual Auto Insurance Cost
A9: N | B9: 25000
A10: Sigma | B10: 195
A11: Margin of error | B11: 30
A12: n | B12: 300 | C12: =IF(B12="","","n is really big, so even through the pop. distribution may be highly skewed, the SD of Xbar will be Normal.") -> n is really big, so even through the pop. distribution may be highly skewed, the SD of Xbar will be Normal.
A13: n/N | B13: =B12/B9 -> 0.012 | C13: =IF(B13="","","less than 0.05, don't need SQRT((N-n)/(N-1))") -> less than 0.05, don't need SQRT((N-n)/(N-1))
A14: Standard Error | B14: =B10/SQRT(B12) -> 11.25833025 | C14: Standard Deviation of Distribution of Xbar
A15: Xbar1 | B15: =B8-B11 -> 794
A16: Xbar2 | B16: =B8+B11 -> 854
A17: ="P("&ROUND(B8-B11,2)&" <= Xbar <= "&ROUND(B8+B11,2)&")" -> P(794 <= Xbar <= 854) | B17: =_xlfn.NORM.DIST(B16,B8,B14,1)-_xlfn.NORM.DIST(B15,B8,B14,1) -> 0.9922941492
A19: Conclusion:
A20: ="The probability of selecting a sample of "&B12&" insurance policies and finding a sample mean between "&DOLLAR(B15,0)&" and "&DOLLAR(B16,0)&" is about "&TEXT(B17,"0%") -> The probability of selecting a sample of 300 insurance policies and finding a sample mean between $794 and $854 is about 99%
A21: ="If the population mean really was "&DOLLAR(B8,0)&", then it seems unlikely that our sample of $857 would be possible." -> If the population mean really was $824, then it seems unlikely that our sample of $857 would be possible.
A22: The original claim does not seem reasonable.
A26: Xbar | B26: P(Xbar) | C26: =IF(B17="","","P("&ROUND(B8-B11,2)&" <= Xbar <= "&ROUND(B8+B11,2)&") = "&ROUND(_xlfn.NORM.DIST(B8+B11,B8,B10/SQRT(B12),1)-_xlfn.NORM.DIST(B8-B11,B8,B10/SQRT(B12),1),4)) -> P(794 <= Xbar <= 854) = 0.9923
A27: 784 | B27: =_xlfn.NORM.DIST(A27,$B$8,$B$10/SQRT($B$12),0) -> 6.431716984e-05 | C27: =IF(AND(A27>=$B$8-$B$11,A27<=$B$8+$B$11),B27,"") -> 
A28: 784.5 | B28: 7.52361141e-05
A29: 785 | B29: 8.783532052e-05
A30: 785.5 | B30: 0.0001023423601
A31: 786 | B31: 0.0001190104421
A32: 786.5 | B32: 0.0001381204907
A33: 787 | B33: 0.0001599832666
A34: 787.5 | B34: 0.0001849415151
A35: 788 | B35: 0.0002133721167
A36: 788.5 | B36: 0.0002456882139
A37: 789 | B37: 0.0002823412832
A38: 789.5 | B38: 0.0003238231169
A39: 790 | B39: 0.0003706676773
A40: 790.5 | B40: 0.0004234527795
A41: 791 | B41: 0.0004828015576
A42: 791.5 | B42: 0.0005493836628
A43: 792 | B43: 0.0006239161422
A44: 792.5 | B44: 0.0007071639399
A45: 793 | B45: 0.0007999399656
A46: 793.5 | B46: 0.000903104667
A47: 794 | B47: 0.001017565049 | C47: 0.001017565049
A48: 794.5 | B48: 0.001144273077 | C48: 0.001144273077
A49: 795 | B49: 0.001284223408 | C49: 0.001284223408
A50: 795.5 | B50: 0.001438450385 | C50: 0.001438450385
A51: 796 | B51: 0.001608024256 | C51: 0.001608024256
A52: 796.5 | B52: 0.001794046549 | C52: 0.001794046549
A53: 797 | B53: 0.001997644586 | C53: 0.001997644586
A54: 797.5 | B54: 0.002219965071 | C54: 0.002219965071
A55: 798 | B55: 0.002462166757 | C55: 0.002462166757
A56: 798.5 | B56: 0.002725412158 | C56: 0.002725412158
A57: 799 | B57: 0.003010858307 | C57: 0.003010858307
A58: 799.5 | B58: 0.003319646582 | C58: 0.003319646582
A59: 800 | B59: =_xlfn.NORM.DIST(A59,$B$8,$B$10/SQRT($B$12),0) -> 0.003652891608 | C59: =IF(AND(A59>=$B$8-$B$11,A59<=$B$8+$B$11),B59,"") -> 0.003652891608
A60: 800.5 | B60: 0.004011669297 | C60: 0.004011669297
A61: 801 | B61: 0.004397004065 | C61: 0.004397004065
A62: 801.5 | B62: 0.004809855319 | C62: 0.004809855319
A63: 802 | B63: 0.005251103304 | C63: 0.005251103304
A64: 802.5 | B64: 0.005721534417 | C64: 0.005721534417
A65: 803 | B65: 0.006221826133 | C65: 0.006221826133
A66: 803.5 | B66: 0.006752531675 | C66: 0.006752531675
A67: 804 | B67: 0.007314064617 | C67: 0.007314064617
A68: 804.5 | B68: 0.00790668358 | C68: 0.00790668358
A69: 805 | B69: 0.008530477238 | C69: 0.008530477238
A70: 805.5 | B70: 0.009185349832 | C70: 0.009185349832
A71: 806 | B71: 0.009871007406 | C71: 0.009871007406
A72: 806.5 | B72: 0.01058694501 | C72: 0.01058694501
A73: 807 | B73: 0.0113324351 | C73: 0.0113324351
A74: 807.5 | B74: 0.0121065173 | C74: 0.0121065173
A75: 808 | B75: 0.0129079899 | C75: 0.0129079899
A76: 808.5 | B76: 0.01373540312 | C76: 0.01373540312
A77: 809 | B77: 0.01458705454 | C77: 0.01458705454
A78: 809.5 | B78: 0.01546098671 | C78: 0.01546098671
A79: 810 | B79: 0.01635498726 | C79: 0.01635498726
A80: 810.5 | B80: 0.0172665916 | C80: 0.0172665916
A81: 811 | B81: 0.01819308829 | C81: 0.01819308829
A82: 811.5 | B82: 0.01913152725 | C82: 0.01913152725
A83: 812 | B83: 0.02007873083 | C83: 0.02007873083
A84: 812.5 | B84: 0.02103130774 | C84: 0.02103130774
A85: 813 | B85: 0.02198566984 | C85: 0.02198566984
A86: 813.5 | B86: 0.02293805179 | C86: 0.02293805179
A87: 814 | B87: 0.0238845333 | C87: 0.0238845333
A88: 814.5 | B88: 0.02482106395 | C88: 0.02482106395
A89: 815 | B89: 0.02574349046 | C89: 0.02574349046
A90: 815.5 | B90: 0.02664758594 | C90: 0.02664758594
A91: 816 | B91: =_xlfn.NORM.DIST(A91,$B$8,$B$10/SQRT($B$12),0) -> 0.02752908112 | C91: =IF(AND(A91>=$B$8-$B$11,A91<=$B$8+$B$11),B91,"") -> 0.02752908112
A92: 816.5 | B92: 0.02838369707 | C92: 0.02838369707
A93: 817 | B93: 0.02920717911 | C93: 0.02920717911
A94: 817.5 | B94: 0.02999533165 | C94: 0.02999533165
A95: 818 | B95: 0.0307440534 | C95: 0.0307440534
A96: 818.5 | B96: 0.03144937267 | C96: 0.03144937267
A97: 819 | B97: 0.03210748226 | C97: 0.03210748226
A98: 819.5 | B98: 0.03271477359 | C98: 0.03271477359
A99: 820 | B99: 0.03326786958 | C99: 0.03326786958
A100: 820.5 | B100: 0.03376365585 | C100: 0.03376365585
A101: 821 | B101: 0.03419930992 | C101: 0.03419930992
A102: 821.5 | B102: 0.03457232796 | C102: 0.03457232796
A103: 822 | B103: 0.03488054876 | C103: 0.03488054876
A104: 822.5 | B104: 0.03512217456 | C104: 0.03512217456
A105: 823 | B105: 0.03529578852 | C105: 0.03529578852
A106: 823.5 | B106: 0.03540036856 | C106: 0.03540036856
A107: 824 | B107: 0.03543529738 | C107: 0.03543529738
A108: 824.5 | B108: 0.03540036856 | C108: 0.03540036856
A109: 825 | B109: 0.03529578852 | C109: 0.03529578852
A110: 825.5 | B110: 0.03512217456 | C110: 0.03512217456
A111: 826 | B111: 0.03488054876 | C111: 0.03488054876
A112: 826.5 | B112: 0.03457232796 | C112: 0.03457232796
A113: 827 | B113: 0.03419930992 | C113: 0.03419930992
A114: 827.5 | B114: 0.03376365585 | C114: 0.03376365585
A115: 828 | B115: 0.03326786958 | C115: 0.03326786958
A116: 828.5 | B116: 0.03271477359 | C116: 0.03271477359
A117: 829 | B117: 0.03210748226 | C117: 0.03210748226
A118: 829.5 | B118: 0.03144937267 | C118: 0.03144937267
A119: 830 | B119: 0.0307440534 | C119: 0.0307440534
A120: 830.5 | B120: 0.02999533165 | C120: 0.02999533165
A121: 831 | B121: 0.02920717911 | C121: 0.02920717911
A122: 831.5 | B122: 0.02838369707 | C122: 0.02838369707
A123: 832 | B123: =_xlfn.NORM.DIST(A123,$B$8,$B$10/SQRT($B$12),0) -> 0.02752908112 | C123: =IF(AND(A123>=$B$8-$B$11,A123<=$B$8+$B$11),B123,"") -> 0.02752908112
A124: 832.5 | B124: 0.02664758594 | C124: 0.02664758594
A125: 833 | B125: 0.02574349046 | C125: 0.02574349046
A126: 833.5 | B126: 0.02482106395 | C126: 0.02482106395
A127: 834 | B127: 0.0238845333 | C127: 0.0238845333
A128: 834.5 | B128: 0.02293805179 | C128: 0.02293805179
A129: 835 | B129: 0.02198566984 | C129: 0.02198566984
A130: 835.5 | B130: 0.02103130774 | C130: 0.02103130774
A131: 836 | B131: 0.02007873083 | C131: 0.02007873083
A132: 836.5 | B132: 0.01913152725 | C132: 0.01913152725
A133: 837 | B133: 0.01819308829 | C133: 0.01819308829
A134: 837.5 | B134: 0.0172665916 | C134: 0.0172665916
A135: 838 | B135: 0.01635498726 | C135: 0.01635498726
A136: 838.5 | B136: 0.01546098671 | C136: 0.01546098671
A137: 839 | B137: 0.01458705454 | C137: 0.01458705454
A138: 839.5 | B138: 0.01373540312 | C138: 0.01373540312
A139: 840 | B139: 0.0129079899 | C139: 0.0129079899
A140: 840.5 | B140: 0.0121065173 | C140: 0.0121065173
A141: 841 | B141: 0.0113324351 | C141: 0.0113324351
A142: 841.5 | B142: 0.01058694501 | C142: 0.01058694501
A143: 842 | B143: 0.009871007406 | C143: 0.009871007406
A144: 842.5 | B144: 0.009185349832 | C144: 0.009185349832
A145: 843 | B145: 0.008530477238 | C145: 0.008530477238
A146: 843.5 | B146: 0.00790668358 | C146: 0.00790668358
A147: 844 | B147: 0.007314064617 | C147: 0.007314064617
A148: 844.5 | B148: 0.006752531675 | C148: 0.006752531675
A149: 845 | B149: 0.006221826133 | C149: 0.006221826133
A150: 845.5 | B150: 0.005721534417 | C150: 0.005721534417
A151: 846 | B151: 0.005251103304 | C151: 0.005251103304
A152: 846.5 | B152: 0.004809855319 | C152: 0.004809855319
A153: 847 | B153: 0.004397004065 | C153: 0.004397004065
A154: 847.5 | B154: 0.004011669297 | C154: 0.004011669297
A155: 848 | B155: =_xlfn.NORM.DIST(A155,$B$8,$B$10/SQRT($B$12),0) -> 0.003652891608 | C155: =IF(AND(A155>=$B$8-$B$11,A155<=$B$8+$B$11),B155,"") -> 0.003652891608
A156: 848.5 | B156: 0.003319646582 | C156: 0.003319646582
A157: 849 | B157: 0.003010858307 | C157: 0.003010858307
A158: 849.5 | B158: 0.002725412158 | C158: 0.002725412158
A159: 850 | B159: 0.002462166757 | C159: 0.002462166757
A160: 850.5 | B160: 0.002219965071 | C160: 0.002219965071
A161: 851 | B161: 0.001997644586 | C161: 0.001997644586
A162: 851.5 | B162: 0.001794046549 | C162: 0.001794046549
A163: 852 | B163: 0.001608024256 | C163: 0.001608024256
A164: 852.5 | B164: 0.001438450385 | C164: 0.001438450385
A165: 853 | B165: 0.001284223408 | C165: 0.001284223408
A166: 853.5 | B166: 0.001144273077 | C166: 0.001144273077
A167: 854 | B167: 0.001017565049 | C167: 0.001017565049
A168: 854.5 | B168: 0.000903104667
A169: 855 | B169: 0.0007999399656
A170: 855.5 | B170: 0.0007071639399
A171: 856 | B171: 0.0006239161422
A172: 856.5 | B172: 0.0005493836628
A173: 857 | B173: 0.0004828015576
A174: 857.5 | B174: 0.0004234527795
A175: 858 | B175: 0.0003706676773
A176: 858.5 | B176: 0.0003238231169
A177: 859 | B177: 0.0002823412832
A178: 859.5 | B178: 0.0002456882139
A179: 860 | B179: 0.0002133721167
A180: 860.5 | B180: 0.0001849415151
A181: 861 | B181: 0.0001599832666
A182: 861.5 | B182: 0.0001381204907
A183: 862 | B183: 0.0001190104421
A184: 862.5 | B184: 0.0001023423601
A185: 863 | B185: 8.783532052e-05
A186: 863.5 | B186: 7.52361141e-05
A187: 864 | B187: =_xlfn.NORM.DIST(A187,$B$8,$B$10/SQRT($B$12),0) -> 6.431716984e-05 | C187: =IF(AND(A187>=$B$8-$B$11,A187<=$B$8+$B$11),B187,"") -> 

Sheet SE & Correction Factor
A1: Population Standard Deviation shows the "How spread out the data is"
A2: Sampling Distribution of Xbar is less spread out because the distribution is made up of averages, (values near middle), not actual values
A3: This means we must have a formula to reduce the size of the given Population Standard Deviation
A4: Formula for Standard Deviation of Sampling Distribution of Xbar is
A5: If n/N <= 0.05 for finite population or population is infinite use: Sigma/(SQRT(n)
A6: If n/N > 0.05 for finite population use: [Sigma/(SQRT(n)]*SQRT((N-n)/(N-1))
A8: Sigma | B8: 195 | C8: Population standard deviation
A9: n | B9: 300 | C9: Sample Size
A11: N = Pop Size | B11: n/N | C11: n/N > 0.05 ? | D11: Correction Factor | E11: Standard Error | F11: Standard Error w Correction Factor
A12: 3000000
A13: 25000
A14: 10000
A15: 3000

Sheet SE & Correction Factor (an)
A1: Population Standard Deviation shows the "How spread out the data is"
A2: Sampling Distribution of Xbar is less spread out because the distribution is made up of averages, (values near middle), not actual values
A3: This means we must have a formula to reduce the size of the given Population Standard Deviation
A4: Formula for Standard Deviation of Sampling Distribution of Xbar is
A5: If n/N <= 0.05 for finite population or population is infinite use: Sigma/(SQRT(n)
A6: If n/N > 0.05 for finite population use: [Sigma/(SQRT(n)]*SQRT((N-n)/(N-1))
A8: Sigma | B8: 195 | C8: Population standard deviation
A9: n | B9: 300 | C9: Sample Size
A11: N = Pop Size | B11: n/N | C11: n/N > 0.05 ? | D11: Correction Factor | E11: Standard Error | F11: Standard Error w Correction Factor
A12: 3000000 | B12: =$B$9/A12 -> 0.0001 | C12: =B12>0.05 -> FALSE | D12: =SQRT((A12-$B$9)/(A12-1)) -> 0.9999501654 | E12: =$B$8/SQRT($B$9) -> 11.25833025 | F12: =E12*D12 -> 11.25776919
A13: 25000 | B13: =$B$9/A13 -> 0.012 | C13: =B13>0.05 -> FALSE | D13: =SQRT((A13-$B$9)/(A13-1)) -> 0.9940017714 | E13: =$B$8/SQRT($B$9) -> 11.25833025 | F13: =E13*D13 -> 11.19080021
A14: 10000 | B14: 0.03 | C14: FALSE | D14: 0.9849350282 | E14: 11.25833025 | F14: 11.08872382
A15: 3000 | B15: 0.1 | C15: TRUE | D15: 0.9488414515 | E15: 11.25833025 | F15: 10.68237041

Sheet n and Prob
A1: An insurance company claims that the average cost per year for a policy is $824.
A2: They issued 25,000 policies this year.
A3: The standard deviation for the population is $195.
A4: What is the probability of getting a sample mean within +/- $30?
A6: Mew | B6: 824
A7: Sigma | B7: 195
A8: Margin of error | B8: 30
A10: n | B10: Standard Error | C10: Lower | D10: Upper | E10: P(Xbar) | F10: p(Xbar)
A11: 50 | E11: =IF(D11="","","P("&DOLLAR(C11,0)&" <= Xbar <= "&DOLLAR(D11,0)&") @ n = "&A11) -> 
A12: 100 | E12: =IF(D12="","","P("&DOLLAR(C12,0)&" <= Xbar <= "&DOLLAR(D12,0)&") @ n = "&A12) -> 
A13: 300 | E13: =IF(D13="","","P("&DOLLAR(C13,0)&" <= Xbar <= "&DOLLAR(D13,0)&") @ n = "&A13) -> 
A14: 500 | E14: =IF(D14="","","P("&DOLLAR(C14,0)&" <= Xbar <= "&DOLLAR(D14,0)&") @ n = "&A14) -> 
A17: n | B17: =A12 -> 100 | C17: =A13 -> 300
A18: SE | B18: =$B$7/SQRT(B17) -> 19.5 | C18: =$B$7/SQRT(C17) -> 11.25833025
A19: Xbar | B19: ="Plot @ N = "&B17 -> Plot @ N = 100 | C19: ="Plot @ N = "&C17 -> Plot @ N = 300
A20: 746 | B20: =_xlfn.NORM.DIST($A20,$B$6,B$18,0) -> 6.863088501e-06 | C20: 1.337730152e-12
A21: 747 | B21: 8.414621437e-06 | C21: 2.465548021e-12
A22: 748 | B22: 1.028981192e-05 | C22: 4.508499529e-12
A23: 749 | B23: 1.254983923e-05 | C23: 8.179451946e-12
A24: 750 | B24: 1.526605276e-05 | C24: 1.472278586e-11
A25: 751 | B25: 1.852137508e-05 | C25: 2.629234965e-11
A26: 752 | B26: 2.241184272e-05 | C26: 4.658460489e-11
A27: 753 | B27: 2.704828764e-05 | C27: 8.188965609e-11
A28: 754 | B28: 3.255816035e-05 | C28: 1.428200864e-10
A29: 755 | B29: 3.908749245e-05 | C29: 2.4712868e-10
A30: 756 | B30: 4.680299382e-05 | C30: 4.242585672e-10
A31: 757 | B31: 5.589427524e-05 | C31: 7.226228763e-10
A32: 758 | B32: 6.657618349e-05 | C32: 1.221142664e-09
A33: 759 | B33: 7.909123058e-05 | C33: 2.04736237e-09
A34: 760 | B34: 9.371209379e-05 | C34: 3.405623567e-09
A35: 761 | B35: 0.0001107441569 | C35: 5.620464146e-09
A36: 762 | B36: 0.0001305280566 | C36: 9.202828622e-09
A37: 763 | B37: 0.0001534421921 | C37: 1.495010011e-08
A38: 764 | B38: 0.0001799051466 | C38: 2.409575179e-08
A39: 765 | B39: 0.000210377966 | C39: 3.85310172e-08
A40: 766 | B40: =_xlfn.NORM.DIST($A40,$B$6,B$18,0) -> 0.0002453662286 | C40: 6.112995574e-08
A41: 767 | B41: 0.0002854218354 | C41: 9.622131812e-08
A42: 768 | B42: 0.0003311444438 | C42: 1.502664879e-07
A43: 769 | B43: 0.0003831824605 | C43: 2.328233768e-07
A44: 770 | B44: 0.0004422335042 | C44: 3.579024283e-07
A45: 771 | B45: 0.0005090442472 | C45: 5.458537771e-07
A46: 772 | B46: 0.0005844095397 | C46: 8.259649307e-07
A47: 773 | B47: 0.0006691707211 | C47: 1.239996645e-06
A48: 774 | B48: 0.0007642130256 | C48: 1.846941014e-06
A49: 775 | B49: 0.0008704619906 | C49: 2.729349518e-06
A50: 776 | B50: 0.0009888787845 | C50: 4.001648123e-06
A51: 777 | B51: 0.001120454379 | C51: 5.820928347e-06
A52: 778 | B52: 0.001266202504 | C52: 8.400772485e-06
A53: 779 | B53: 0.001427151339 | C53: 1.202873082e-05
A54: 780 | B54: 0.001604333904 | C54: 1.70881089e-05
A55: 781 | B55: 0.001798777162 | C55: 2.408473174e-05
A56: 782 | B56: 0.002011489823 | C56: 3.367931403e-05
A57: 783 | B57: 0.002243448919 | C57: 4.672596451e-05
A58: 784 | B58: 0.002495585206 | C58: 6.431716984e-05
A59: 785 | B59: 0.002768767513 | C59: 8.783532052e-05
A60: 786 | B60: =_xlfn.NORM.DIST($A60,$B$6,B$18,0) -> 0.00306378616 | C60: 0.0001190104421
A61: 787 | B61: 0.003381335628 | C61: 0.0001599832666
A62: 788 | B62: 0.003721996688 | C62: 0.0002133721167
A63: 789 | B63: 0.004086218214 | C63: 0.0002823412832
A64: 790 | B64: 0.004474298963 | C64: 0.0003706676773
A65: 791 | B65: 0.004886369614 | C65: 0.0004828015576
A66: 792 | B66: 0.005322375376 | C66: 0.0006239161422
A67: 793 | B67: 0.005782059532 | C67: 0.0007999399656
A68: 794 | B68: 0.006264948246 | C68: 0.001017565049
A69: 795 | B69: 0.006770337017 | C69: 0.001284223408
A70: 796 | B70: 0.007297279132 | C70: 0.001608024256
A71: 797 | B71: 0.007844576478 | C71: 0.001997644586
A72: 798 | B72: 0.00841077306 | C72: 0.002462166757
A73: 799 | B73: 0.008994151523 | C73: 0.003010858307
A74: 800 | B74: 0.009592732979 | C74: 0.003652891608
A75: 801 | B75: 0.01020428038 | C75: 0.004397004065
A76: 802 | B76: 0.01082630558 | C76: 0.005251103304
A77: 803 | B77: 0.01145608034 | C77: 0.006221826133
A78: 804 | B78: 0.01209065117 | C78: 0.007314064617
A79: 805 | B79: 0.01272685814 | C79: 0.008530477238
A80: 806 | B80: =_xlfn.NORM.DIST($A80,$B$6,B$18,0) -> 0.01336135757 | C80: 0.009871007406
A81: 807 | B81: 0.01399064834 | C81: 0.0113324351
A82: 808 | B82: 0.01461110178 | C82: 0.0129079899
A83: 809 | B83: 0.01521899459 | C83: 0.01458705454
A84: 810 | B84: 0.01581054464 | C84: 0.01635498726
A85: 811 | B85: 0.016381949 | C85: 0.01819308829
A86: 812 | B86: 0.01692942391 | C86: 0.02007873083
A87: 813 | B87: 0.01744924583 | C87: 0.02198566984
A88: 814 | B88: 0.01793779324 | C88: 0.0238845333
A89: 815 | B89: 0.01839158834 | C89: 0.02574349046
A90: 816 | B90: 0.01880733812 | C90: 0.02752908112
A91: 817 | B91: 0.01918197402 | C91: 0.02920717911
A92: 818 | B92: 0.01951268959 | C92: 0.0307440534
A93: 819 | B93: 0.01979697544 | C93: 0.03210748226
A94: 820 | B94: 0.02003265095 | C94: 0.03326786958
A95: 821 | B95: 0.02021789212 | C95: 0.03419930992
A96: 822 | B96: 0.02035125504 | C96: 0.03488054876
A97: 823 | B97: 0.02043169468 | C97: 0.03529578852
A98: 824 | B98: 0.02045857848 | C98: 0.03543529738
A99: 825 | B99: 0.02043169468 | C99: 0.03529578852
A100: 826 | B100: =_xlfn.NORM.DIST($A100,$B$6,B$18,0) -> 0.02035125504 | C100: 0.03488054876
A101: 827 | B101: 0.02021789212 | C101: 0.03419930992
A102: 828 | B102: 0.02003265095 | C102: 0.03326786958
A103: 829 | B103: 0.01979697544 | C103: 0.03210748226
A104: 830 | B104: 0.01951268959 | C104: 0.0307440534
A105: 831 | B105: 0.01918197402 | C105: 0.02920717911
A106: 832 | B106: 0.01880733812 | C106: 0.02752908112
A107: 833 | B107: 0.01839158834 | C107: 0.02574349046
A108: 834 | B108: 0.01793779324 | C108: 0.0238845333
A109: 835 | B109: 0.01744924583 | C109: 0.02198566984
A110: 836 | B110: 0.01692942391 | C110: 0.02007873083
A111: 837 | B111: 0.016381949 | C111: 0.01819308829
A112: 838 | B112: 0.01581054464 | C112: 0.01635498726
A113: 839 | B113: 0.01521899459 | C113: 0.01458705454
A114: 840 | B114: 0.01461110178 | C114: 0.0129079899
A115: 841 | B115: 0.01399064834 | C115: 0.0113324351
A116: 842 | B116: 0.01336135757 | C116: 0.009871007406
A117: 843 | B117: 0.01272685814 | C117: 0.008530477238
A118: 844 | B118: 0.01209065117 | C118: 0.007314064617
A119: 845 | B119: 0.01145608034 | C119: 0.006221826133
A120: 846 | B120: =_xlfn.NORM.DIST($A120,$B$6,B$18,0) -> 0.01082630558 | C120: 0.005251103304
A121: 847 | B121: 0.01020428038 | C121: 0.004397004065
A122: 848 | B122: 0.009592732979 | C122: 0.003652891608
A123: 849 | B123: 0.008994151523 | C123: 0.003010858307
A124: 850 | B124: 0.00841077306 | C124: 0.002462166757
A125: 851 | B125: 0.007844576478 | C125: 0.001997644586
A126: 852 | B126: 0.007297279132 | C126: 0.001608024256
A127: 853 | B127: 0.006770337017 | C127: 0.001284223408
A128: 854 | B128: 0.006264948246 | C128: 0.001017565049
A129: 855 | B129: 0.005782059532 | C129: 0.0007999399656
A130: 856 | B130: 0.005322375376 | C130: 0.0006239161422
A131: 857 | B131: 0.004886369614 | C131: 0.0004828015576
A132: 858 | B132: 0.004474298963 | C132: 0.0003706676773
A133: 859 | B133: 0.004086218214 | C133: 0.0002823412832
A134: 860 | B134: 0.003721996688 | C134: 0.0002133721167
A135: 861 | B135: 0.003381335628 | C135: 0.0001599832666
A136: 862 | B136: 0.00306378616 | C136: 0.0001190104421
A137: 863 | B137: 0.002768767513 | C137: 8.783532052e-05
A138: 864 | B138: 0.002495585206 | C138: 6.431716984e-05
A139: 865 | B139: 0.002243448919 | C139: 4.672596451e-05
A140: 866 | B140: =_xlfn.NORM.DIST($A140,$B$6,B$18,0) -> 0.002011489823 | C140: 3.367931403e-05
A141: 867 | B141: 0.001798777162 | C141: 2.408473174e-05
A142: 868 | B142: 0.001604333904 | C142: 1.70881089e-05
A143: 869 | B143: 0.001427151339 | C143: 1.202873082e-05
A144: 870 | B144: 0.001266202504 | C144: 8.400772485e-06
A145: 871 | B145: 0.001120454379 | C145: 5.820928347e-06
A146: 872 | B146: 0.0009888787845 | C146: 4.001648123e-06
A147: 873 | B147: 0.0008704619906 | C147: 2.729349518e-06
A148: 874 | B148: 0.0007642130256 | C148: 1.846941014e-06
A149: 875 | B149: 0.0006691707211 | C149: 1.239996645e-06
A150: 876 | B150: 0.0005844095397 | C150: 8.259649307e-07
A151: 877 | B151: 0.0005090442472 | C151: 5.458537771e-07
A152: 878 | B152: 0.0004422335042 | C152: 3.579024283e-07
A153: 879 | B153: 0.0003831824605 | C153: 2.328233768e-07
A154: 880 | B154: 0.0003311444438 | C154: 1.502664879e-07
A155: 881 | B155: 0.0002854218354 | C155: 9.622131812e-08
A156: 882 | B156: 0.0002453662286 | C156: 6.112995574e-08
A157: 883 | B157: 0.000210377966 | C157: 3.85310172e-08
A158: 884 | B158: 0.0001799051466 | C158: 2.409575179e-08
A159: 885 | B159: 0.0001534421921 | C159: 1.495010011e-08
A160: 886 | B160: =_xlfn.NORM.DIST($A160,$B$6,B$18,0) -> 0.0001305280566 | C160: 9.202828622e-09
A161: 887 | B161: 0.0001107441569 | C161: 5.620464146e-09
A162: 888 | B162: 9.371209379e-05 | C162: 3.405623567e-09
A163: 889 | B163: 7.909123058e-05 | C163: 2.04736237e-09
A164: 890 | B164: 6.657618349e-05 | C164: 1.221142664e-09
A165: 891 | B165: 5.589427524e-05 | C165: 7.226228763e-10
A166: 892 | B166: 4.680299382e-05 | C166: 4.242585672e-10
A167: 893 | B167: 3.908749245e-05 | C167: 2.4712868e-10
A168: 894 | B168: 3.255816035e-05 | C168: 1.428200864e-10
A169: 895 | B169: 2.704828764e-05 | C169: 8.188965609e-11
A170: 896 | B170: 2.241184272e-05 | C170: 4.658460489e-11
A171: 897 | B171: 1.852137508e-05 | C171: 2.629234965e-11
A172: 898 | B172: 1.526605276e-05 | C172: 1.472278586e-11
A173: 899 | B173: 1.254983923e-05 | C173: 8.179451946e-12
A174: 900 | B174: 1.028981192e-05 | C174: 4.508499529e-12
A175: 901 | B175: 8.414621437e-06 | C175: 2.465548021e-12
A176: 902 | B176: 6.863088501e-06 | C176: 1.337730152e-12

Sheet n and Prob (an)
A1: An insurance company claims that the average cost per year for a policy is $824.
A2: They issued 25,000 policies this year.
A3: The standard deviation for the population is $195.
A4: What is the probability of getting a sample mean within +/- $30?
A6: Mew | B6: 824
A7: Sigma | B7: 195
A8: Margin of error | B8: 30
A10: n | B10: Standard Error | C10: Lower | D10: Upper | E10: P(Xbar) | F10: p(Xbar)
A11: 50 | B11: =$B$7/SQRT(A11) -> 27.57716447 | C11: =$B$6-$B$8 -> 794 | D11: =$B$6+$B$8 -> 854 | E11: =IF(D11="","","P("&DOLLAR(C11,0)&" <= Xbar <= "&DOLLAR(D11,0)&") @ n = "&A11) -> P($794 <= Xbar <= $854) @ n = 50 | F11: =_xlfn.NORM.DIST(D11,$B$6,B11,1)-_xlfn.NORM.DIST(C11,$B$6,B11,1) -> 0.7233415759
A12: 100 | B12: =$B$7/SQRT(A12) -> 19.5 | C12: =$B$6-$B$8 -> 794 | D12: =$B$6+$B$8 -> 854 | E12: =IF(D12="","","P("&DOLLAR(C12,0)&" <= Xbar <= "&DOLLAR(D12,0)&") @ n = "&A12) -> P($794 <= Xbar <= $854) @ n = 100 | F12: =_xlfn.NORM.DIST(D12,$B$6,B12,1)-_xlfn.NORM.DIST(C12,$B$6,B12,1) -> 0.8760641943
A13: 300 | B13: =$B$7/SQRT(A13) -> 11.25833025 | C13: 794 | D13: 854 | E13: =IF(D13="","","P("&DOLLAR(C13,0)&" <= Xbar <= "&DOLLAR(D13,0)&") @ n = "&A13) -> P($794 <= Xbar <= $854) @ n = 300 | F13: 0.9922941492
A14: 500 | B14: =$B$7/SQRT(A14) -> 8.720665112 | C14: 794 | D14: 854 | E14: =IF(D14="","","P("&DOLLAR(C14,0)&" <= Xbar <= "&DOLLAR(D14,0)&") @ n = "&A14) -> P($794 <= Xbar <= $854) @ n = 500 | F14: =_xlfn.NORM.DIST(D14,$B$6,B14,1)-_xlfn.NORM.DIST(C14,$B$6,B14,1) -> 0.9994185106
A17: n | B17: =A12 -> 100 | C17: =A13 -> 300
A18: SE | B18: =$B$7/SQRT(B17) -> 19.5 | C18: =$B$7/SQRT(C17) -> 11.25833025
A19: Xbar | B19: ="Plot @ N = "&B17 -> Plot @ N = 100 | C19: ="Plot @ N = "&C17 -> Plot @ N = 300
A20: 746 | B20: =_xlfn.NORM.DIST($A20,$B$6,B$18,0) -> 6.863088501e-06 | C20: 1.337730152e-12
A21: 747 | B21: 8.414621437e-06 | C21: 2.465548021e-12
A22: 748 | B22: 1.028981192e-05 | C22: 4.508499529e-12
A23: 749 | B23: 1.254983923e-05 | C23: 8.179451946e-12
A24: 750 | B24: 1.526605276e-05 | C24: 1.472278586e-11
A25: 751 | B25: 1.852137508e-05 | C25: 2.629234965e-11
A26: 752 | B26: 2.241184272e-05 | C26: 4.658460489e-11
A27: 753 | B27: 2.704828764e-05 | C27: 8.188965609e-11
A28: 754 | B28: 3.255816035e-05 | C28: 1.428200864e-10
A29: 755 | B29: 3.908749245e-05 | C29: 2.4712868e-10
A30: 756 | B30: 4.680299382e-05 | C30: 4.242585672e-10
A31: 757 | B31: 5.589427524e-05 | C31: 7.226228763e-10
A32: 758 | B32: 6.657618349e-05 | C32: 1.221142664e-09
A33: 759 | B33: 7.909123058e-05 | C33: 2.04736237e-09
A34: 760 | B34: 9.371209379e-05 | C34: 3.405623567e-09
A35: 761 | B35: 0.0001107441569 | C35: 5.620464146e-09
A36: 762 | B36: 0.0001305280566 | C36: 9.202828622e-09
A37: 763 | B37: 0.0001534421921 | C37: 1.495010011e-08
A38: 764 | B38: 0.0001799051466 | C38: 2.409575179e-08
A39: 765 | B39: 0.000210377966 | C39: 3.85310172e-08
A40: 766 | B40: =_xlfn.NORM.DIST($A40,$B$6,B$18,0) -> 0.0002453662286 | C40: 6.112995574e-08
A41: 767 | B41: 0.0002854218354 | C41: 9.622131812e-08
A42: 768 | B42: 0.0003311444438 | C42: 1.502664879e-07
A43: 769 | B43: 0.0003831824605 | C43: 2.328233768e-07
A44: 770 | B44: 0.0004422335042 | C44: 3.579024283e-07
A45: 771 | B45: 0.0005090442472 | C45: 5.458537771e-07
A46: 772 | B46: 0.0005844095397 | C46: 8.259649307e-07
A47: 773 | B47: 0.0006691707211 | C47: 1.239996645e-06
A48: 774 | B48: 0.0007642130256 | C48: 1.846941014e-06
A49: 775 | B49: 0.0008704619906 | C49: 2.729349518e-06
A50: 776 | B50: 0.0009888787845 | C50: 4.001648123e-06
A51: 777 | B51: 0.001120454379 | C51: 5.820928347e-06
A52: 778 | B52: 0.001266202504 | C52: 8.400772485e-06
A53: 779 | B53: 0.001427151339 | C53: 1.202873082e-05
A54: 780 | B54: 0.001604333904 | C54: 1.70881089e-05
A55: 781 | B55: 0.001798777162 | C55: 2.408473174e-05
A56: 782 | B56: 0.002011489823 | C56: 3.367931403e-05
A57: 783 | B57: 0.002243448919 | C57: 4.672596451e-05
A58: 784 | B58: 0.002495585206 | C58: 6.431716984e-05
A59: 785 | B59: 0.002768767513 | C59: 8.783532052e-05
A60: 786 | B60: =_xlfn.NORM.DIST($A60,$B$6,B$18,0) -> 0.00306378616 | C60: 0.0001190104421
A61: 787 | B61: 0.003381335628 | C61: 0.0001599832666
A62: 788 | B62: 0.003721996688 | C62: 0.0002133721167
A63: 789 | B63: 0.004086218214 | C63: 0.0002823412832
A64: 790 | B64: 0.004474298963 | C64: 0.0003706676773
A65: 791 | B65: 0.004886369614 | C65: 0.0004828015576
A66: 792 | B66: 0.005322375376 | C66: 0.0006239161422
A67: 793 | B67: 0.005782059532 | C67: 0.0007999399656
A68: 794 | B68: 0.006264948246 | C68: 0.001017565049
A69: 795 | B69: 0.006770337017 | C69: 0.001284223408
A70: 796 | B70: 0.007297279132 | C70: 0.001608024256
A71: 797 | B71: 0.007844576478 | C71: 0.001997644586
A72: 798 | B72: 0.00841077306 | C72: 0.002462166757
A73: 799 | B73: 0.008994151523 | C73: 0.003010858307
A74: 800 | B74: 0.009592732979 | C74: 0.003652891608
A75: 801 | B75: 0.01020428038 | C75: 0.004397004065
A76: 802 | B76: 0.01082630558 | C76: 0.005251103304
A77: 803 | B77: 0.01145608034 | C77: 0.006221826133
A78: 804 | B78: 0.01209065117 | C78: 0.007314064617
A79: 805 | B79: 0.01272685814 | C79: 0.008530477238
A80: 806 | B80: =_xlfn.NORM.DIST($A80,$B$6,B$18,0) -> 0.01336135757 | C80: 0.009871007406
A81: 807 | B81: 0.01399064834 | C81: 0.0113324351
A82: 808 | B82: 0.01461110178 | C82: 0.0129079899
A83: 809 | B83: 0.01521899459 | C83: 0.01458705454
A84: 810 | B84: 0.01581054464 | C84: 0.01635498726
A85: 811 | B85: 0.016381949 | C85: 0.01819308829
A86: 812 | B86: 0.01692942391 | C86: 0.02007873083
A87: 813 | B87: 0.01744924583 | C87: 0.02198566984
A88: 814 | B88: 0.01793779324 | C88: 0.0238845333
A89: 815 | B89: 0.01839158834 | C89: 0.02574349046
A90: 816 | B90: 0.01880733812 | C90: 0.02752908112
A91: 817 | B91: 0.01918197402 | C91: 0.02920717911
A92: 818 | B92: 0.01951268959 | C92: 0.0307440534
A93: 819 | B93: 0.01979697544 | C93: 0.03210748226
A94: 820 | B94: 0.02003265095 | C94: 0.03326786958
A95: 821 | B95: 0.02021789212 | C95: 0.03419930992
A96: 822 | B96: 0.02035125504 | C96: 0.03488054876
A97: 823 | B97: 0.02043169468 | C97: 0.03529578852
A98: 824 | B98: 0.02045857848 | C98: 0.03543529738
A99: 825 | B99: 0.02043169468 | C99: 0.03529578852
A100: 826 | B100: =_xlfn.NORM.DIST($A100,$B$6,B$18,0) -> 0.02035125504 | C100: 0.03488054876
A101: 827 | B101: 0.02021789212 | C101: 0.03419930992
A102: 828 | B102: 0.02003265095 | C102: 0.03326786958
A103: 829 | B103: 0.01979697544 | C103: 0.03210748226
A104: 830 | B104: 0.01951268959 | C104: 0.0307440534
A105: 831 | B105: 0.01918197402 | C105: 0.02920717911
A106: 832 | B106: 0.01880733812 | C106: 0.02752908112
A107: 833 | B107: 0.01839158834 | C107: 0.02574349046
A108: 834 | B108: 0.01793779324 | C108: 0.0238845333
A109: 835 | B109: 0.01744924583 | C109: 0.02198566984
A110: 836 | B110: 0.01692942391 | C110: 0.02007873083
A111: 837 | B111: 0.016381949 | C111: 0.01819308829
A112: 838 | B112: 0.01581054464 | C112: 0.01635498726
A113: 839 | B113: 0.01521899459 | C113: 0.01458705454
A114: 840 | B114: 0.01461110178 | C114: 0.0129079899
A115: 841 | B115: 0.01399064834 | C115: 0.0113324351
A116: 842 | B116: 0.01336135757 | C116: 0.009871007406
A117: 843 | B117: 0.01272685814 | C117: 0.008530477238
A118: 844 | B118: 0.01209065117 | C118: 0.007314064617
A119: 845 | B119: 0.01145608034 | C119: 0.006221826133
A120: 846 | B120: =_xlfn.NORM.DIST($A120,$B$6,B$18,0) -> 0.01082630558 | C120: 0.005251103304
A121: 847 | B121: 0.01020428038 | C121: 0.004397004065
A122: 848 | B122: 0.009592732979 | C122: 0.003652891608
A123: 849 | B123: 0.008994151523 | C123: 0.003010858307
A124: 850 | B124: 0.00841077306 | C124: 0.002462166757
A125: 851 | B125: 0.007844576478 | C125: 0.001997644586
A126: 852 | B126: 0.007297279132 | C126: 0.001608024256
A127: 853 | B127: 0.006770337017 | C127: 0.001284223408
A128: 854 | B128: 0.006264948246 | C128: 0.001017565049
A129: 855 | B129: 0.005782059532 | C129: 0.0007999399656
A130: 856 | B130: 0.005322375376 | C130: 0.0006239161422
A131: 857 | B131: 0.004886369614 | C131: 0.0004828015576
A132: 858 | B132: 0.004474298963 | C132: 0.0003706676773
A133: 859 | B133: 0.004086218214 | C133: 0.0002823412832
A134: 860 | B134: 0.003721996688 | C134: 0.0002133721167
A135: 861 | B135: 0.003381335628 | C135: 0.0001599832666
A136: 862 | B136: 0.00306378616 | C136: 0.0001190104421
A137: 863 | B137: 0.002768767513 | C137: 8.783532052e-05
A138: 864 | B138: 0.002495585206 | C138: 6.431716984e-05
A139: 865 | B139: 0.002243448919 | C139: 4.672596451e-05
A140: 866 | B140: =_xlfn.NORM.DIST($A140,$B$6,B$18,0) -> 0.002011489823 | C140: 3.367931403e-05
A141: 867 | B141: 0.001798777162 | C141: 2.408473174e-05
A142: 868 | B142: 0.001604333904 | C142: 1.70881089e-05
A143: 869 | B143: 0.001427151339 | C143: 1.202873082e-05
A144: 870 | B144: 0.001266202504 | C144: 8.400772485e-06
A145: 871 | B145: 0.001120454379 | C145: 5.820928347e-06
A146: 872 | B146: 0.0009888787845 | C146: 4.001648123e-06
A147: 873 | B147: 0.0008704619906 | C147: 2.729349518e-06
A148: 874 | B148: 0.0007642130256 | C148: 1.846941014e-06
A149: 875 | B149: 0.0006691707211 | C149: 1.239996645e-06
A150: 876 | B150: 0.0005844095397 | C150: 8.259649307e-07
A151: 877 | B151: 0.0005090442472 | C151: 5.458537771e-07
A152: 878 | B152: 0.0004422335042 | C152: 3.579024283e-07
A153: 879 | B153: 0.0003831824605 | C153: 2.328233768e-07
A154: 880 | B154: 0.0003311444438 | C154: 1.502664879e-07
A155: 881 | B155: 0.0002854218354 | C155: 9.622131812e-08
A156: 882 | B156: 0.0002453662286 | C156: 6.112995574e-08
A157: 883 | B157: 0.000210377966 | C157: 3.85310172e-08
A158: 884 | B158: 0.0001799051466 | C158: 2.409575179e-08
A159: 885 | B159: 0.0001534421921 | C159: 1.495010011e-08
A160: 886 | B160: =_xlfn.NORM.DIST($A160,$B$6,B$18,0) -> 0.0001305280566 | C160: 9.202828622e-09
A161: 887 | B161: 0.0001107441569 | C161: 5.620464146e-09
A162: 888 | B162: 9.371209379e-05 | C162: 3.405623567e-09
A163: 889 | B163: 7.909123058e-05 | C163: 2.04736237e-09
A164: 890 | B164: 6.657618349e-05 | C164: 1.221142664e-09
A165: 891 | B165: 5.589427524e-05 | C165: 7.226228763e-10
A166: 892 | B166: 4.680299382e-05 | C166: 4.242585672e-10
A167: 893 | B167: 3.908749245e-05 | C167: 2.4712868e-10
A168: 894 | B168: 3.255816035e-05 | C168: 1.428200864e-10
A169: 895 | B169: 2.704828764e-05 | C169: 8.188965609e-11
A170: 896 | B170: 2.241184272e-05 | C170: 4.658460489e-11
A171: 897 | B171: 1.852137508e-05 | C171: 2.629234965e-11
A172: 898 | B172: 1.526605276e-05 | C172: 1.472278586e-11
A173: 899 | B173: 1.254983923e-05 | C173: 8.179451946e-12
A174: 900 | B174: 1.028981192e-05 | C174: 4.508499529e-12
A175: 901 | B175: 8.414621437e-06 | C175: 2.465548021e-12
A176: 902 | B176: 6.863088501e-06 | C176: 1.337730152e-12

Sheet Ex2
A1: Report Claims Washington Mean Gas: | B1: 2.574 | E1: x | F1: =IF(B9="","","Outside Internal Probability = "&TEXT(1-(_xlfn.NORM.DIST(B1+B4,B1,B6,1)-_xlfn.NORM.DIST(B1-B4,B1,B6,1)),"0.0000")) ->  | G1: =IF(B9="","","Inside Internal Probability = "&TEXT(_xlfn.NORM.DIST(B1+B4,B1,B6,1)-_xlfn.NORM.DIST(B1-B4,B1,B6,1),"0.0000")) -> 
A2: Assume sigma to be: | B2: 0.22 | E2: =B1-B2/SQRT(B3)*5 -> 2.418436508 | F2: =NORMDIST(E2,$B$1,$B$2/SQRT($B$3),0) -> 4.778497503e-05 | G2: =IF(AND(E2>=$B$1-$B$4,E2<=$B$1+$B$4),F2,"") -> 
A3: Sample size = n = | B3: 50 | E3: =E2+0.001 -> 2.419436508 | F3: =NORMDIST(E3,$B$1,$B$2/SQRT($B$3),0) -> 5.608681835e-05 | G3: =IF(AND(E3>=$B$1-$B$4,E3<=$B$1+$B$4),F3,"") -> 
A4: Distance on either side of mew = | B4: 0.06 | E4: 2.420436508 | F4: 6.576299655e-05
A5: ="What is the probability that the mean price for a sample of "&B3&" stations is within "&DOLLAR(B4)&" of the population mean?" -> What is the probability that the mean price for a sample of 50 stations is within $0.06 of the population mean? | E5: 2.421436508 | F5: 7.702890644e-05
A6: Standard Error (SD of Sampling Distribution): | E6: 2.422436508 | F6: 9.013162878e-05
A7: Lower Xbar | E7: 2.423436508 | F7: 0.0001053542488
A8: Upper Xbar | E8: 2.424436508 | F8: 0.0001230207129
A9: Probability between two Xbar | E9: 2.425436508 | F9: 0.0001435012792
A10: Conclusions: | E10: 2.426436508 | F10: 0.0001672186273
A11: =IF(B9="","","The probability of selecting a sample of "&B3&" gas stations and finding the sample mean within "&DOLLAR(B4)&" of "&DOLLAR(B1)&" is ."&TEXT(B9,"0.0000")&".") ->  | E11: 2.427436508 | F11: 0.0001946546956
A12: =IF(B9="","","A random sample of "&B3&" gas stations has a "&TEXT(B9,"0.0000")&" probability of providing a sample mean that is within "&DOLLAR(B4)&" of the population mean of "&DOLLAR(B1)&".") ->  | E12: 2.428436508 | F12: 0.0002263583208
A13: =IF(B9="","","There is a "&TEXT(1-B9,"0.0000")&" probability that the sample mean will not be in our interval") ->  | E13: 2.429436508 | F13: 0.0002629537636
E14: 2.430436508 | F14: 0.0003051502061
E15: 2.431436508 | F15: 0.0003537523167
E16: 2.432436508 | F16: 0.0004096719853
E17: 2.433436508 | F17: 0.0004739413365
E18: 2.434436508 | F18: 0.0005477271389
E19: 2.435436508 | F19: 0.0006323467339
E20: 2.436436508 | F20: 0.0007292856166
E21: 2.437436508 | F21: 0.0008402168086
E22: 2.438436508 | F22: 0.0009670221707
E23: 2.439436508 | F23: 0.001111815811
E24: 2.440436508 | F24: 0.001276969748
E25: 2.441436508 | F25: 0.001465142009
E26: 2.442436508 | F26: 0.00167930732
E27: 2.443436508 | F27: 0.0019227906
E28: 2.444436508 | F28: 0.002199303413
E29: 2.445436508 | F29: 0.002512983602
E30: 2.446436508 | F30: 0.002868438282
E31: 2.447436508 | F31: 0.003270790396
E32: 2.448436508 | F32: 0.003725729036
E33: 2.449436508 | F33: 0.004239563726
E34: 2.450436508 | F34: 0.004819282864
E35: 2.451436508 | F35: 0.005472616509
E36: 2.452436508 | F36: 0.00620810371
E37: 2.453436508 | F37: 0.007035164542
E38: 2.454436508 | F38: 0.007964177011
E39: 2.455436508 | F39: 0.009006558979
E40: 2.456436508 | F40: 0.01017485524
E41: 2.457436508 | F41: 0.01148282986
E42: 2.458436508 | F42: 0.0129455638
E43: 2.459436508 | F43: 0.01457955798
E44: 2.460436508 | F44: 0.01640284171
E45: 2.461436508 | F45: 0.01843508648
E46: 2.462436508 | F46: 0.02069772504
E47: 2.463436508 | F47: 0.02321407568
E48: 2.464436508 | F48: 0.02600947149
E49: 2.465436508 | F49: 0.02911139436
E50: 2.466436508 | F50: 0.03254961351
E51: 2.467436508 | F51: 0.03635632806
E52: 2.468436508 | F52: 0.04056631323
E53: 2.469436508 | F53: 0.0452170697
E54: 2.470436508 | F54: 0.05034897549
E55: 2.471436508 | F55: 0.05600543954
E56: 2.472436508 | F56: 0.06223305642
E57: 2.473436508 | F57: 0.06908176106
E58: 2.474436508 | F58: 0.07660498262
E59: 2.475436508 | F59: 0.08485979635
E60: 2.476436508 | F60: 0.09390707224
E61: 2.477436508 | F61: 0.1038116192
E62: 2.478436508 | F62: 0.114642323
E63: 2.479436508 | F63: 0.1264722774
E64: 2.480436508 | F64: 0.1393789054
E65: 2.481436508 | F65: 0.1534440696
E66: 2.482436508 | F66: 0.168754171
E67: =E66+0.001 -> 2.483436508 | F67: =NORMDIST(E67,$B$1,$B$2/SQRT($B$3),0) -> 0.1854002315 | G67: =IF(AND(E67>=$B$1-$B$4,E67<=$B$1+$B$4),F67,"") -> 
E68: 2.484436508 | F68: 0.2034779609
E69: 2.485436508 | F69: 0.223087805
E70: 2.486436508 | F70: 0.2443349721
E71: 2.487436508 | F71: 0.2673294369
E72: 2.488436508 | F72: 0.2921859194
E73: 2.489436508 | F73: 0.3190238351
E74: 2.490436508 | F74: 0.347967216
E75: 2.491436508 | F75: 0.3791445993
E76: 2.492436508 | F76: 0.4126888814
E77: 2.493436508 | F77: 0.4487371355
E78: 2.494436508 | F78: 0.4874303902
E79: 2.495436508 | F79: 0.5289133675
E80: 2.496436508 | F80: 0.5733341784
E81: 2.497436508 | F81: 0.6208439737
E82: 2.498436508 | F82: 0.6715965497
E83: 2.499436508 | F83: 0.7257479059
E84: 2.500436508 | F84: 0.783455755
E85: 2.501436508 | F85: 0.8448789842
E86: 2.502436508 | F86: 0.9101770665
E87: 2.503436508 | F87: 0.9795094228
E88: 2.504436508 | F88: 1.053034734
E89: 2.505436508 | F89: 1.130910207
E90: 2.506436508 | F90: 1.213290786
E91: 2.507436508 | F91: 1.300328328
E92: 2.508436508 | F92: 1.392170725
E93: 2.509436508 | F93: 1.488960987
E94: 2.510436508 | F94: 1.590836289
E95: 2.511436508 | F95: 1.697926976
E96: 2.512436508 | F96: 1.810355544
E97: 2.513436508 | F97: 1.928235582
E98: 2.514436508 | F98: 2.051670707 | G98: 2.051670707
E99: 2.515436508 | F99: 2.180753468 | G99: 2.180753468
E100: 2.516436508 | F100: 2.315564241 | G100: 2.315564241
E101: 2.517436508 | F101: 2.456170129 | G101: 2.456170129
E102: 2.518436508 | F102: 2.60262385 | G102: 2.60262385
E103: 2.519436508 | F103: 2.75496264 | G103: 2.75496264
E104: 2.520436508 | F104: 2.913207176 | G104: 2.913207176
E105: 2.521436508 | F105: 3.077360514 | G105: 3.077360514
E106: 2.522436508 | F106: 3.247407067 | G106: 3.247407067
E107: 2.523436508 | F107: 3.423311624 | G107: 3.423311624
E108: 2.524436508 | F108: 3.605018408 | G108: 3.605018408
E109: 2.525436508 | F109: 3.792450206 | G109: 3.792450206
E110: 2.526436508 | F110: 3.985507553 | G110: 3.985507553
E111: 2.527436508 | F111: 4.184068004 | G111: 4.184068004
E112: 2.528436508 | F112: 4.387985473 | G112: 4.387985473
E113: 2.529436508 | F113: 4.597089684 | G113: 4.597089684
E114: 2.530436508 | F114: 4.811185705 | G114: 4.811185705
E115: 2.531436508 | F115: 5.030053602 | G115: 5.030053602
E116: 2.532436508 | F116: 5.2534482 | G116: 5.2534482
E117: 2.533436508 | F117: 5.481098975 | G117: 5.481098975
E118: 2.534436508 | F118: 5.712710065 | G118: 5.712710065
E119: 2.535436508 | F119: 5.947960427 | G119: 5.947960427
E120: 2.536436508 | F120: 6.186504119 | G120: 6.186504119
E121: 2.537436508 | F121: 6.427970739 | G121: 6.427970739
E122: 2.538436508 | F122: 6.671966001 | G122: 6.671966001
E123: 2.539436508 | F123: 6.918072461 | G123: 6.918072461
E124: 2.540436508 | F124: 7.165850401 | G124: 7.165850401
E125: 2.541436508 | F125: 7.41483885 | G125: 7.41483885
E126: 2.542436508 | F126: 7.664556761 | G126: 7.664556761
E127: 2.543436508 | F127: 7.91450434 | G127: 7.91450434
E128: 2.544436508 | F128: 8.164164505 | G128: 8.164164505
E129: 2.545436508 | F129: 8.413004498 | G129: 8.413004498
E130: 2.546436508 | F130: 8.660477623 | G130: 8.660477623
E131: =E130+0.001 -> 2.547436508 | F131: =NORMDIST(E131,$B$1,$B$2/SQRT($B$3),0) -> 8.906025112 | G131: =IF(AND(E131>=$B$1-$B$4,E131<=$B$1+$B$4),F131,"") -> 8.906025112
E132: 2.548436508 | F132: 9.149078113 | G132: 9.149078113
E133: 2.549436508 | F133: 9.389059782 | G133: 9.389059782
E134: 2.550436508 | F134: 9.625387487 | G134: 9.625387487
E135: 2.551436508 | F135: 9.857475083 | G135: 9.857475083
E136: 2.552436508 | F136: 10.08473528 | G136: 10.08473528
E137: 2.553436508 | F137: 10.30658208 | G137: 10.30658208
E138: 2.554436508 | F138: 10.52243323 | G138: 10.52243323
E139: 2.555436508 | F139: 10.73171274 | G139: 10.73171274
E140: 2.556436508 | F140: 10.93385346 | G140: 10.93385346
E141: 2.557436508 | F141: 11.12829954 | G141: 11.12829954
E142: 2.558436508 | F142: 11.31450905 | G142: 11.31450905
E143: 2.559436508 | F143: 11.4919564 | G143: 11.4919564
E144: 2.560436508 | F144: 11.66013487 | G144: 11.66013487
E145: 2.561436508 | F145: 11.81855898 | G145: 11.81855898
E146: 2.562436508 | F146: 11.96676681 | G146: 11.96676681
E147: 2.563436508 | F147: 12.10432229 | G147: 12.10432229
E148: 2.564436508 | F148: 12.23081727 | G148: 12.23081727
E149: 2.565436508 | F149: 12.34587357 | G149: 12.34587357
E150: 2.566436508 | F150: 12.44914489 | G150: 12.44914489
E151: 2.567436508 | F151: 12.54031849 | G151: 12.54031849
E152: 2.568436508 | F152: 12.6191168 | G152: 12.6191168
E153: 2.569436508 | F153: 12.68529883 | G153: 12.68529883
E154: 2.570436508 | F154: 12.73866139 | G154: 12.73866139
E155: 2.571436508 | F155: 12.77904011 | G155: 12.77904011
E156: 2.572436508 | F156: 12.80631033 | G156: 12.80631033
E157: 2.573436508 | F157: 12.82038769 | G157: 12.82038769
E158: 2.574436508 | F158: 12.82122862 | G158: 12.82122862
E159: 2.575436508 | F159: 12.8088305 | G159: 12.8088305
E160: 2.576436508 | F160: 12.78323173 | G160: 12.78323173
E161: 2.577436508 | F161: 12.7445115 | G161: 12.7445115
E162: 2.578436508 | F162: 12.69278939 | G162: 12.69278939
E163: 2.579436508 | F163: 12.62822476 | G163: 12.62822476
E164: 2.580436508 | F164: 12.55101593 | G164: 12.55101593
E165: 2.581436508 | F165: 12.46139915 | G165: 12.46139915
E166: 2.582436508 | F166: 12.35964743 | G166: 12.35964743
E167: 2.583436508 | F167: 12.24606911 | G167: 12.24606911
E168: 2.584436508 | F168: 12.12100634 | G168: 12.12100634
E169: 2.585436508 | F169: 11.98483335 | G169: 11.98483335
E170: 2.586436508 | F170: 11.83795458 | G170: 11.83795458
E171: 2.587436508 | F171: 11.68080269 | G171: 11.68080269
E172: 2.588436508 | F172: 11.51383642 | G172: 11.51383642
E173: 2.589436508 | F173: 11.3375384 | G173: 11.3375384
E174: 2.590436508 | F174: 11.15241278 | G174: 11.15241278
E175: 2.591436508 | F175: 10.95898289 | G175: 10.95898289
E176: 2.592436508 | F176: 10.75778872 | G176: 10.75778872
E177: 2.593436508 | F177: 10.54938449 | G177: 10.54938449
E178: 2.594436508 | F178: 10.33433606 | G178: 10.33433606
E179: 2.595436508 | F179: 10.11321845 | G179: 10.11321845
E180: 2.596436508 | F180: 9.886613234 | G180: 9.886613234
E181: 2.597436508 | F181: 9.655106088 | G181: 9.655106088
E182: 2.598436508 | F182: 9.419284272 | G182: 9.419284272
E183: 2.599436508 | F183: 9.179734205 | G183: 9.179734205
E184: 2.600436508 | F184: 8.937039097 | G184: 8.937039097
E185: 2.601436508 | F185: 8.691776649 | G185: 8.691776649
E186: 2.602436508 | F186: 8.444516847 | G186: 8.444516847
E187: 2.603436508 | F187: 8.195819851 | G187: 8.195819851
E188: 2.604436508 | F188: 7.946233996 | G188: 7.946233996
E189: 2.605436508 | F189: 7.69629391 | G189: 7.69629391
E190: 2.606436508 | F190: 7.446518756 | G190: 7.446518756
E191: 2.607436508 | F191: 7.19741061 | G191: 7.19741061
E192: 2.608436508 | F192: 6.949452973 | G192: 6.949452973
E193: 2.609436508 | F193: 6.703109435 | G193: 6.703109435
E194: 2.610436508 | F194: 6.458822474 | G194: 6.458822474
E195: =E194+0.001 -> 2.611436508 | F195: =NORMDIST(E195,$B$1,$B$2/SQRT($B$3),0) -> 6.217012413 | G195: =IF(AND(E195>=$B$1-$B$4,E195<=$B$1+$B$4),F195,"") -> 6.217012413
E196: 2.612436508 | F196: 5.978076522 | G196: 5.978076522
E197: 2.613436508 | F197: 5.742388271 | G197: 5.742388271
E198: 2.614436508 | F198: 5.510296735 | G198: 5.510296735
E199: 2.615436508 | F199: 5.282126139 | G199: 5.282126139
E200: 2.616436508 | F200: 5.058175553 | G200: 5.058175553
... 123 more rows

Sheet Ex2 (an)
A1: Report Claims Washington Mean Gas: | B1: 2.574 | E1: x | F1: =IF(B9="","","Outside Internal Probability = "&TEXT(1-(_xlfn.NORM.DIST(B1+B4,B1,B6,1)-_xlfn.NORM.DIST(B1-B4,B1,B6,1)),"0.0000")) -> Outside Internal Probability = 0.0538 | G1: =IF(B9="","","Inside Internal Probability = "&TEXT(_xlfn.NORM.DIST(B1+B4,B1,B6,1)-_xlfn.NORM.DIST(B1-B4,B1,B6,1),"0.0000")) -> Inside Internal Probability = 0.9462
A2: Assume sigma to be: | B2: 0.22 | E2: =B1-B2/SQRT(B3)*5 -> 2.418436508 | F2: =NORMDIST(E2,$B$1,$B$2/SQRT($B$3),0) -> 4.778497503e-05 | G2: =IF(AND(E2>=$B$1-$B$4,E2<=$B$1+$B$4),F2,"") -> 
A3: Sample size = n = | B3: 50 | E3: =E2+0.001 -> 2.419436508 | F3: =NORMDIST(E3,$B$1,$B$2/SQRT($B$3),0) -> 5.608681835e-05 | G3: =IF(AND(E3>=$B$1-$B$4,E3<=$B$1+$B$4),F3,"") -> 
A4: Distance on either side of mew = | B4: 0.06 | E4: 2.420436508 | F4: 6.576299655e-05
A5: ="What is the probability that the mean price for a sample of "&B3&" stations is within "&DOLLAR(B4)&" of the population mean?" -> What is the probability that the mean price for a sample of 50 stations is within $0.06 of the population mean? | E5: 2.421436508 | F5: 7.702890644e-05
A6: Standard Error (SD of Sampling Distribution): | B6: =B2/SQRT(B3) -> 0.03111269837 | E6: 2.422436508 | F6: 9.013162878e-05
A7: Lower Xbar | B7: =B1-B4 -> 2.514 | E7: 2.423436508 | F7: 0.0001053542488
A8: Upper Xbar | B8: =B1+B4 -> 2.634 | E8: 2.424436508 | F8: 0.0001230207129
A9: Probability between two Xbar | B9: =_xlfn.NORM.DIST(B8,B1,B6,1)-_xlfn.NORM.DIST(B7,B1,B6,1) -> 0.9462036855 | E9: 2.425436508 | F9: 0.0001435012792
A10: Conclusions: | E10: 2.426436508 | F10: 0.0001672186273
A11: =IF(B9="","","The probability of selecting a sample of "&B3&" gas stations and finding the sample mean within "&DOLLAR(B4)&" of "&DOLLAR(B1)&" is ."&TEXT(B9,"0.0000")&".") -> The probability of selecting a sample of 50 gas stations and finding the sample mean within $0.06 of $2.57 is .0.9462. | E11: 2.427436508 | F11: 0.0001946546956
A12: =IF(B9="","","A random sample of "&B3&" gas stations has a "&TEXT(B9,"0.0000")&" probability of providing a sample mean that is within "&DOLLAR(B4)&" of the population mean of "&DOLLAR(B1)&".") -> A random sample of 50 gas stations has a 0.9462 probability of providing a sample mean that is within $0.06 of the population mean of $2.57. | E12: 2.428436508 | F12: 0.0002263583208
A13: =IF(B9="","","There is a "&TEXT(1-B9,"0.0000")&" probability that the sample mean will not be in our interval") -> There is a 0.0538 probability that the sample mean will not be in our interval | E13: 2.429436508 | F13: 0.0002629537636
E14: 2.430436508 | F14: 0.0003051502061
E15: 2.431436508 | F15: 0.0003537523167
E16: 2.432436508 | F16: 0.0004096719853
E17: 2.433436508 | F17: 0.0004739413365
E18: 2.434436508 | F18: 0.0005477271389
E19: 2.435436508 | F19: 0.0006323467339
E20: 2.436436508 | F20: 0.0007292856166
E21: 2.437436508 | F21: 0.0008402168086
E22: 2.438436508 | F22: 0.0009670221707
E23: 2.439436508 | F23: 0.001111815811
E24: 2.440436508 | F24: 0.001276969748
E25: 2.441436508 | F25: 0.001465142009
E26: 2.442436508 | F26: 0.00167930732
E27: 2.443436508 | F27: 0.0019227906
E28: 2.444436508 | F28: 0.002199303413
E29: 2.445436508 | F29: 0.002512983602
E30: 2.446436508 | F30: 0.002868438282
E31: 2.447436508 | F31: 0.003270790396
E32: 2.448436508 | F32: 0.003725729036
E33: 2.449436508 | F33: 0.004239563726
E34: 2.450436508 | F34: 0.004819282864
E35: 2.451436508 | F35: 0.005472616509
E36: 2.452436508 | F36: 0.00620810371
E37: 2.453436508 | F37: 0.007035164542
E38: 2.454436508 | F38: 0.007964177011
E39: 2.455436508 | F39: 0.009006558979
E40: 2.456436508 | F40: 0.01017485524
E41: 2.457436508 | F41: 0.01148282986
E42: 2.458436508 | F42: 0.0129455638
E43: 2.459436508 | F43: 0.01457955798
E44: 2.460436508 | F44: 0.01640284171
E45: 2.461436508 | F45: 0.01843508648
E46: 2.462436508 | F46: 0.02069772504
E47: 2.463436508 | F47: 0.02321407568
E48: 2.464436508 | F48: 0.02600947149
E49: 2.465436508 | F49: 0.02911139436
E50: 2.466436508 | F50: 0.03254961351
E51: 2.467436508 | F51: 0.03635632806
E52: 2.468436508 | F52: 0.04056631323
E53: 2.469436508 | F53: 0.0452170697
E54: 2.470436508 | F54: 0.05034897549
E55: 2.471436508 | F55: 0.05600543954
E56: 2.472436508 | F56: 0.06223305642
E57: 2.473436508 | F57: 0.06908176106
E58: 2.474436508 | F58: 0.07660498262
E59: 2.475436508 | F59: 0.08485979635
E60: 2.476436508 | F60: 0.09390707224
E61: 2.477436508 | F61: 0.1038116192
E62: 2.478436508 | F62: 0.114642323
E63: 2.479436508 | F63: 0.1264722774
E64: 2.480436508 | F64: 0.1393789054
E65: 2.481436508 | F65: 0.1534440696
E66: 2.482436508 | F66: 0.168754171
E67: =E66+0.001 -> 2.483436508 | F67: =NORMDIST(E67,$B$1,$B$2/SQRT($B$3),0) -> 0.1854002315 | G67: =IF(AND(E67>=$B$1-$B$4,E67<=$B$1+$B$4),F67,"") -> 
E68: 2.484436508 | F68: 0.2034779609
E69: 2.485436508 | F69: 0.223087805
E70: 2.486436508 | F70: 0.2443349721
E71: 2.487436508 | F71: 0.2673294369
E72: 2.488436508 | F72: 0.2921859194
E73: 2.489436508 | F73: 0.3190238351
E74: 2.490436508 | F74: 0.347967216
E75: 2.491436508 | F75: 0.3791445993
E76: 2.492436508 | F76: 0.4126888814
E77: 2.493436508 | F77: 0.4487371355
E78: 2.494436508 | F78: 0.4874303902
E79: 2.495436508 | F79: 0.5289133675
E80: 2.496436508 | F80: 0.5733341784
E81: 2.497436508 | F81: 0.6208439737
E82: 2.498436508 | F82: 0.6715965497
E83: 2.499436508 | F83: 0.7257479059
E84: 2.500436508 | F84: 0.783455755
E85: 2.501436508 | F85: 0.8448789842
E86: 2.502436508 | F86: 0.9101770665
E87: 2.503436508 | F87: 0.9795094228
E88: 2.504436508 | F88: 1.053034734
E89: 2.505436508 | F89: 1.130910207
E90: 2.506436508 | F90: 1.213290786
E91: 2.507436508 | F91: 1.300328328
E92: 2.508436508 | F92: 1.392170725
E93: 2.509436508 | F93: 1.488960987
E94: 2.510436508 | F94: 1.590836289
E95: 2.511436508 | F95: 1.697926976
E96: 2.512436508 | F96: 1.810355544
E97: 2.513436508 | F97: 1.928235582
E98: 2.514436508 | F98: 2.051670707 | G98: 2.051670707
E99: 2.515436508 | F99: 2.180753468 | G99: 2.180753468
E100: 2.516436508 | F100: 2.315564241 | G100: 2.315564241
E101: 2.517436508 | F101: 2.456170129 | G101: 2.456170129
E102: 2.518436508 | F102: 2.60262385 | G102: 2.60262385
E103: 2.519436508 | F103: 2.75496264 | G103: 2.75496264
E104: 2.520436508 | F104: 2.913207176 | G104: 2.913207176
E105: 2.521436508 | F105: 3.077360514 | G105: 3.077360514
E106: 2.522436508 | F106: 3.247407067 | G106: 3.247407067
E107: 2.523436508 | F107: 3.423311624 | G107: 3.423311624
E108: 2.524436508 | F108: 3.605018408 | G108: 3.605018408
E109: 2.525436508 | F109: 3.792450206 | G109: 3.792450206
E110: 2.526436508 | F110: 3.985507553 | G110: 3.985507553
E111: 2.527436508 | F111: 4.184068004 | G111: 4.184068004
E112: 2.528436508 | F112: 4.387985473 | G112: 4.387985473
E113: 2.529436508 | F113: 4.597089684 | G113: 4.597089684
E114: 2.530436508 | F114: 4.811185705 | G114: 4.811185705
E115: 2.531436508 | F115: 5.030053602 | G115: 5.030053602
E116: 2.532436508 | F116: 5.2534482 | G116: 5.2534482
E117: 2.533436508 | F117: 5.481098975 | G117: 5.481098975
E118: 2.534436508 | F118: 5.712710065 | G118: 5.712710065
E119: 2.535436508 | F119: 5.947960427 | G119: 5.947960427
E120: 2.536436508 | F120: 6.186504119 | G120: 6.186504119
E121: 2.537436508 | F121: 6.427970739 | G121: 6.427970739
E122: 2.538436508 | F122: 6.671966001 | G122: 6.671966001
E123: 2.539436508 | F123: 6.918072461 | G123: 6.918072461
E124: 2.540436508 | F124: 7.165850401 | G124: 7.165850401
E125: 2.541436508 | F125: 7.41483885 | G125: 7.41483885
E126: 2.542436508 | F126: 7.664556761 | G126: 7.664556761
E127: 2.543436508 | F127: 7.91450434 | G127: 7.91450434
E128: 2.544436508 | F128: 8.164164505 | G128: 8.164164505
E129: 2.545436508 | F129: 8.413004498 | G129: 8.413004498
E130: 2.546436508 | F130: 8.660477623 | G130: 8.660477623
E131: =E130+0.001 -> 2.547436508 | F131: =NORMDIST(E131,$B$1,$B$2/SQRT($B$3),0) -> 8.906025112 | G131: =IF(AND(E131>=$B$1-$B$4,E131<=$B$1+$B$4),F131,"") -> 8.906025112
E132: 2.548436508 | F132: 9.149078113 | G132: 9.149078113
E133: 2.549436508 | F133: 9.389059782 | G133: 9.389059782
E134: 2.550436508 | F134: 9.625387487 | G134: 9.625387487
E135: 2.551436508 | F135: 9.857475083 | G135: 9.857475083
E136: 2.552436508 | F136: 10.08473528 | G136: 10.08473528
E137: 2.553436508 | F137: 10.30658208 | G137: 10.30658208
E138: 2.554436508 | F138: 10.52243323 | G138: 10.52243323
E139: 2.555436508 | F139: 10.73171274 | G139: 10.73171274
E140: 2.556436508 | F140: 10.93385346 | G140: 10.93385346
E141: 2.557436508 | F141: 11.12829954 | G141: 11.12829954
E142: 2.558436508 | F142: 11.31450905 | G142: 11.31450905
E143: 2.559436508 | F143: 11.4919564 | G143: 11.4919564
E144: 2.560436508 | F144: 11.66013487 | G144: 11.66013487
E145: 2.561436508 | F145: 11.81855898 | G145: 11.81855898
E146: 2.562436508 | F146: 11.96676681 | G146: 11.96676681
E147: 2.563436508 | F147: 12.10432229 | G147: 12.10432229
E148: 2.564436508 | F148: 12.23081727 | G148: 12.23081727
E149: 2.565436508 | F149: 12.34587357 | G149: 12.34587357
E150: 2.566436508 | F150: 12.44914489 | G150: 12.44914489
E151: 2.567436508 | F151: 12.54031849 | G151: 12.54031849
E152: 2.568436508 | F152: 12.6191168 | G152: 12.6191168
E153: 2.569436508 | F153: 12.68529883 | G153: 12.68529883
E154: 2.570436508 | F154: 12.73866139 | G154: 12.73866139
E155: 2.571436508 | F155: 12.77904011 | G155: 12.77904011
E156: 2.572436508 | F156: 12.80631033 | G156: 12.80631033
E157: 2.573436508 | F157: 12.82038769 | G157: 12.82038769
E158: 2.574436508 | F158: 12.82122862 | G158: 12.82122862
E159: 2.575436508 | F159: 12.8088305 | G159: 12.8088305
E160: 2.576436508 | F160: 12.78323173 | G160: 12.78323173
E161: 2.577436508 | F161: 12.7445115 | G161: 12.7445115
E162: 2.578436508 | F162: 12.69278939 | G162: 12.69278939
E163: 2.579436508 | F163: 12.62822476 | G163: 12.62822476
E164: 2.580436508 | F164: 12.55101593 | G164: 12.55101593
E165: 2.581436508 | F165: 12.46139915 | G165: 12.46139915
E166: 2.582436508 | F166: 12.35964743 | G166: 12.35964743
E167: 2.583436508 | F167: 12.24606911 | G167: 12.24606911
E168: 2.584436508 | F168: 12.12100634 | G168: 12.12100634
E169: 2.585436508 | F169: 11.98483335 | G169: 11.98483335
E170: 2.586436508 | F170: 11.83795458 | G170: 11.83795458
E171: 2.587436508 | F171: 11.68080269 | G171: 11.68080269
E172: 2.588436508 | F172: 11.51383642 | G172: 11.51383642
E173: 2.589436508 | F173: 11.3375384 | G173: 11.3375384
E174: 2.590436508 | F174: 11.15241278 | G174: 11.15241278
E175: 2.591436508 | F175: 10.95898289 | G175: 10.95898289
E176: 2.592436508 | F176: 10.75778872 | G176: 10.75778872
E177: 2.593436508 | F177: 10.54938449 | G177: 10.54938449
E178: 2.594436508 | F178: 10.33433606 | G178: 10.33433606
E179: 2.595436508 | F179: 10.11321845 | G179: 10.11321845
E180: 2.596436508 | F180: 9.886613234 | G180: 9.886613234
E181: 2.597436508 | F181: 9.655106088 | G181: 9.655106088
E182: 2.598436508 | F182: 9.419284272 | G182: 9.419284272
E183: 2.599436508 | F183: 9.179734205 | G183: 9.179734205
E184: 2.600436508 | F184: 8.937039097 | G184: 8.937039097
E185: 2.601436508 | F185: 8.691776649 | G185: 8.691776649
E186: 2.602436508 | F186: 8.444516847 | G186: 8.444516847
E187: 2.603436508 | F187: 8.195819851 | G187: 8.195819851
E188: 2.604436508 | F188: 7.946233996 | G188: 7.946233996
E189: 2.605436508 | F189: 7.69629391 | G189: 7.69629391
E190: 2.606436508 | F190: 7.446518756 | G190: 7.446518756
E191: 2.607436508 | F191: 7.19741061 | G191: 7.19741061
E192: 2.608436508 | F192: 6.949452973 | G192: 6.949452973
E193: 2.609436508 | F193: 6.703109435 | G193: 6.703109435
E194: 2.610436508 | F194: 6.458822474 | G194: 6.458822474
E195: =E194+0.001 -> 2.611436508 | F195: =NORMDIST(E195,$B$1,$B$2/SQRT($B$3),0) -> 6.217012413 | G195: =IF(AND(E195>=$B$1-$B$4,E195<=$B$1+$B$4),F195,"") -> 6.217012413
E196: 2.612436508 | F196: 5.978076522 | G196: 5.978076522
E197: 2.613436508 | F197: 5.742388271 | G197: 5.742388271
E198: 2.614436508 | F198: 5.510296735 | G198: 5.510296735
E199: 2.615436508 | F199: 5.282126139 | G199: 5.282126139
E200: 2.616436508 | F200: 5.058175553 | G200: 5.058175553
... 123 more rows

Sheet Ex3
A19: Mew = | B19: 14 | C19: oz.
A20: sigma = | B20: 0.4 | C20: oz.
A21: Xbar = | B21: 14.14 | C21: =C20 -> oz.
A22: n = | B22: 30
A23: Standard Error
A24: Xbar upper
A25: Z Upper
A26: Propability on Lower Side
A27: Propability on Upper Side
A28: P(Xbar < = 14.14 oz)
A29: Conclusion:
A30: =IF(B27="","","The probability associated with Xbar = 14.14 oz is very small. It is unlikely that we could have taken a sample of 14.14 & had the sampling error occur by chance. It is reasonable to assume that the machine is filling boxes with too much cereal.") -> 

Sheet Ex3 (an)
A19: Mew = | B19: 14 | C19: oz.
A20: sigma = | B20: 0.4 | C20: oz.
A21: Xbar = | B21: 14.14 | C21: =C20 -> oz.
A22: n = | B22: 30
A23: Standard Error | B23: =B20/SQRT(B22) -> 0.07302967433
A24: Xbar upper | B24: =B21 -> 14.14
A25: Z Upper | B25: =(B21-B19)/B23 -> 1.917028951
A26: Propability on Lower Side | B26: =_xlfn.NORM.S.DIST(B25,1) -> 0.9723828731
A27: Propability on Upper Side | B27: =1-B28 -> 0.02761712686
A28: P(Xbar < = 14.14 oz) | B28: =_xlfn.NORM.DIST(B24,B19,B23,1) -> 0.9723828731
A29: Conclusion:
A30: =IF(B27="","","The probability associated with Xbar = 14.14 oz is very small. It is unlikely that we could have taken a sample of 14.14 & had the sampling error occur by chance. It is reasonable to assume that the machine is filling boxes with too much cereal.") -> The probability associated with Xbar = 14.14 oz is very small. It is unlikely that we could have taken a sample of 14.14 & had the sampling error occur by chance. It is reasonable to assume that the machine is filling boxes with too much cereal.

Sheet Pbar
A1: ="Assume Population Proportion = p = proportion of Americans that balance their checkbook = "&B3&". If the population in the USA is "&TEXT(B5,"#,,")&" M and we take a sample of "&B6&" Americans, answer the following questions:" -> Assume Population Proportion = p = proportion of Americans that balance their checkbook = 0.56. If the population in the USA is 300 M and we take a sample of 400 Americans, answer the following questions:
A3: p = | B3: 0.56 | C3: Balance checkbook
A4: 1-p | C4: NOT balance checkbook
A5: N | B5: 300000000
A6: n | B6: 400
A7: n/N<=.05? | C7: =IF(B7="","",B7<=0.05) -> 
A8: Standard Error = | C8: sigmapbar | D8: SQRT(p*(1-p)/n)
A9: Can we use Normal?
A10: n*p>5 | C10: =IF(B10="","",B10>5) -> 
A11: n*(1-p)>5 | C11: =IF(B11="","",B11>5) -> 
A12: E(pbar) =
A13: Question | B13: Margin of Error | C13: Pbar1 | D13: Pbar2 | E13: P(Pbar) | F13: Answer
A14: ="What is probability that the sample proportion will be within+/-"&B14&" of the population proportion?" -> What is probability that the sample proportion will be within+/-0.02 of the population proportion? | B14: 0.02 | F14: =IF(E14="","","The probability that the sample proportion will be within+/-"&B14&" of the population proportion is "&TEXT(E14,"0.00%")) -> 
A15: ="What is probability that the sample proportion will be within+/-"&B15&" of the population proportion?" -> What is probability that the sample proportion will be within+/-0.04 of the population proportion? | B15: 0.04 | F15: =IF(E15="","","The probability that the sample proportion will be within+/-"&B15&" of the population proportion is "&TEXT(E15,"0.00%")) -> 

Sheet Pbar (an)
A1: ="Assume Population Proportion = p = proportion of Americans that balance their checkbook = "&B3&". If the population in the USA is "&TEXT(B5,"#,,")&" M and we take a sample of "&B6&" Americans, answer the following questions:" -> Assume Population Proportion = p = proportion of Americans that balance their checkbook = 0.56. If the population in the USA is 300 M and we take a sample of 400 Americans, answer the following questions:
A3: p = | B3: 0.56 | C3: Balance checkbook
A4: 1-p | B4: =1-B3 -> 0.44 | C4: NOT balance checkbook
A5: N | B5: 300000000
A6: n | B6: 400
A7: n/N<=.05? | B7: =B6/B5 -> 1.333333333e-06 | C7: =IF(B7="","",B7<=0.05) -> TRUE
A8: Standard Error = | B8: =SQRT(B3*B4/B6) -> 0.02481934729 | C8: sigmapbar | D8: SQRT(p*(1-p)/n)
A9: Can we use Normal?
A10: n*p>5 | B10: =B6*B3 -> 224 | C10: =IF(B10="","",B10>5) -> TRUE
A11: n*(1-p)>5 | B11: =B6*B4 -> 176 | C11: =IF(B11="","",B11>5) -> TRUE
A12: E(pbar) = | B12: =B3 -> 0.56
A13: Question | B13: Margin of Error | C13: Pbar1 | D13: Pbar2 | E13: P(Pbar) | F13: Answer
A14: ="What is probability that the sample proportion will be within+/-"&B14&" of the population proportion?" -> What is probability that the sample proportion will be within+/-0.02 of the population proportion? | B14: 0.02 | C14: =B12-B14 -> 0.54 | D14: =B12+B14 -> 0.58 | E14: =_xlfn.NORM.DIST(D14,$B$12,$B$8,1)-_xlfn.NORM.DIST(C14,$B$12,$B$8,1) -> 0.579655065 | F14: =IF(E14="","","The probability that the sample proportion will be within+/-"&B14&" of the population proportion is "&TEXT(E14,"0.00%")) -> The probability that the sample proportion will be within+/-0.02 of the population proportion is 57.97%
A15: ="What is probability that the sample proportion will be within+/-"&B15&" of the population proportion?" -> What is probability that the sample proportion will be within+/-0.04 of the population proportion? | B15: 0.04 | C15: =B12-B15 -> 0.52 | D15: =B12+B15 -> 0.6 | E15: =_xlfn.NORM.DIST(D15,$B$12,$B$8,1)-_xlfn.NORM.DIST(C15,$B$12,$B$8,1) -> 0.8929609897 | F15: =IF(E15="","","The probability that the sample proportion will be within+/-"&B15&" of the population proportion is "&TEXT(E15,"0.00%")) -> The probability that the sample proportion will be within+/-0.04 of the population proportion is 89.30%

Sheet Pbar(2)
A1: P = proportion Insurance claims settled within 1 week | B1: 0.75 | F1: Pbar | G1: P(Pbar) | H1: =A13&" = "&ROUND(_xlfn.NORM.DIST(B1+B4,B1,SQRT(B1*(1-B1)/B3),1)-_xlfn.NORM.DIST(B1-B4,B1,SQRT(B1*(1-B1)/B3),1),4) -> P(0.71 <= Pbar <= 0.79) = 0.8904 | L1: ="Sampling Distribution of Pbar "&CHAR(10)&A7&" = "&ROUND(SQRT(B1*(1-B1)/B3),4)&CHAR(10)&A6&" = "&B1 -> Sampling Distribution of Pbar Standard Error for Sampling Distribution of Pbar = 0.025 Expected (Pbar) = 0.75
A2: N = | B2: 35000 | F2: 0.65 | G2: =_xlfn.NORM.DIST(F2,$B$1,SQRT($B$1*(1-$B$1)/$B$3),0) -> 0.005353209031 | H2: =IF(AND(F2>=$B$1-$B$4,F2<=$B$1+$B$4),G2,"") -> 
A3: n | B3: 300 | F3: 0.655 | G3: =_xlfn.NORM.DIST(F3,$B$1,SQRT($B$1*(1-$B$1)/$B$3),0) -> 0.01167787703
A4: Margin of error | B4: 0.04 | F4: 0.66 | G4: 0.0244760772
A5: n/N | F5: 0.665 | G5: 0.04928876674
A6: Expected (Pbar) | F6: 0.67 | G6: 0.09536352806
A7: Standard Error for Sampling Distribution of Pbar | F7: 0.675 | G7: 0.1772739365
A8: Pbar1 | F8: 0.68 | G8: 0.3166180633
A9: Pbar2 | F9: 0.685 | G9: 0.5433187693
A10: Test 1: n*p>=5 | F10: 0.69 | G10: 0.8957812118
A11: Test 2: n*(1-p) >=5 | F11: 0.695 | G11: 1.418983714
A12: =IF(AND(B10>5,B11>5,B11<>""),"We can use Normal to Aproximate Binomial","") ->  | F12: 0.7 | G12: 2.159638661
A13: ="P("&B1-B4&" <= Pbar <= "&B1+B4&")" -> P(0.71 <= Pbar <= 0.79) | F13: 0.705 | G13: 3.158006332
F14: 0.71 | G14: 4.436833387 | H14: 4.436833387
F15: 0.715 | G15: 5.989098625 | H15: 5.989098625
F16: 0.72 | G16: 7.767442199 | H16: 7.767442199
F17: 0.725 | G17: 9.678828981 | H17: 9.678828981
F18: 0.73 | G18: 11.58766211 | H18: 11.58766211
F19: 0.735 | G19: 13.32898412 | H19: 13.32898412
F20: 0.74 | G20: 14.73080561 | H20: 14.73080561
F21: 0.745 | G21: 15.64170776 | H21: 15.64170776
F22: 0.75 | G22: 15.95769122 | H22: 15.95769122
F23: 0.755 | G23: 15.64170776 | H23: 15.64170776
F24: 0.76 | G24: 14.73080561 | H24: 14.73080561
F25: 0.765 | G25: 13.32898412 | H25: 13.32898412
F26: 0.77 | G26: 11.58766211 | H26: 11.58766211
F27: 0.775 | G27: 9.678828981 | H27: 9.678828981
F28: 0.78 | G28: 7.767442199 | H28: 7.767442199
F29: 0.785 | G29: 5.989098625 | H29: 5.989098625
F30: 0.79 | G30: 4.436833387 | H30: 4.436833387
F31: 0.795 | G31: 3.158006332
F32: 0.8 | G32: 2.159638661
F33: 0.805 | G33: 1.418983714
F34: 0.81 | G34: 0.8957812118
F35: 0.815 | G35: 0.5433187693
F36: 0.82 | G36: 0.3166180633
F37: 0.825 | G37: 0.1772739365
F38: 0.83 | G38: 0.09536352806
F39: 0.835 | G39: 0.04928876674
F40: 0.84 | G40: 0.0244760772
F41: 0.845 | G41: 0.01167787703
F42: 0.85 | G42: 0.005353209031

Sheet Pbar(2an)
A1: P = proportion Insurance claims settled within 1 week | B1: 0.75 | F1: Pbar | G1: P(Pbar) | H1: =A13&" = "&ROUND(_xlfn.NORM.DIST(B1+B4,B1,SQRT(B1*(1-B1)/B3),1)-_xlfn.NORM.DIST(B1-B4,B1,SQRT(B1*(1-B1)/B3),1),4) -> P(0.71 <= Pbar <= 0.79) = 0.8904 | L1: ="Sampling Distribution of Pbar "&CHAR(10)&A7&" = "&ROUND(SQRT(B1*(1-B1)/B3),4)&CHAR(10)&A6&" = "&B1 -> Sampling Distribution of Pbar Standard Error for Sampling Distribution of Pbar = 0.025 Expected (Pbar) = 0.75
A2: N = | B2: 35000 | F2: 0.65 | G2: =_xlfn.NORM.DIST(F2,$B$1,SQRT($B$1*(1-$B$1)/$B$3),0) -> 0.005353209031 | H2: =IF(AND(F2>=$B$1-$B$4,F2<=$B$1+$B$4),G2,"") -> 
A3: n | B3: 300 | F3: 0.655 | G3: =_xlfn.NORM.DIST(F3,$B$1,SQRT($B$1*(1-$B$1)/$B$3),0) -> 0.01167787703
A4: Margin of error | B4: 0.04 | F4: 0.66 | G4: 0.0244760772
A5: n/N | B5: =B3/B2 -> 0.008571428571 | F5: 0.665 | G5: 0.04928876674
A6: Expected (Pbar) | B6: =B1 -> 0.75 | F6: 0.67 | G6: 0.09536352806
A7: Standard Error for Sampling Distribution of Pbar | B7: =SQRT(B1*(1-B1)/B3) -> 0.025 | F7: 0.675 | G7: 0.1772739365
A8: Pbar1 | B8: =B6-B4 -> 0.71 | F8: 0.68 | G8: 0.3166180633
A9: Pbar2 | B9: =B6+B4 -> 0.79 | F9: 0.685 | G9: 0.5433187693
A10: Test 1: n*p>=5 | B10: =B1*B3 -> 225 | F10: 0.69 | G10: 0.8957812118
A11: Test 2: n*(1-p) >=5 | B11: =(1-B1)*B3 -> 75 | F11: 0.695 | G11: 1.418983714
A12: =IF(AND(B10>5,B11>5,B11<>""),"We can use Normal to Aproximate Binomial","") -> We can use Normal to Aproximate Binomial | F12: 0.7 | G12: 2.159638661
A13: ="P("&B1-B4&" <= Pbar <= "&B1+B4&")" -> P(0.71 <= Pbar <= 0.79) | B13: =_xlfn.NORM.DIST(B9,B6,B7,1)-_xlfn.NORM.DIST(B8,B6,B7,1) -> 0.8904014166 | F13: 0.705 | G13: 3.158006332
F14: 0.71 | G14: 4.436833387 | H14: 4.436833387
F15: 0.715 | G15: 5.989098625 | H15: 5.989098625
F16: 0.72 | G16: 7.767442199 | H16: 7.767442199
F17: 0.725 | G17: 9.678828981 | H17: 9.678828981
F18: 0.73 | G18: 11.58766211 | H18: 11.58766211
F19: 0.735 | G19: 13.32898412 | H19: 13.32898412
F20: 0.74 | G20: 14.73080561 | H20: 14.73080561
F21: 0.745 | G21: 15.64170776 | H21: 15.64170776
F22: 0.75 | G22: 15.95769122 | H22: 15.95769122
F23: 0.755 | G23: 15.64170776 | H23: 15.64170776
F24: 0.76 | G24: 14.73080561 | H24: 14.73080561
F25: 0.765 | G25: 13.32898412 | H25: 13.32898412
F26: 0.77 | G26: 11.58766211 | H26: 11.58766211
F27: 0.775 | G27: 9.678828981 | H27: 9.678828981
F28: 0.78 | G28: 7.767442199 | H28: 7.767442199
F29: 0.785 | G29: 5.989098625 | H29: 5.989098625
F30: 0.79 | G30: 4.436833387 | H30: 4.436833387
F31: 0.795 | G31: 3.158006332
F32: 0.8 | G32: 2.159638661
F33: 0.805 | G33: 1.418983714
F34: 0.81 | G34: 0.8957812118
F35: 0.815 | G35: 0.5433187693
F36: 0.82 | G36: 0.3166180633
F37: 0.825 | G37: 0.1772739365
F38: 0.83 | G38: 0.09536352806
F39: 0.835 | G39: 0.04928876674
F40: 0.84 | G40: 0.0244760772
F41: 0.845 | G41: 0.01167787703
F42: 0.85 | G42: 0.005353209031
